Body Name,ONS Body Code,Service Label,Service Code,Service Division,Service Division Code,Organisational Unit,Expenditure Category,Expenditure Code,CIPFA detailed expenditure type,GLCode,CIPFA detailed expenditure code,Date,Transaction Number,Net Amount,Capital and Revenue,Supplier Name,Supplier No,
The Royal Borough of Kensington and Chelsea,RBKC,Children's Services,CHS,Non Revenue,001,COS AssetMngt & Capital Prjcts (OSC),Capital,003,Fees-Consultants              ,F5224.00065,00065, 30/07/2014,P2 758315,"11,639.00",Capital,Lend Lease Consulting (EMEA) Ltd,1303241,
The Royal Borough of Kensington and Chelsea,RBKC,Transport & Technical Srvcs,TTS,Non Revenue,001,TTS Transportation Contracts (OSY),Capital,003,Construction-Main Ctrctrs A/C ,X5070.00090.14WRNK,00090, 02/07/2014,P2 901362,700.00,Capital,Traffic Data Centre,606398,
The Royal Borough of Kensington and Chelsea,RBKC,"Envrmt,Leisure & Residents Svc",ELR,"Cleaner,Greener & Cultural Ser",YCG,ELR OHP General (OSY),Supplies and Services,400,Hospitality                   ,L0309.41100,41100, 04/07/2014,P2 904393,"3,638.40",Revenue,Handford Wines,1267378,
The Royal Borough of Kensington and Chelsea,RBKC,"Envrmt,Leisure & Residents Svc",ELR,Non Revenue,001,TTS Graham Shoesmith-Lighting (OSY),Capital,003,Construction-Miscellaneous    ,X6208.00099,00099, 02/07/2014,P2 904434,"7,050.25",Capital,Eurovia Infrastructure Ltd,949196,
The Royal Borough of Kensington and Chelsea,RBKC,Transport & Technical Srvcs,TTS,Transportation & Highways,YTH,TTS Alan Moore-Lighting (OSY),Third Party Payments          ,500,Public Lighting-Contract Maint,Y7254.55881,55881, 02/07/2014,P2 904435,"20,570.70",Revenue,Eurovia Infrastructure Ltd,949196,
The Royal Borough of Kensington and Chelsea,RBKC,Corporate Services,COS,Human Resources,CHG,COS Learning and Development (OSC),Supplies and Services,400,Annual Programme              ,P4421.42515,42515, 02/07/2014,P2 904837,500.00,Revenue,Payment to an individual or sole trader,1161442,
The Royal Borough of Kensington and Chelsea,RBKC,Adult Social Care,ASC,Operations,AS6,ASC Learning Dis Local SWT (OSS),Third Party Payments          ,500,Supported Living              ,S6123.54135,54135, 02/07/2014,P2 904880,"1,176.00",Revenue,Voyage Ltd,600504,
The Royal Borough of Kensington and Chelsea,RBKC,Adult Social Care,ASC,Operations,AS6,ASC Learning Dis Local SWT (OSS),Third Party Payments          ,500,P&V Supp Accom                ,S6125.54210,54210, 01/07/2014,P2 904905,"15,428.57",Revenue,London Cyrenians Housing Ltd & Yarrow Ho,926481,
The Royal Borough of Kensington and Chelsea,RBKC,Adult Social Care,ASC,Operations,AS6,ASC Learning Dis Local SWT (OSS),Third Party Payments          ,500,Supported Living              ,S6125.54135,54135, 01/07/2014,P2 904906,"4,494.00",Revenue,London Cyrenians Housing Ltd & Yarrow Ho,926481,
The Royal Borough of Kensington and Chelsea,RBKC,Adult Social Care,ASC,Operations,AS6,ASC Learning Dis Local SWT (OSS),Third Party Payments          ,500,Supported Living              ,S6125.54135,54135, 01/07/2014,P2 904907,"4,494.00",Revenue,London Cyrenians Housing Ltd & Yarrow Ho,926481,
The Royal Borough of Kensington and Chelsea,RBKC,Adult Social Care,ASC,Operations,AS6,ASC Learning Dis Local SWT (OSS),Third Party Payments          ,500,P&V Supp Accom                ,S6125.54210,54210, 01/07/2014,P2 904908,"15,428.57",Revenue,London Cyrenians Housing Ltd & Yarrow Ho,926481,
The Royal Borough of Kensington and Chelsea,RBKC,Children's Services,CHS,Family Services - RBKC,SKC,FCS Ladbroke North SWT (OSF),Third Party Payments          ,500,P & V Fostering               ,S1735.54005,54005, 01/07/2014,P2 905322,"5,284.80",Revenue,Integrated Services Programme,604978,
The Royal Borough of Kensington and Chelsea,RBKC,Children's Services,CHS,Family Services - RBKC,SKC,FCS Ladbroke North SWT (OSF),Third Party Payments          ,500,P & V Fostering               ,S1735.54005,54005, 01/07/2014,P2 905323,"5,284.80",Revenue,Integrated Services Programme,604978,
The Royal Borough of Kensington and Chelsea,RBKC,Transport & Technical Srvcs,TTS,Transportation & Highways,YTH,TTS Graham Shoesmith-Lighting (OSY),Third Party Payments          ,500,Painting                      ,Y7254.55620,55620, 02/07/2014,P2 905335,"2,269.20",Revenue,Eurovia Infrastructure Ltd,949196,
The Royal Borough of Kensington and Chelsea,RBKC,Transport & Technical Srvcs,TTS,Transportation & Highways,YTH,TTS Graham Shoesmith-Lighting (OSY),Third Party Payments          ,500,White Lights � Relighting     ,Y7254.55797,55797, 02/07/2014,P2 905336,"3,001.20",Revenue,Eurovia Infrastructure Ltd,949196,
The Royal Borough of Kensington and Chelsea,RBKC,"Envrmt,Leisure & Residents Svc",ELR,Safer Neighbourhoods,YSN,ELR Parks and Cemeteries (OSY),Premises Related,200,Park Maintenance              ,Y2720.20810,20810, 03/07/2014,P2 905341,"10,458.40",Revenue,Eurovia Infrastructure Ltd,949196,
The Royal Borough of Kensington and Chelsea,RBKC,"Envrmt,Leisure & Residents Svc",ELR,"Cleaner,Greener & Cultural Ser",YCG,ELR OHP General (OSY),Employees,100,Salaries-Technical Staff      ,L0311.11034,11034, 01/07/2014,P2 905433,"2,250.00",Revenue,Payment to an individual or sole trader,1267699,
The Royal Borough of Kensington and Chelsea,RBKC,Adult Social Care,ASC,Operations,AS6,ASC Learning Dis Local SWT (OSS),Third Party Payments          ,500,P&V Day Care                  ,S6125.54070,54070, 02/07/2014,P2 905479,"2,813.44",Revenue,Ambitious About Autism,1288704,
The Royal Borough of Kensington and Chelsea,RBKC,Children's Services,CHS,Family Services - RBKC,SKC,FCS Portobello North SWT (OSF),Third Party Payments          ,500,Family Group Conference       ,S1633.54175,54175, 03/07/2014,P2 905480,"1,377.50",Revenue,Galton Associates,1236754,
The Royal Borough of Kensington and Chelsea,RBKC,"Envrmt,Leisure & Residents Svc",ELR,"Cleaner,Greener & Cultural Ser",YCG,ELR OHP General (OSY),Supplies and Services,400,Materials Purchase            ,L0311.40140,40140, 01/07/2014,P2 905483,"1,000.00",Revenue,De Novo Flowers,1339994,
The Royal Borough of Kensington and Chelsea,RBKC,"Envrmt,Leisure & Residents Svc",ELR,Safer Neighbourhoods,YSN,ELR Parks and Cemeteries (OSY),Premises Related,200,Tree Management               ,Y2720.20940,20940, 04/07/2014,P2 905560,"1,600.00",Revenue,RA Information Systems,1077828,
The Royal Borough of Kensington and Chelsea,RBKC,Housing Services,HOS,Hsg Needs and Homelessness,HNH,HOS Temp Accommodation (OSS),Third Party Payments          ,500,Medical Fees                  ,H6400.54525,54525, 01/07/2014,P2 905571,905.00,Revenue,NowMedical,1001939,
The Royal Borough of Kensington and Chelsea,RBKC,Public Health,PHL,Provided Services/ MH Partners,AS5,ASC Substance Use SWT (OSS),Third Party Payments          ,500,P&V Residential               ,S5395.54060,54060, 04/07/2014,P2 905577,"3,560.57",Revenue,Phoenix House,600516,
The Royal Borough of Kensington and Chelsea,RBKC,Public Health,PHL,Public Health,JPH,Sexual Health (),Third Party Payments          ,500,Contract Costs                ,J4200.55000,55000, 04/07/2014,P2 905580,525.00,Revenue,Kensington & Chelsea Community Enterpris,1306940,
The Royal Borough of Kensington and Chelsea,RBKC,Transport & Technical Srvcs,TTS,Transportation & Highways,YTH,TTS Highways (OSY),Third Party Payments          ,500,Programmed Carriageway Mntce  ,Y7214.55550,55550, 02/07/2014,P2 905581,"15,970.88",Revenue,Eurovia Infrastructure Ltd,949196,
The Royal Borough of Kensington and Chelsea,RBKC,Transport & Technical Srvcs,TTS,Transportation & Highways,YTH,TTS Highways (OSY),Third Party Payments          ,500,Non-Program Carriageway Mntce ,Y7212.55560,55560, 03/07/2014,P2 905582,"5,370.89",Revenue,Eurovia Infrastructure Ltd,949196,
The Royal Borough of Kensington and Chelsea,RBKC,Corporate Services,COS,Revenues,CFR,COS Benefits (OSC),Employees,100,Salaries Agency               ,P5915.12000,12000, 02/07/2014,P2 905586,"2,400.00",Revenue,Serco Ltd,1200359,
The Royal Borough of Kensington and Chelsea,RBKC,"Envrmt,Leisure & Residents Svc",ELR,"Cleaner,Greener & Cultural Ser",YCG,ELR Recycling & Waste Disposal (OSY),Supplies and Services,400,Advertising                   ,Y2160.45445,45445, 03/07/2014,P2 905589,"5,075.00",Revenue,Clear Channel UK Ltd,609154,
The Royal Borough of Kensington and Chelsea,RBKC,Transport & Technical Srvcs,TTS,Transportation & Highways,YTH,TTS Parking Divisional Expend (OSY),Third Party Payments          ,500,P&D Metric Contract           ,Y8300.55970,55970, 04/07/2014,P2 905601,522.25,Revenue,Metric Group Ltd,611187,
The Royal Borough of Kensington and Chelsea,RBKC,Children's Services,CHS,Family Services - RBKC,SKC,FCS Recruitment & Assessment (OSF),Supplies and Services,400,Advertising                   ,S1461.45445,45445, 03/07/2014,P2 905602,"6,050.00",Revenue,Holman Advertising Ltd,634369,
The Royal Borough of Kensington and Chelsea,RBKC,Public Health,PHL,Public Health,JPH,Sexual Health (),Third Party Payments          ,500,Contract Costs                ,J4200.55000,55000, 04/07/2014,P2 905608,"11,236.25",Revenue,Brook Young People,836018,
The Royal Borough of Kensington and Chelsea,RBKC,Corporate Services,COS,Non Revenue,001,COS ISD Training (OSC),Balance Sheet,002,Telephone Charges             ,C1068.00660,00660, 01/07/2014,P2 905642,"15,904.93",Holding Control Account,Easynet Managed Services Ltd,1070857,
The Royal Borough of Kensington and Chelsea,RBKC,Corporate Services,COS,Corporate Property,CBV,COS ISD Network and Telecomms (OSC),Support Sevices,700,CSS-ISD Network Mgt           ,P1516.73030,73030, 03/07/2014,P2 905644,750.00,Revenue,Black Box Network Services,611238,
The Royal Borough of Kensington and Chelsea,RBKC,"Library,Archive & Heritage Svc",LAH,Non Revenue,001,COS ISD Network and Telecomms (OSC),Capital,003,Construction-Main Ctrctrs A/C ,K5043.00090,00090, 03/07/2014,P2 905645,"5,450.00",Capital,Black Box Network Services,611238,
The Royal Borough of Kensington and Chelsea,RBKC,Children's Services,CHS,Family Services - RBKC,SKC,FCS Portobello South SWT (OSF),Third Party Payments          ,500,OLA Residential               ,S1632.51020,51020, 01/07/2014,P2 905647,"12,428.57",Revenue,Hillcrest Care Ltd,603974,
The Royal Borough of Kensington and Chelsea,RBKC,Children's Services,CHS,Family Services - RBKC,SKC,FCS Portobello South SWT (OSF),Third Party Payments          ,500,P & V Fostering               ,S1632.54005,54005, 01/07/2014,P2 905648,"5,284.80",Revenue,Integrated Services Programme,604978,
The Royal Borough of Kensington and Chelsea,RBKC,"Envrmt,Leisure & Residents Svc",ELR,"Cleaner,Greener & Cultural Ser",YCG,ELR OHP General (OSY),Employees,100,Salaries-Holland Park         ,L0311.11035,11035, 01/07/2014,P2 905661,"2,500.00",Revenue,Payment to an individual or sole trader,1132517,
The Royal Borough of Kensington and Chelsea,RBKC,Adult Social Care,ASC,Operations,AS6,ASC Learning Dis Local SWT (OSS),Third Party Payments          ,500,Payments To Vol Orgs          ,S6125.53000,53000, 03/07/2014,P2 905663,"14,105.00",Revenue,Kent and Medway NHS SCPT,1311333,
The Royal Borough of Kensington and Chelsea,RBKC,Children's Services,CHS,Family Services - RBKC,SKC,FCS Recruitment & Assessment (OSF),Supplies and Services,400,Advertising                   ,S1461.45445,45445, 02/07/2014,P2 905664,"6,050.00",Revenue,Holman Advertising Ltd,634369,
The Royal Borough of Kensington and Chelsea,RBKC,Transport & Technical Srvcs,TTS,Transportation & Highways,YTH,TTS Road Safety & Travel Plan (OSY),Supplies and Services,400,Theatre in Education          ,Y7110.45600,45600, 04/07/2014,P2 905665,"8,000.00",Revenue,Stopwatch Theatre Company,601846,
The Royal Borough of Kensington and Chelsea,RBKC,Corporate Services,COS,Non Revenue,001,COS ISD Training (OSC),Balance Sheet,002,Mobile Phone Charges          ,C1068.00661,00661, 04/07/2014,P2 905669,"21,734.71",Holding Control Account,O2,622622,
The Royal Borough of Kensington and Chelsea,RBKC,Transport & Technical Srvcs,TTS,Transportation & Highways,YTH,TTS Road Safety & Travel Plan (OSY),Supplies and Services,400,Initiatives                   ,Y7125.45370.CN14002,45370, 04/07/2014,P2 905671,"1,080.00",Revenue,TTC Road Safety Services Ltd,1337438,
The Royal Borough of Kensington and Chelsea,RBKC,Public Health,PHL,Provided Services/ MH Partners,AS5,ASC Substance Use SWT (OSS),Third Party Payments          ,500,P&V Residential               ,S5395.54060,54060, 01/07/2014,P2 905672,"1,493.14",Revenue,Mount Carmel,602235,
The Royal Borough of Kensington and Chelsea,RBKC,Adult Social Care,ASC,Operations,AS6,ASC Learning Dis Local SWT (OSS),Third Party Payments          ,500,P&V Day Care                  ,S6123.54070,54070, 01/07/2014,P2 906240,"1,274.56",Revenue,Pursuing Indepentent Paths,639552,
The Royal Borough of Kensington and Chelsea,RBKC,Transport & Technical Srvcs,TTS,Transportation & Highways,YTH,TTS Alan Moore-Lighting (OSY),Premises Related,200,Electricity Non-Contract      ,Y7252.22010,22010, 04/07/2014,P2 906247,"3,200.00",Revenue,Power Data Associates,1153739,
The Royal Borough of Kensington and Chelsea,RBKC,Children's Services,CHS,Family Services - RBKC,SKC,FCS World's End SWT (OSF),Third Party Payments          ,500,P&V Homes & Hostels           ,S1816.54120,54120, 04/07/2014,P2 906248,"1,154.13",Revenue,Earls Court YMCA,601331,
The Royal Borough of Kensington and Chelsea,RBKC,Children's Services,CHS,Family Services - RBKC,SKC,FCS Portobello North SWT (OSF),Third Party Payments          ,500,P&V Homes & Hostels           ,S1633.54120,54120, 04/07/2014,P2 906251,"3,095.57",Revenue,Phoenix House,600516,
The Royal Borough of Kensington and Chelsea,RBKC,Transport & Technical Srvcs,TTS,Transportation & Highways,YTH,TTS Highways (OSY),Third Party Payments          ,500,Street Furniture              ,Y7220.55735,55735, 02/07/2014,P2 906255,"10,779.77",Revenue,J Murphy & Sons Ltd,611144,
The Royal Borough of Kensington and Chelsea,RBKC,Corporate Services,COS,Human Resources,CHG,COS Learning and Development (OSC),Supplies and Services,400,Annual Programme              ,P4421.42515,42515, 04/07/2014,P2 906258,550.00,Revenue,Salvus Consulting Ltd,1060393,
The Royal Borough of Kensington and Chelsea,RBKC,Transport & Technical Srvcs,TTS,Transportation & Highways,YTH,TTS Highways (OSY),Third Party Payments          ,500,Carriageway Markings          ,Y8250.55590,55590, 02/07/2014,P2 906260,"10,863.69",Revenue,Eurovia Infrastructure Ltd,949196,
The Royal Borough of Kensington and Chelsea,RBKC,Transport & Technical Srvcs,TTS,Transportation & Highways,YTH,TTS Highways (OSY),Third Party Payments          ,500,Programmed Carriageway Mntce  ,Y7212.55550,55550, 04/07/2014,P2 906261,"15,084.81",Revenue,Eurovia Infrastructure Ltd,949196,
The Royal Borough of Kensington and Chelsea,RBKC,Children's Services,CHS,Family Services - RBKC,SKC,FCS Ladbroke South SWT (OSF),Third Party Payments          ,500,P & V Fostering               ,S1742.54005,54005, 01/07/2014,P2 906921,"5,284.80",Revenue,Integrated Services Programme,604978,
The Royal Borough of Kensington and Chelsea,RBKC,Corporate Services,COS,Non Revenue,001,COS ISD Equipment Orders (OSC),Balance Sheet,002,Expenditure                   ,B1081.05502,05502, 04/07/2014,P2 906930,"4,247.11",Control Account Balance Sheet,Trustmarque Solutions Ltd,600181,
The Royal Borough of Kensington and Chelsea,RBKC,Tenants Mgt Organisation,TMO,Non Revenue,001,HOS Finance & Support (OSS),Third Party Payments          ,500,Community or social alarm serv,N6000.54682,54682, 01/07/2014,P2 906931,"18,333.33",Revenue,RBKC - TMO Ltd,602155,
The Royal Borough of Kensington and Chelsea,RBKC,Tenants Mgt Organisation,TMO,Non Revenue,001,HOS Finance & Support (OSS),Third Party Payments          ,500,Community or social alarm serv,N6000.54682,54682, 01/07/2014,P2 906932,"3,666.00",Revenue,RBKC - TMO Ltd,602155,
The Royal Borough of Kensington and Chelsea,RBKC,Housing Services,HOS,Hsg Needs and Homelessness,HNH,HOS Temp Accommodation (OSS),Third Party Payments          ,500,PLA Accommod - Stat Homeless  ,H6400.54714,54714, 04/07/2014,P2 906959,941.07,Revenue,Paradigm Homes Charitable Housing Associ,1315065,
The Royal Borough of Kensington and Chelsea,RBKC,Adult Social Care,ASC,Provided Services/ MH Partners,AS5,HHASC Thamesbrook Residential (OSS),Employees,100,Salaries Agency               ,S3130.12000,12000, 01/07/2014,P2 906960,"1,067.67",Revenue,Geneva Health International Ltd,1214305,
The Royal Borough of Kensington and Chelsea,RBKC,Adult Social Care,ASC,Provided Services/ MH Partners,AS5,HHASC Thamesbrook Residential (OSS),Employees,100,Salaries Agency               ,S3130.12000,12000, 01/07/2014,P2 906961,628.38,Revenue,Geneva Health International Ltd,1214305,
The Royal Borough of Kensington and Chelsea,RBKC,Adult Social Care,ASC,Provided Services/ MH Partners,AS5,HHASC Thamesbrook Residential (OSS),Employees,100,Salaries Agency               ,S3130.12000,12000, 01/07/2014,P2 906963,657.27,Revenue,Geneva Health International Ltd,1214305,
The Royal Borough of Kensington and Chelsea,RBKC,Transport & Technical Srvcs,TTS,Transportation & Highways,YTH,TTS Highways (OSY),Third Party Payments          ,500,Carriageway Markings          ,Y8250.55590,55590, 01/07/2014,P2 906969,"2,741.41",Revenue,Eurovia Infrastructure Ltd,949196,
The Royal Borough of Kensington and Chelsea,RBKC,Transport & Technical Srvcs,TTS,Transportation & Highways,YTH,TTS Highways (OSY),Third Party Payments          ,500,Carriageway Markings          ,Y8250.55590,55590, 04/07/2014,P2 906970,"1,039.97",Revenue,Eurovia Infrastructure Ltd,949196,
The Royal Borough of Kensington and Chelsea,RBKC,Transport & Technical Srvcs,TTS,Transportation & Highways,YTH,TTS Highways (OSY),Third Party Payments          ,500,Carriageway Markings          ,Y8250.55590,55590, 04/07/2014,P2 906971,"8,509.12",Revenue,Eurovia Infrastructure Ltd,949196,
The Royal Borough of Kensington and Chelsea,RBKC,Transport & Technical Srvcs,TTS,Transportation & Highways,YTH,TTS Highways (OSY),Third Party Payments          ,500,Carriageway Markings          ,Y8250.55590,55590, 04/07/2014,P2 906972,"2,442.55",Revenue,Eurovia Infrastructure Ltd,949196,
The Royal Borough of Kensington and Chelsea,RBKC,Transport & Technical Srvcs,TTS,Transportation & Highways,YTH,TTS Highways (OSY),Third Party Payments          ,500,Non-Program Carriageway Mntce ,Y7214.55560,55560, 04/07/2014,P2 906976,997.50,Revenue,Eurovia Infrastructure Ltd,949196,
The Royal Borough of Kensington and Chelsea,RBKC,Children's Services,CHS,Family Services - RBKC,SKC,FCS Healthlink SWT (OSF),Third Party Payments          ,500,Hotel BandB Accommodation     ,S1862.54170,54170, 10/07/2014,P2 906995,900.00,Revenue,Jamma Umoja (Community Services) Ltd,604497,
The Royal Borough of Kensington and Chelsea,RBKC,Children's Services,CHS,Family Services - RBKC,SKC,FCS Leaving Care (OSF),Third Party Payments          ,500,Supported Living              ,S1425.54135,54135, 01/07/2014,P2 907442,857.14,Revenue,The Caldecott Foundation,601790,
The Royal Borough of Kensington and Chelsea,RBKC,Housing Revenue Account,HRA,Housing Revenue Account,HRA,HOS Finance & Support (OSS),Third Party Payments          ,500,TMO Management Fee            ,H0100.54730,54730, 01/07/2014,P2 907444,"875,439.38",Revenue,Tenant Management Organisation,1283388,
The Royal Borough of Kensington and Chelsea,RBKC,Transport & Technical Srvcs,TTS,Non Revenue,001,TTS TAPs and LSSs (OSY),Capital,003,Construction-Main Ctrctrs A/C ,X5006.00090.13PELOBR,00090, 04/07/2014,P2 907453,"3,682.20",Capital,Project Centre,601607,
The Royal Borough of Kensington and Chelsea,RBKC,Transport & Technical Srvcs,TTS,Non Revenue,001,TTS Streetscape (OSY),Capital,003,Construction-Main Ctrctrs A/C ,X5006.00090.HPAHPS14,00090, 04/07/2014,P2 907454,"2,284.94",Capital,Project Centre,601607,
The Royal Borough of Kensington and Chelsea,RBKC,Children's Services,CHS,Family Services - RBKC,SKC,FCS Permanence (OSF),Supplies and Services,400,Advertising                   ,S1465.45445,45445, 01/07/2014,P2 907455,538.88,Revenue,Adoption UK,609146,
The Royal Borough of Kensington and Chelsea,RBKC,Children's Services,CHS,Family Services - RBKC,SKC,FCS Permanence (OSF),Supplies and Services,400,Advertising                   ,S1465.45445,45445, 01/07/2014,P2 907461,685.13,Revenue,Adoption UK,609146,
The Royal Borough of Kensington and Chelsea,RBKC,Corporate Services,COS,Non Revenue,001,COS Corporate Finance (OSC),Balance Sheet,002,Other Sale Expenses           ,B4402.08456,08456, 04/07/2014,P2 907487,750.00,Control Account Balance Sheet,Cluttons LLP,603514,
The Royal Borough of Kensington and Chelsea,RBKC,Transport & Technical Srvcs,TTS,Transportation & Highways,YTH,TTS Derek Mahon-Lighting (OSY),Third Party Payments          ,500,Public Lighting-Irrecov Works ,Y7252.55920,55920, 09/07/2014,P2 907493,"2,678.63",Revenue,Eurovia Infrastructure Ltd,949196,
The Royal Borough of Kensington and Chelsea,RBKC,Public Health,PHL,Public Health,JPH,NHS Health Check Progrme & Oth (),Third Party Payments          ,500,Contract Costs                ,J4102.55000,55000, 03/07/2014,P2 907497,"4,451.00",Revenue,Payment to an individual or sole trader,1314965,
The Royal Borough of Kensington and Chelsea,RBKC,Transport & Technical Srvcs,TTS,Non Revenue,001,TTS Construction (OSY),Capital,003,Construction-Main Ctrctrs A/C ,X5070.00090.NHGCHRSM,00090, 04/07/2014,P2 907498,500.00,Capital,Project Centre,601607,
The Royal Borough of Kensington and Chelsea,RBKC,Transport & Technical Srvcs,TTS,Non Revenue,001,TTS Construction (OSY),Capital,003,Construction-Main Ctrctrs A/C ,X5070.00090.GLRD13,00090, 04/07/2014,P2 907499,500.00,Capital,Project Centre,601607,
The Royal Borough of Kensington and Chelsea,RBKC,Transport & Technical Srvcs,TTS,Non Revenue,001,TTS Construction (OSY),Capital,003,Construction-Main Ctrctrs A/C ,X5070.00090,00090, 01/07/2014,P2 907502,650.00,Capital,David J Webb Surveys Ltd,986260,
The Royal Borough of Kensington and Chelsea,RBKC,Transport & Technical Srvcs,TTS,Non Revenue,001,TTS Construction (OSY),Capital,003,Construction-Main Ctrctrs A/C ,X5006.00090,00090, 01/07/2014,P2 907503,650.00,Capital,David J Webb Surveys Ltd,986260,
The Royal Borough of Kensington and Chelsea,RBKC,Corporate Services,COS,Human Resources,CHG,COS Learning and Development (OSC),Supplies and Services,400,Annual Programme              ,P4421.42515,42515, 04/07/2014,P2 907774,500.00,Revenue,Payment to an individual or sole trader,1161442,
The Royal Borough of Kensington and Chelsea,RBKC,Transport & Technical Srvcs,TTS,Transportation & Highways,YTH,TTS Highways (OSY),Third Party Payments          ,500,Footway Maintenance-Other Jobs,Y7214.55540,55540, 02/07/2014,P2 907777,557.73,Revenue,J Murphy & Sons Ltd,611144,
The Royal Borough of Kensington and Chelsea,RBKC,Transport & Technical Srvcs,TTS,Transportation & Highways,YTH,TTS Highways (OSY),Third Party Payments          ,500,Carriageway Markings          ,Y8250.55590,55590, 03/07/2014,P2 907782,"5,512.20",Revenue,Eurovia Infrastructure Ltd,949196,
The Royal Borough of Kensington and Chelsea,RBKC,Transport & Technical Srvcs,TTS,Transportation & Highways,YTH,TTS Highways (OSY),Third Party Payments          ,500,Carriageway Markings          ,Y8250.55590,55590, 04/07/2014,P2 907783,"1,345.85",Revenue,Eurovia Infrastructure Ltd,949196,
The Royal Borough of Kensington and Chelsea,RBKC,Transport & Technical Srvcs,TTS,Transportation & Highways,YTH,TTS Highways (OSY),Third Party Payments          ,500,Non-Program Carriageway Mntce ,Y7212.55560,55560, 04/07/2014,P2 907784,"8,657.79",Revenue,Eurovia Infrastructure Ltd,949196,
The Royal Borough of Kensington and Chelsea,RBKC,Corporate Services,COS,Human Resources,CHG,COS Learning and Development (OSC),Supplies and Services,400,Annual Programme              ,P4421.42515,42515, 04/07/2014,P2 907796,800.00,Revenue,PI Coaching Ltd,1107607,
The Royal Borough of Kensington and Chelsea,RBKC,Adult Social Care,ASC,Operations,AS6,ASC Learning Dis Local SWT (OSS),Third Party Payments          ,500,P&V Day Care                  ,S6125.54070,54070, 01/07/2014,P2 907810,"1,692.14",Revenue,Scope Fees Department,600441,
The Royal Borough of Kensington and Chelsea,RBKC,Corporate Services,COS,Revenues,CFR,COS Benefits (OSC),Supplies and Services,400,Computer Software Licences    ,P5915.43030,43030, 09/07/2014,P2 907945,"1,230.96",Revenue,Civica UK Ltd,1223139,
The Royal Borough of Kensington and Chelsea,RBKC,Children's Services,CHS,Family Services - RBKC,SKC,FCS Early Help (OSF),Supplies and Services,400,Stationery Purchase           ,S1950.41700,41700, 03/07/2014,P2 907959,536.42,Revenue,Posturite (UK) Ltd,601843,
The Royal Borough of Kensington and Chelsea,RBKC,Planning & Borough Development,PBD,Support Services & Executive,PS,PBD Land Charges (OST),Employees,100,Salaries Agency               ,T0120.12000,12000, 04/07/2014,P2 907962,"8,750.00",Revenue,Vector Resourcing Ltd,605020,
The Royal Borough of Kensington and Chelsea,RBKC,Children's Services,CHS,Family Services - RBKC,SKC,FCS Children with Disabilities (OSF),Third Party Payments          ,500,Supportive Care               ,S1752.54290,54290, 04/07/2014,P2 907987,"8,171.58",Revenue,Special People,625778,
The Royal Borough of Kensington and Chelsea,RBKC,"Envrmt,Leisure & Residents Svc",ELR,"Cleaner,Greener & Cultural Ser",YCG,ELR Museums Service (OSY),Supplies and Services,400,Maintenance Of Exhibits       ,L0303.40082,40082, 04/07/2014,P2 907992,"1,910.30",Revenue,Catherine Rickman Ltd,874088,
The Royal Borough of Kensington and Chelsea,RBKC,"Envrmt,Leisure & Residents Svc",ELR,"Cleaner,Greener & Cultural Ser",YCG,ELR Museums Service (OSY),Supplies and Services,400,Events                        ,L0303.45340,45340, 01/07/2014,P2 908002,900.00,Revenue,Payment to an individual or sole trader,1268471,
The Royal Borough of Kensington and Chelsea,RBKC,Children's Services,CHS,Children's Commissioning,SCC,FCS Grant to Vol.Orgs (OSF),Third Party Payments          ,500,Payments To Vol Orgs          ,E9763.53000,53000, 04/07/2014,P2 908011,"4,125.00",Revenue,RDE Associates Ltd,1335716,
The Royal Borough of Kensington and Chelsea,RBKC,Transport & Technical Srvcs,TTS,Transportation & Highways,YTH,TTS Transport Policy (OSY),Third Party Payments          ,500,Consultants - Traffic Orders  ,Y7130.54535,54535, 04/07/2014,P2 908013,"2,106.60",Revenue,Project Centre,601607,
The Royal Borough of Kensington and Chelsea,RBKC,Corporate Services,COS,Legal Services,CLA,COS Legal Planning (OSC),Third Party Payments          ,500,Counsels Fees                 ,P4341.54510.LBPDEV,54510, 02/07/2014,P2 908457,900.00,Revenue,Payment to an individual or sole trader,1150521,
The Royal Borough of Kensington and Chelsea,RBKC,Children's Services,CHS,Tri-Borough Education Service,SED,FCS SEN (OSF),Third Party Payments          ,500,Independent Schools           ,E5001.58010.RAMIREZC,58010, 01/07/2014,P2 908467,"6,681.08",Revenue,The Southover Partnership Ltd,871472,
The Royal Borough of Kensington and Chelsea,RBKC,Children's Services,CHS,Children's Commissioning,SCC,FCS School Meals Contracts (OSF),Supplies and Services,400,Catering Expenditure          ,E5531.41000,41000, 02/07/2014,P2 908475,952.91,Revenue,Cater Cover Service Ltd,1127283,
The Royal Borough of Kensington and Chelsea,RBKC,Children's Services,CHS,Tri-Borough Education Service,SED,COS ISD Equipment Orders (OSC),Supplies and Services,400,Computer Hardware Purchase    ,E5603.43000,43000, 04/07/2014,P2 908488,508.62,Revenue,Computacenter (UK) Ltd,608603,
The Royal Borough of Kensington and Chelsea,RBKC,Adult Social Care,ASC,Commissioning,AS4,ASC Tri Boro Procurem&Contract (OSS),Supplies and Services,400,Home Meals                    ,S3110.41120,41120, 03/07/2014,P2 908500,"11,844.68",Revenue,Sodexo Healthcare Services,1125343,
The Royal Borough of Kensington and Chelsea,RBKC,"Envrmt,Leisure & Residents Svc",ELR,"Cleaner,Greener & Cultural Ser",YCG,ELR Refuse & Cleansing (OSY),Premises Related,200,Rent Payments-Earl's Ct PC    ,Y2340.23020,23020, 04/07/2014,P2 908502,"1,570.75",Revenue,Transport Trading Ltd,602233,
The Royal Borough of Kensington and Chelsea,RBKC,Corporate Services,COS,Legal Services,CLA,COS Legal Planning (OSC),Third Party Payments          ,500,Counsels Fees                 ,P4341.54510.LBCMCT,54510, 04/07/2014,P2 908505,"2,028.00",Revenue,Payment to an individual or sole trader,1340429,
The Royal Borough of Kensington and Chelsea,RBKC,Adult Social Care,ASC,Operations,AS6,ASC Learning Dis Local SWT (OSS),Third Party Payments          ,500,Supported Living              ,S6123.54135,54135, 10/07/2014,P2 908506,"2,374.40",Revenue,Yarrow Housing Ltd,602070,
The Royal Borough of Kensington and Chelsea,RBKC,Public Health,PHL,Public Health,JPH,Sexual Health (),Third Party Payments          ,500,Contract Costs                ,J4200.55000,55000, 09/07/2014,P2 908509,772.50,Revenue,Pamodzi,1307877,
The Royal Borough of Kensington and Chelsea,RBKC,Adult Social Care,ASC,Operations,AS6,ASC Learning Dis Local SWT (OSS),Third Party Payments          ,500,P&V Supp Accom                ,S6125.54210,54210, 11/07/2014,P2 908517,"8,619.91",Revenue,Yarrow Housing Ltd,602070,
The Royal Borough of Kensington and Chelsea,RBKC,Adult Social Care,ASC,Operations,AS6,ASC Learning Dis Local SWT (OSS),Third Party Payments          ,500,Supported Living              ,S6123.54135,54135, 11/07/2014,P2 908518,"1,104.40",Revenue,Yarrow Housing Ltd,602070,
The Royal Borough of Kensington and Chelsea,RBKC,Children's Services,CHS,Family Services - RBKC,SKC,FCS AHDC & BFST (OSF),Supplies and Services,400,Equipment Purchase            ,S1755.40080,40080, 04/07/2014,P2 908695,899.85,Revenue,TTS Group Ltd,778007,
The Royal Borough of Kensington and Chelsea,RBKC,Transport & Technical Srvcs,TTS,Transportation & Highways,YTH,TTS Alan Moore-Lighting (OSY),Third Party Payments          ,500,Column Corrosion Testing      ,Y7254.55892,55892, 09/07/2014,P2 908696,"10,090.52",Revenue,Eurovia Infrastructure Ltd,949196,
The Royal Borough of Kensington and Chelsea,RBKC,"Envrmt,Leisure & Residents Svc",ELR,"Cleaner,Greener & Cultural Ser",YCG,ELR OHP General (OSY),Supplies and Services,400,Entertainements Licensing     ,L0311.45530,45530, 04/07/2014,P2 908703,716.37,Revenue,Clarke Nicholls and Marcel,601836,
The Royal Borough of Kensington and Chelsea,RBKC,Children's Services,CHS,Family Services - RBKC,SKC,FCS Leaving Care (OSF),Third Party Payments          ,500,Supported Living              ,S1425.54135,54135, 04/07/2014,P2 908704,"1,320.00",Revenue,Payment to an individual or sole trader,1339104,
The Royal Borough of Kensington and Chelsea,RBKC,Corporate Services,COS,Non Revenue,001,COS FM Print & Mailroom Servic (OSC),Balance Sheet,002,Payments                      ,C1703.00306,00306, 04/07/2014,P2 908799,"27,098.22",Holding Control Account,Konica Minolta Business Solutions (UK),600554,
The Royal Borough of Kensington and Chelsea,RBKC,Adult Social Care,ASC,Operations,AS6,ASC Learning Dis Local SWT (OSS),Third Party Payments          ,500,Payments To Vol Orgs          ,S6121.53000,53000, 30/07/2014,P2 908818,"29,772.00",Revenue,Look Ahead Housing & Care Ltd,600269,
The Royal Borough of Kensington and Chelsea,RBKC,Children's Services,CHS,Tri-Borough Education Service,SED,FCS Education Psychology (OSF),Employees,100,Training Expenses             ,E5603.19090,19090, 03/07/2014,P2 908977,614.25,Revenue,London Borough Of Hammersmith & Fulham,600048,
The Royal Borough of Kensington and Chelsea,RBKC,"Library,Archive & Heritage Svc",LAH,LibrarySupt Services,LSS,LAH Library Technical Services (OSF),Third Party Payments          ,500,Library Systems Management    ,L0111.55961.LGFLCHE,55961, 02/07/2014,P2 908978,"7,157.00",Revenue,London Grid for Learning Trust,609192,
The Royal Borough of Kensington and Chelsea,RBKC,Children's Services,CHS,Family Services - RBKC,SKC,FCS Ladbroke South SWT (OSF),Third Party Payments          ,500,S17 Assistance                ,S1741.54390,54390, 09/07/2014,P2 908980,904.00,Revenue,Kids,604442,
The Royal Borough of Kensington and Chelsea,RBKC,"Envrmt,Leisure & Residents Svc",ELR,Non Revenue,001,ELR Leisure Capital Projs (OSY),Capital,003,Construction-Main Ctrctrs A/C ,X6312.00090,00090, 04/07/2014,P2 908985,"21,643.07",Capital,Greenwich Leisure Ltd (GLL),1085999,
The Royal Borough of Kensington and Chelsea,RBKC,Corporate Services,COS,Strategy & Local Services,CPU,COS Electoral Services (OSC),Premises Related,200,Rent Payments                 ,P2102.23000,23000, 11/07/2014,P2 908993,500.00,Revenue,Coptic Orthodox Church Foundation,1023620,
The Royal Borough of Kensington and Chelsea,RBKC,Children's Services,CHS,Family Services - RBKC,SKC,FCS Children with Disabilities (OSF),Transport Related,300,Client Travel Costs           ,S1752.32140,32140, 04/07/2014,P2 908994,"1,085.80",Revenue,Westway Community Transport,600313,
The Royal Borough of Kensington and Chelsea,RBKC,Children's Services,CHS,Family Services - RBKC,SKC,FCS Children with Disabilities (OSF),Supplies and Services,400,Pcard- GeneralRetail&Wholesale,S1750.45964,45964, 11/07/2014,P2 908995,610.00,Revenue,Mounts & More Ltd,1339689,
The Royal Borough of Kensington and Chelsea,RBKC,Corporate Services,COS,Strategy & Local Services,CPU,COS Civic Ceremonial (OSC),Supplies and Services,400,Mayoral Expenses              ,P2501.43800,43800, 10/07/2014,P2 908996,"1,196.10",Revenue,Lea and Sandeman Co Ltd,1201605,
The Royal Borough of Kensington and Chelsea,RBKC,Children's Services,CHS,Children's Commissioning,SCC,CHS Workforce Development Team (OSF),Third Party Payments          ,500,Foster Carers Training        ,E9752.57515,57515, 11/07/2014,P2 909008,538.65,Revenue,Brighter Future Solutions Ltd,1210717,
The Royal Borough of Kensington and Chelsea,RBKC,Transport & Technical Srvcs,TTS,Transportation & Highways,YTH,TTS Highways (OSY),Third Party Payments          ,500,Programmed Footway Maintenance,Y7214.55500,55500, 09/07/2014,P2 909015,"17,550.00",Revenue,J Murphy & Sons Ltd,611144,
The Royal Borough of Kensington and Chelsea,RBKC,Planning & Borough Development,PBD,Building Control,PB,PBD Building Control (OST),Third Party Payments          ,500,Consultants                   ,T0400.54530,54530, 10/07/2014,P2 909017,910.00,Revenue,Monson Engineering Ltd,1290456,
The Royal Borough of Kensington and Chelsea,RBKC,Corporate Services,COS,Financial Services,CFS,COS Group Finance (OSC),Supplies and Services,400,Subscriptions                 ,P5602.44200,44200, 11/07/2014,P2 909020,"9,409.00",Revenue,Localis Research Ltd,896027,
The Royal Borough of Kensington and Chelsea,RBKC,Corporate Services,COS,Strategy & Local Services,CPU,COS Civic Ceremonial (OSC),Supplies and Services,400,Mayoral Expenses              ,P2501.43800,43800, 11/07/2014,P2 909021,"2,640.00",Revenue,Julia Robinson Catering Ltd,1327939,
The Royal Borough of Kensington and Chelsea,RBKC,Children's Services,CHS,Family Services - RBKC,SKC,FCS The Virtual School (OSF),Third Party Payments          ,500,Other Client Expenditure-Educ ,S1018.54321,54321, 09/07/2014,P2 909071,800.00,Revenue,Aimhigher London South Ltd,1019619,
The Royal Borough of Kensington and Chelsea,RBKC,Transport & Technical Srvcs,TTS,Transportation & Highways,YTH,TTS Road Safety & Travel Plan (OSY),Supplies and Services,400,Initiatives                   ,Y7112.45370.ST14007,45370, 11/07/2014,P2 909090,"1,819.00",Revenue,Mattinson Partnership,1340496,
The Royal Borough of Kensington and Chelsea,RBKC,Children's Services,CHS,Family Services - RBKC,SKC,FCS Portobello South SWT (OSF),Third Party Payments          ,500,P & V Fostering               ,S1632.54005,54005, 01/07/2014,P2 909407,"5,284.80",Revenue,Integrated Services Programme,604978,
The Royal Borough of Kensington and Chelsea,RBKC,Children's Services,CHS,Family Services - RBKC,SKC,FCS Portobello South SWT (OSF),Third Party Payments          ,500,Hotel BandB Accommodation     ,S1632.54170,54170, 04/07/2014,P2 909409,741.52,Revenue,Earls Court YMCA,601331,
The Royal Borough of Kensington and Chelsea,RBKC,Adult Social Care,ASC,Commissioning,AS4,FCS Schools Finance Central (OSF),Third Party Payments          ,500,Contracted Transport          ,S6114.55320,55320, 04/07/2014,P2 909428,"2,011.00",Revenue,Westway Ct Trading Ltd,1300591,
The Royal Borough of Kensington and Chelsea,RBKC,Adult Social Care,ASC,Non Revenue,001,ASC Contract Serv-Comm Equip (OSS),Balance Sheet,002,Payments                      ,B2168.05471,05471, 09/07/2014,P2 909433,"1,564.00",Control Account Balance Sheet,Creative Software Solutions (Europe) Ltd,1269887,
The Royal Borough of Kensington and Chelsea,RBKC,Children's Services,CHS,Tri-Borough Education Service,SED,FCS Schools Finance Central (OSF),Third Party Payments          ,500,General Hired & Contracted Ser,E5608.54505,54505, 02/07/2014,P2 909437,"21,254.46",Revenue,Star Cars Ltd,829738,
The Royal Borough of Kensington and Chelsea,RBKC,Children's Services,CHS,Tri-Borough Education Service,SED,FCS Schools Finance Central (OSF),Third Party Payments          ,500,General Hired & Contracted Ser,E5608.54505,54505, 04/07/2014,P2 909442,910.00,Revenue,IHS Corporation Ltd,1336441,
The Royal Borough of Kensington and Chelsea,RBKC,"Envrmt,Leisure & Residents Svc",ELR,Non Revenue,001,TTS Streetscape (OSY),Capital,003,Construction-Main Ctrctrs A/C ,X6367.00090,00090, 04/07/2014,P2 909443,"11,754.69",Capital,Eurovia Infrastructure Ltd,949196,
The Royal Borough of Kensington and Chelsea,RBKC,Children's Services,CHS,Family Services - RBKC,SKC,Fleet Transport (OSS),Transport Related,300,Vehicle Fuel                  ,S1755.31000,31000, 08/07/2014,P2 909445,706.80,Revenue,Lex Autolease Ltd,903962,
The Royal Borough of Kensington and Chelsea,RBKC,Housing Services,HOS,Hsg Needs and Homelessness,HNH,HOS Temp Accommodation (OSS),Third Party Payments          ,500,B&B Accomm-Statutory Homeless ,H6400.54711,54711, 02/07/2014,P2 909456,"7,392.00",Revenue,Ferndell Ltd,602671,
The Royal Borough of Kensington and Chelsea,RBKC,Adult Social Care,ASC,Commissioning,AS4,FCS Schools Finance Central (OSF),Third Party Payments          ,500,Contracted Transport          ,S6114.55320,55320, 10/07/2014,P2 909488,867.25,Revenue,Westway Ct Trading Ltd,1300591,
The Royal Borough of Kensington and Chelsea,RBKC,Corporate Services,COS,"Finance, Info Systems&Property",CFI,COS AssetMngt & Capital Prjcts (OSC),Capital,003,Construction-Main Ctrctrs A/C ,Q3511.00090,00090, 11/07/2014,P2 909489,"556,440.50",Capital,ITC Concepts Ltd,837705,
The Royal Borough of Kensington and Chelsea,RBKC,Public Health,PHL,Public Health,JPH,NHS Health Check Progrme & Oth (),Third Party Payments          ,500,Contract Costs                ,J4102.55000,55000, 11/07/2014,P2 909490,980.00,Revenue,At Medics Ltd,1309153,
The Royal Borough of Kensington and Chelsea,RBKC,Adult Social Care,ASC,Provided Services/ MH Partners,AS5,ASC Finance (OSS),Third Party Payments          ,500,VO Supp Accomodation          ,S5025.53032,53032, 01/07/2014,P2 910030,"36,364.70",Revenue,London Cyrenians Housing Ltd,600129,
The Royal Borough of Kensington and Chelsea,RBKC,Transport & Technical Srvcs,TTS,Transportation & Highways,YTH,TTS Ken King-Lighting (OSY),Third Party Payments          ,500,KP Lighting                   ,Y7254.55830,55830, 10/07/2014,P2 910041,"1,350.00",Revenue,Bronze Restorations,600382,
The Royal Borough of Kensington and Chelsea,RBKC,Children's Services,CHS,Family Services - RBKC,SKC,FCS Early Help (OSF),Employees,100,Training Expenses             ,S1950.19090,19090, 10/07/2014,P2 910042,"3,617.15",Revenue,Triangle Consulting Social Enterprise Lt,1213255,
The Royal Borough of Kensington and Chelsea,RBKC,Adult Social Care,ASC,Procurement & Bus Intelligence,AS3,ASC L&D (OSS),Employees,100,Training Expenses             ,S0021.19090,19090, 10/07/2014,P2 910043,595.00,Revenue,Payment to an individual or sole trader,603104,
The Royal Borough of Kensington and Chelsea,RBKC,"Envrmt,Leisure & Residents Svc",ELR,"Cleaner,Greener & Cultural Ser",YCG,ELR OHP Production (OSY),Supplies and Services,400,Music Staff and Costs         ,L0391.45128,45128, 01/07/2014,P2 913038,700.00,Revenue,Payment to an individual or sole trader,1335444,
The Royal Borough of Kensington and Chelsea,RBKC,Planning & Borough Development,PBD,Planning Services,PP,PBD Specialists (OST),Premises Related,200,Tree Maintenance              ,T0290.20910,20910, 02/07/2014,P2 913047,"8,792.00",Revenue,J Murphy & Sons Ltd,611144,
The Royal Borough of Kensington and Chelsea,RBKC,Transport & Technical Srvcs,TTS,Transportation & Highways,YTH,TTS Graham Shoesmith-Lighting (OSY),Third Party Payments          ,500,White Lights � Relighting     ,Y7252.55797,55797, 09/07/2014,P2 913054,588.81,Revenue,Eurovia Infrastructure Ltd,949196,
The Royal Borough of Kensington and Chelsea,RBKC,Transport & Technical Srvcs,TTS,Transportation & Highways,YTH,TTS Graham Shoesmith-Lighting (OSY),Third Party Payments          ,500,White Lights � Relighting     ,Y7252.55797,55797, 09/07/2014,P2 913055,590.90,Revenue,Eurovia Infrastructure Ltd,949196,
The Royal Borough of Kensington and Chelsea,RBKC,Transport & Technical Srvcs,TTS,Transportation & Highways,YTH,TTS Graham Shoesmith-Lighting (OSY),Third Party Payments          ,500,Painting                      ,Y7254.55620,55620, 09/07/2014,P2 913056,"2,616.90",Revenue,Eurovia Infrastructure Ltd,949196,
The Royal Borough of Kensington and Chelsea,RBKC,Transport & Technical Srvcs,TTS,Transportation & Highways,YTH,TTS Graham Shoesmith-Lighting (OSY),Third Party Payments          ,500,Painting                      ,Y7254.55620,55620, 09/07/2014,P2 913059,"37,985.95",Revenue,Eurovia Infrastructure Ltd,949196,
The Royal Borough of Kensington and Chelsea,RBKC,"Envrmt,Leisure & Residents Svc",ELR,"Cleaner,Greener & Cultural Ser",YCG,ELR OHP Production (OSY),Supplies and Services,400,Artistic Team                 ,L0392.45122,45122, 01/07/2014,P2 913060,"2,500.00",Revenue,Payment to an individual or sole trader,1243482,
The Royal Borough of Kensington and Chelsea,RBKC,Corporate Services,COS,Legal Services,CLA,COS Legal Litigation (OSC),Third Party Payments          ,500,Counsels Fees                 ,P4341.54510.LBHSHH,54510, 11/07/2014,P2 913078,560.00,Revenue,Payment to an individual or sole trader,781107,
The Royal Borough of Kensington and Chelsea,RBKC,"Envrmt,Leisure & Residents Svc",ELR,Safer Neighbourhoods,YSN,ELR Parks and Cemeteries (OSY),Premises Related,200,Parks Horticultural Services  ,Y2720.20900,20900, 10/07/2014,P2 913086,660.00,Revenue,Ustigate Ltd,1075850,
The Royal Borough of Kensington and Chelsea,RBKC,"Envrmt,Leisure & Residents Svc",ELR,"Cleaner,Greener & Cultural Ser",YCG,ELR OHP Production (OSY),Supplies and Services,400,Principals                    ,L0391.45121,45121, 11/07/2014,P2 913088,"2,300.00",Revenue,Musichall Ltd,603597,
The Royal Borough of Kensington and Chelsea,RBKC,Adult Social Care,ASC,Operations,AS6,ASC E Monitoring Team (OSS),Third Party Payments          ,500,Home Care                     ,S6520.54452,54452, 11/07/2014,P2 913091,753.76,Revenue,Carewatch (Kensington & Chelsea),821083,
The Royal Borough of Kensington and Chelsea,RBKC,Transport & Technical Srvcs,TTS,Transportation & Highways,YTH,TTS Transportation Contracts (OSY),Supplies and Services,400,Initiatives                   ,Y7131.45370.CN14012,45370, 11/07/2014,P2 913092,645.00,Revenue,Traffic Survey Partners Ltd,1271560,
The Royal Borough of Kensington and Chelsea,RBKC,Corporate Services,COS,Human Resources,CHG,COS Learning and Development (OSC),Supplies and Services,400,Annual Programme              ,P4421.42515,42515, 14/07/2014,P2 913093,"1,515.00",Revenue,Client & Customer Focus,864419,
The Royal Borough of Kensington and Chelsea,RBKC,Adult Social Care,ASC,Operations,AS6,ASC Community Team South (OSS),Third Party Payments          ,500,Supported Living              ,S3801.54135,54135, 01/07/2014,P2 913095,"1,384.00",Revenue,Broadway House,602461,
The Royal Borough of Kensington and Chelsea,RBKC,Adult Social Care,ASC,Operations,AS6,ASC Learning Dis Local SWT (OSS),Third Party Payments          ,500,Supported Living              ,S6123.54135,54135, 16/07/2014,P2 913100,740.00,Revenue,Newton Dee Camphill Community Ltd,859666,
The Royal Borough of Kensington and Chelsea,RBKC,Transport & Technical Srvcs,TTS,Transportation & Highways,YTH,TTS Parking Cust Serv/Refund (OSY),Supplies and Services,400,Postage/Franking Charges      ,Y8345.43300,43300, 03/07/2014,P2 913101,"1,968.82",Revenue,Royal Mail,600096,
The Royal Borough of Kensington and Chelsea,RBKC,Children's Services,CHS,Tri-Borough Education Service,SED,FCS Music Services (OSF),Supplies and Services,400,EDP/CPD                       ,E3551.46975,46975, 11/07/2014,P2 913105,800.00,Revenue,Payment to an individual or sole trader,856876,
The Royal Borough of Kensington and Chelsea,RBKC,Transport & Technical Srvcs,TTS,Transportation & Highways,YTH,TTS Parking Divisional Expend (OSY),Third Party Payments          ,500,Enforcement-Core & Other Serv ,Y8345.56030,56030, 16/07/2014,P2 913109,992.40,Revenue,Mouchel,1013834,
The Royal Borough of Kensington and Chelsea,RBKC,Children's Services,CHS,Family Services - RBKC,SKC,FCS Healthlink SWT (OSF),Third Party Payments          ,500,Hotel BandB Accommodation     ,S1862.54170,54170, 17/07/2014,P2 913112,900.00,Revenue,Jamma Umoja (Community Services) Ltd,604497,
The Royal Borough of Kensington and Chelsea,RBKC,Housing Services,HOS,Housing Commissioning,HCM,HOS HSG Partnership & Perf (OSS),Third Party Payments          ,500,TMO Management Fee            ,H6955.54730,54730, 01/07/2014,P2 913118,"6,000.00",Revenue,RBKC - TMO Ltd,602155,
The Royal Borough of Kensington and Chelsea,RBKC,Adult Social Care,ASC,Provided Services/ MH Partners,AS5,ASC Finance (OSS),Third Party Payments          ,500,P&V Day Care                  ,S3520.54070,54070, 01/07/2014,P2 913191,"8,962.52",Revenue,Care UK Community Partnerships Ltd,827725,
The Royal Borough of Kensington and Chelsea,RBKC,"Envrmt,Leisure & Residents Svc",ELR,"Cleaner,Greener & Cultural Ser",YCG,ELR OHP Production (OSY),Supplies and Services,400,Rehearsals and Auditions      ,L0394.45127,45127, 03/07/2014,P2 913195,"6,300.00",Revenue,North Lambeth Circuit,1236025,
The Royal Borough of Kensington and Chelsea,RBKC,"Envrmt,Leisure & Residents Svc",ELR,"Cleaner,Greener & Cultural Ser",YCG,ELR OHP Production (OSY),Supplies and Services,400,Wigs and Make Up              ,L0392.45138,45138, 03/07/2014,P2 913196,"3,765.00",Revenue,Ray Marston Wig Studio Ltd,1339885,
The Royal Borough of Kensington and Chelsea,RBKC,"Envrmt,Leisure & Residents Svc",ELR,"Cleaner,Greener & Cultural Ser",YCG,ELR OHP Production (OSY),Supplies and Services,400,Artistic Team                 ,L0392.45122,45122, 07/07/2014,P2 913199,"2,000.00",Revenue,Payment to an individual or sole trader,803600,
The Royal Borough of Kensington and Chelsea,RBKC,Transport & Technical Srvcs,TTS,Transportation & Highways,YTH,TTS Highways (OSY),Third Party Payments          ,500,Street Name Plates            ,Y7220.55660,55660, 02/07/2014,P2 913200,"2,490.54",Revenue,J Murphy & Sons Ltd,611144,
The Royal Borough of Kensington and Chelsea,RBKC,Adult Social Care,ASC,Provided Services/ MH Partners,AS5,ASC Finance (OSS),Third Party Payments          ,500,Supported Living              ,S5129.54135,54135, 01/07/2014,P2 913202,"5,202.86",Revenue,London Cyrenians Housing Ltd,600129,
The Royal Borough of Kensington and Chelsea,RBKC,Adult Social Care,ASC,Provided Services/ MH Partners,AS5,ASC Finance (OSS),Third Party Payments          ,500,Supported Living              ,S5129.54135,54135, 01/07/2014,P2 913203,"5,202.86",Revenue,London Cyrenians Housing Ltd,600129,
The Royal Borough of Kensington and Chelsea,RBKC,Adult Social Care,ASC,Provided Services/ MH Partners,AS5,ASC Finance (OSS),Third Party Payments          ,500,P&V Supp Accom                ,S5025.54210,54210, 01/07/2014,P2 913204,"29,998.44",Revenue,London Cyrenians Housing Ltd,600129,
The Royal Borough of Kensington and Chelsea,RBKC,Adult Social Care,ASC,Commissioning,AS4,ASC Finance (OSS),Third Party Payments          ,500,VO Supp Accom                 ,S6700.54200,54200, 01/07/2014,P2 913205,"7,274.59",Revenue,London Cyrenians Housing Ltd,600129,
The Royal Borough of Kensington and Chelsea,RBKC,Adult Social Care,ASC,Commissioning,AS4,ASC Finance (OSS),Third Party Payments          ,500,VO Supp Accom                 ,S6700.54200,54200, 01/07/2014,P2 913206,"9,504.54",Revenue,London Cyrenians Housing Ltd,600129,
The Royal Borough of Kensington and Chelsea,RBKC,Transport & Technical Srvcs,TTS,Transportation & Highways,YTH,TTS Parking Divisional Expend (OSY),Third Party Payments          ,500,P&D Metric Contract           ,Y8300.55970,55970, 04/07/2014,P2 913210,"26,880.18",Revenue,Metric Group Ltd,611187,
The Royal Borough of Kensington and Chelsea,RBKC,Corporate Services,COS,Tri-B Innovation/Change Mngmnt,CTA,COS ISD Equipment Orders (OSC),Supplies and Services,400,Computer Software Purchase    ,P5793.43050,43050, 11/07/2014,P2 913215,"20,907.26",Revenue,Trustmarque Solutions Ltd,600181,
The Royal Borough of Kensington and Chelsea,RBKC,"Envrmt,Leisure & Residents Svc",ELR,"Cleaner,Greener & Cultural Ser",YCG,ELR OHP Production (OSY),Supplies and Services,400,Principals                    ,L0391.45121,45121, 21/07/2014,P2 913224,"5,600.00",Revenue,Askonas Holt Ltd,911642,
The Royal Borough of Kensington and Chelsea,RBKC,Children's Services,CHS,Tri-Borough Education Service,SED,FCS SEN (OSF),Third Party Payments          ,500,LOVAAS Payment                ,E5002.58015.WALKER,58015, 04/07/2014,P2 913236,525.00,Revenue,Payment to an individual or sole trader,1313411,
The Royal Borough of Kensington and Chelsea,RBKC,Children's Services,CHS,Family Services - RBKC,SKC,FCS Leaving Care (OSF),Third Party Payments          ,500,Section 24 Accomodation       ,S1425.54080,54080, 01/07/2014,P2 913240,"2,472.00",Revenue,Support Link Services Ltd,1141541,
The Royal Borough of Kensington and Chelsea,RBKC,Children's Services,CHS,Tri-Borough Education Service,SED,FCS SEN (OSF),Third Party Payments          ,500,Independent Schools           ,E5002.58010.LOLLID,58010, 04/07/2014,P2 913242,"1,831.25",Revenue,Payment to an individual or sole trader,1322864,
The Royal Borough of Kensington and Chelsea,RBKC,Children's Services,CHS,Tri-Borough Education Service,SED,FCS SEN (OSF),Third Party Payments          ,500,LOVAAS Payment                ,E5002.58015.MOSTAQUE,58015, 04/07/2014,P2 913243,552.50,Revenue,Payment to an individual or sole trader,1334183,
The Royal Borough of Kensington and Chelsea,RBKC,"Envrmt,Leisure & Residents Svc",ELR,"Cleaner,Greener & Cultural Ser",YCG,ELR OHP Production (OSY),Supplies and Services,400,Chorus                        ,L0393.45123,45123, 04/07/2014,P2 913563,"2,000.00",Revenue,Payment to an individual or sole trader,1337843,
The Royal Borough of Kensington and Chelsea,RBKC,"Envrmt,Leisure & Residents Svc",ELR,"Cleaner,Greener & Cultural Ser",YCG,ELR OHP Production (OSY),Supplies and Services,400,Chorus                        ,L0393.45123,45123, 04/07/2014,P2 913568,"4,000.00",Revenue,Payment to an individual or sole trader,1310969,
The Royal Borough of Kensington and Chelsea,RBKC,"Envrmt,Leisure & Residents Svc",ELR,"Cleaner,Greener & Cultural Ser",YCG,ELR OHP Production (OSY),Supplies and Services,400,Chorus                        ,L0393.45123,45123, 11/07/2014,P2 913577,"2,000.00",Revenue,Payment to an individual or sole trader,1329030,
The Royal Borough of Kensington and Chelsea,RBKC,Children's Services,CHS,Children's Commissioning,SCC,FCS School Meals Contracts (OSF),Premises Related,200,Building Mtce                 ,E5531.20010,20010, 11/07/2014,P2 913584,850.00,Revenue,M P Wharmby Ltd,977461,
The Royal Borough of Kensington and Chelsea,RBKC,Children's Services,CHS,Family Services - RBKC,SKC,FCS Recruitment & Assessment (OSF),Supplies and Services,400,Advertising                   ,S1461.45445,45445, 11/07/2014,P2 913585,"1,992.00",Revenue,Neighbourhood Direct Ltd,1340650,
The Royal Borough of Kensington and Chelsea,RBKC,Corporate Services,COS,Non Revenue,001,COS Risk Management & Insuranc (OSC),Balance Sheet,002,Expenditure                   ,B1751.07011,07011, 04/07/2014,P2 913589,677.97,Control Account Balance Sheet,Payment to an individual or sole trader,602245,
The Royal Borough of Kensington and Chelsea,RBKC,"Envrmt,Leisure & Residents Svc",ELR,"Cleaner,Greener & Cultural Ser",YCG,ELR OHP Production (OSY),Supplies and Services,400,Chorus                        ,L0393.45123,45123, 10/07/2014,P2 913594,"2,000.00",Revenue,Payment to an individual or sole trader,1311822,
The Royal Borough of Kensington and Chelsea,RBKC,Transport & Technical Srvcs,TTS,Environmental Health,YEH,TTS Operational Support (OSS),Third Party Payments          ,500,Consultants                   ,Y4073.54530,54530, 10/07/2014,P2 913597,799.74,Revenue,TRL Ltd,607100,
The Royal Borough of Kensington and Chelsea,RBKC,"Envrmt,Leisure & Residents Svc",ELR,"Cleaner,Greener & Cultural Ser",YCG,ELR OHP Production (OSY),Supplies and Services,400,Chorus                        ,L0393.45123,45123, 10/07/2014,P2 913598,"1,500.00",Revenue,Payment to an individual or sole trader,1329031,
The Royal Borough of Kensington and Chelsea,RBKC,Transport & Technical Srvcs,TTS,Non Revenue,001,TTS TAPs and LSSs (OSY),Capital,003,Construction-Main Ctrctrs A/C ,X5006.00090,00090, 16/07/2014,P2 913599,"1,644.09",Capital,Project Centre,601607,
The Royal Borough of Kensington and Chelsea,RBKC,Transport & Technical Srvcs,TTS,Environmental Health,YEH,TTS Operational Support (OSS),Supplies and Services,400,Equipment-Maintenance         ,Y4067.40310,40310, 04/07/2014,P2 913602,833.92,Revenue,Bureau Veritas UK Ltd,786765,
The Royal Borough of Kensington and Chelsea,RBKC,"Envrmt,Leisure & Residents Svc",ELR,"Cleaner,Greener & Cultural Ser",YCG,ELR OHP Production (OSY),Supplies and Services,400,LX Technical Staff            ,L0393.45135,45135, 02/07/2014,P2 913611,"1,000.00",Revenue,Payment to an individual or sole trader,1338431,
The Royal Borough of Kensington and Chelsea,RBKC,"Envrmt,Leisure & Residents Svc",ELR,"Cleaner,Greener & Cultural Ser",YCG,ELR OHP Production (OSY),Supplies and Services,400,Stage Management              ,L0395.45137,45137, 02/07/2014,P2 913612,"2,000.00",Revenue,Payment to an individual or sole trader,1310876,
The Royal Borough of Kensington and Chelsea,RBKC,"Envrmt,Leisure & Residents Svc",ELR,"Cleaner,Greener & Cultural Ser",YCG,ELR OHP Production (OSY),Supplies and Services,400,Stage Management              ,L0395.45137,45137, 02/07/2014,P2 913613,"1,600.00",Revenue,Payment to an individual or sole trader,1330190,
The Royal Borough of Kensington and Chelsea,RBKC,"Envrmt,Leisure & Residents Svc",ELR,"Cleaner,Greener & Cultural Ser",YCG,ELR OHP Production (OSY),Supplies and Services,400,Stage Management              ,L0393.45137,45137, 02/07/2014,P2 913614,"1,080.00",Revenue,Payment to an individual or sole trader,1333703,
The Royal Borough of Kensington and Chelsea,RBKC,Corporate Services,COS,Information Systems,CIS,COS ISD Network and Telecomms (OSC),Supplies and Services,400,Computer Supplies-Misc        ,P4826.43060,43060, 04/07/2014,P2 914172,"2,919.10",Revenue,Khipu Networks,1080971,
The Royal Borough of Kensington and Chelsea,RBKC,Corporate Services,COS,Customer Services,CFC,COS Customer Services (OSC),Third Party Payments          ,500,Contractors Costs             ,P4640.55170,55170, 04/07/2014,P2 914173,"7,627.19",Revenue,General Dynamics IT Ltd,1278782,
The Royal Borough of Kensington and Chelsea,RBKC,Corporate Services,COS,Information Systems,CIS,COS ISD Training (OSC),Supplies and Services,400,Internet Charges              ,P4826.43250,43250, 02/07/2014,P2 914180,"51,318.00",Revenue,London Grid for Learning Trust,609192,
The Royal Borough of Kensington and Chelsea,RBKC,Transport & Technical Srvcs,TTS,Transportation & Highways,YTH,COS ISD Network and Telecomms (OSC),Supplies and Services,400,Mobile Phone Charges          ,Y8200.43280,43280, 04/07/2014,P2 914181,817.50,Revenue,O2,622622,
The Royal Borough of Kensington and Chelsea,RBKC,Corporate Services,COS,Non Revenue,001,COS ISD Training (OSC),Balance Sheet,002,Telephone Charges             ,C1068.00660,00660, 11/07/2014,P2 914182,"10,692.22",Holding Control Account,Easynet Managed Services Ltd,1070857,
The Royal Borough of Kensington and Chelsea,RBKC,Corporate Services,COS,Information Systems,CIS,COS ISD Network and Telecomms (OSC),Supplies and Services,400,Mobile Phone Charges          ,P4826.43280,43280, 16/07/2014,P2 914197,"1,070.00",Revenue,Data Select Ltd,1251858,
The Royal Borough of Kensington and Chelsea,RBKC,"Envrmt,Leisure & Residents Svc",ELR,Safer Neighbourhoods,YSN,ELR Parks and Cemeteries (OSY),Premises Related,200,Planned Park Maintenance      ,Y2720.20820,20820, 11/07/2014,P2 914201,"1,767.20",Revenue,Wicksteed Leisure Ltd,775453,
The Royal Borough of Kensington and Chelsea,RBKC,Corporate Services,COS,Customer Services,CFC,COS Customer Services (OSC),Supplies and Services,400,Subscriptions                 ,P4640.44200,44200, 03/07/2014,P2 914210,"1,500.00",Revenue,CIPFA Business Ltd,600140,
The Royal Borough of Kensington and Chelsea,RBKC,"Envrmt,Leisure & Residents Svc",ELR,"Cleaner,Greener & Cultural Ser",YCG,ELR Museums Service (OSY),Third Party Payments          ,500,Consultants                   ,L0396.54530,54530, 04/07/2014,P2 914220,"2,500.00",Revenue,Sutton PR Ltd,1339069,
The Royal Borough of Kensington and Chelsea,RBKC,"Envrmt,Leisure & Residents Svc",ELR,"Cleaner,Greener & Cultural Ser",YCG,ELR Museums Service (OSY),Supplies and Services,400,Events                        ,L0303.45340,45340, 17/07/2014,P2 914225,550.00,Revenue,Toby's Tents,1284053,
The Royal Borough of Kensington and Chelsea,RBKC,Corporate Services,COS,Information Systems,CIS,COS ISD General (OSC),Supplies and Services,400,IT Enhancements               ,P4810.43170,43170, 11/07/2014,P2 914612,"1,674.75",Revenue,Handset Solutions Ltd,1274722,
The Royal Borough of Kensington and Chelsea,RBKC,Adult Social Care,ASC,Non Revenue,001,ASC Finance (OSS),Balance Sheet,002,Payments                      ,B2236.05471,05471, 03/07/2014,P2 914613,"29,725.00",Control Account Balance Sheet,London Borough Of Hammersmith & Fulham,600048,
The Royal Borough of Kensington and Chelsea,RBKC,Transport & Technical Srvcs,TTS,Transportation & Highways,YTH,TTS Road Safety & Travel Plan (OSY),Supplies and Services,400,Initiatives                   ,Y7114.45370.ST14009,45370, 10/07/2014,P2 914615,"2,167.50",Revenue,Payment to an individual or sole trader,1273235,
The Royal Borough of Kensington and Chelsea,RBKC,Corporate Services,COS,Information Systems,CIS,COS ISD General (OSC),Supplies and Services,400,IT Enhancements               ,P4810.43170,43170, 11/07/2014,P2 914619,"5,049.00",Revenue,Hands Free Computing Ltd,632452,
The Royal Borough of Kensington and Chelsea,RBKC,Corporate Services,COS,Information Systems,CIS,COS ISD Network and Telecomms (OSC),Supplies and Services,400,Computer Software Purchase    ,P4817.43050,43050, 11/07/2014,P2 914621,"12,900.00",Revenue,Encription Ltd,1340670,
The Royal Borough of Kensington and Chelsea,RBKC,Corporate Services,COS,Revenues,CFR,COS Council Tax & Revenues IT (OSC),Supplies and Services,400,Postages                      ,P5810.43301,43301, 11/07/2014,P2 914635,"2,311.35",Revenue,Financial Data Management Ltd,601031,
The Royal Borough of Kensington and Chelsea,RBKC,Children's Services,CHS,Family Services - RBKC,SKC,FCS Portobello South SWT (OSF),Third Party Payments          ,500,Semi Independent              ,S1632.54130,54130, 01/07/2014,P2 914637,"2,600.00",Revenue,Support Link Services Ltd,1141541,
The Royal Borough of Kensington and Chelsea,RBKC,Corporate Services,COS,Non Revenue,001,COS FM Energy (OSC),Balance Sheet,002,Payments                      ,C1707.00306,00306, 02/07/2014,P2 914643,"15,700.51",Holding Control Account,Corona Energy Retail 4 Ltd,1250924,
The Royal Borough of Kensington and Chelsea,RBKC,Corporate Services,COS,Information Systems,CIS,COS Information Security (OSC),Supplies and Services,400,Computers SPACE Standard      ,P4830.43005,43005, 17/07/2014,P2 914645,"11,814.00",Revenue,Software Box Ltd,1215780,
The Royal Borough of Kensington and Chelsea,RBKC,Corporate Services,COS,Strategy & Local Services,CPU,COS Recruitment (OSC),Employees,100,Recruitment Advertising       ,P4205.18410,18410, 15/07/2014,P2 914646,640.00,Revenue,Penna PLC,1105134,
The Royal Borough of Kensington and Chelsea,RBKC,Public Health,PHL,Public Health,JPH,Seasonal Mortality (),Third Party Payments          ,500,Contract Costs                ,J4215.55000,55000, 07/07/2014,P2 914655,"47,500.00",Revenue,Dalgarno Neighbourhood Trust Ltd,916918,
The Royal Borough of Kensington and Chelsea,RBKC,Corporate Services,COS,Non Revenue,001,COS Risk Management & Insuranc (OSC),Balance Sheet,002,Expenditure                   ,B1750.07011,07011, 17/07/2014,P2 914667,"3,602.50",Control Account Balance Sheet,Watmores Solicitors,1016532,
The Royal Borough of Kensington and Chelsea,RBKC,Corporate Services,COS,Non Revenue,001,COS Group Finance (OSC),Balance Sheet,002,Payments                      ,C1702.00306,00306, 09/07/2014,P2 914668,"139,763.16",Holding Control Account,Comensura Ltd,1003827,
The Royal Borough of Kensington and Chelsea,RBKC,Corporate Services,COS,Revenues,CFR,COS Rev & Bens Info Systems (OSC),Supplies and Services,400,Computer Software Purchase    ,P5915.43050,43050, 09/07/2014,P2 914673,500.00,Revenue,Civica UK Ltd,1223139,
The Royal Borough of Kensington and Chelsea,RBKC,"Envrmt,Leisure & Residents Svc",ELR,"Cleaner,Greener & Cultural Ser",YCG,ELR OHP Production (OSY),Supplies and Services,400,Principals                    ,L0391.45121,45121, 03/07/2014,P2 914676,"3,500.00",Revenue,Payment to an individual or sole trader,1169711,
The Royal Borough of Kensington and Chelsea,RBKC,Children's Services,CHS,Tri-Borough Education Service,SED,FCS Continual Profession Devel (OSF),Supplies and Services,400,Training Programme Delivery   ,E3500.42113,42113, 17/07/2014,P2 914685,"9,305.00",Revenue,etc Venues Ltd,899711,
The Royal Borough of Kensington and Chelsea,RBKC,"Envrmt,Leisure & Residents Svc",ELR,Non Revenue,001,TTS Transport Planning (OSY),Capital,003,Fees-Consultants              ,X6330.00065,00065, 10/07/2014,P2 914723,"1,176.00",Capital,Project Centre,601607,
The Royal Borough of Kensington and Chelsea,RBKC,Corporate Services,COS,Legal Services,CLA,COS Legal Children Social Care (OSC),Third Party Payments          ,500,Counsels Fees                 ,P4341.54510.LBHSCF,54510, 11/07/2014,P2 914725,500.00,Revenue,Payment to an individual or sole trader,1335135,
The Royal Borough of Kensington and Chelsea,RBKC,Transport & Technical Srvcs,TTS,Transportation & Highways,YTH,TTS Road Safety & Travel Plan (OSY),Supplies and Services,400,Initiatives                   ,Y7131.45370.CN14012,45370, 18/07/2014,P2 914730,"1,500.00",Revenue,Project Centre,601607,
The Royal Borough of Kensington and Chelsea,RBKC,Children's Services,CHS,Tri-Borough Education Service,SED,FCS Music Services (OSF),Supplies and Services,400,Music                         ,E3551.46050.MHMCI,46050, 16/07/2014,P2 914734,"3,640.00",Revenue,Paritor Ltd,1317132,
The Royal Borough of Kensington and Chelsea,RBKC,Public Health,PHL,Public Health,JPH,Seasonal Mortality (),Third Party Payments          ,500,Contract Costs                ,J4226.55000,55000, 18/07/2014,P2 914735,518.00,Revenue,Terrence Higgins Enterprises,794506,
The Royal Borough of Kensington and Chelsea,RBKC,"Envrmt,Leisure & Residents Svc",ELR,"Cleaner,Greener & Cultural Ser",YCG,ELR Recycling & Waste Disposal (OSY),Supplies and Services,400,Purchase Of Plastic Sacks     ,Y2160.40100,40100, 04/07/2014,P2 914808,"3,470.04",Revenue,BPI Recycled Products,601529,
The Royal Borough of Kensington and Chelsea,RBKC,Adult Social Care,ASC,Operations,AS6,ASC Learning Dis Local SWT (OSS),Third Party Payments          ,500,Supported Living              ,S6123.54135,54135, 11/07/2014,P2 914809,853.40,Revenue,Yarrow Housing Ltd,602070,
The Royal Borough of Kensington and Chelsea,RBKC,Adult Social Care,ASC,Operations,AS6,ASC Learning Dis Local SWT (OSS),Third Party Payments          ,500,Supported Living              ,S6123.54135,54135, 11/07/2014,P2 914810,"1,606.40",Revenue,Yarrow Housing Ltd,602070,
The Royal Borough of Kensington and Chelsea,RBKC,Adult Social Care,ASC,Operations,AS6,ASC Learning Dis Local SWT (OSS),Third Party Payments          ,500,Supported Living              ,S6123.54135,54135, 11/07/2014,P2 914811,"6,977.80",Revenue,Yarrow Housing Ltd,602070,
The Royal Borough of Kensington and Chelsea,RBKC,Adult Social Care,ASC,Operations,AS6,ASC Learning Dis Local SWT (OSS),Third Party Payments          ,500,Supported Living              ,S6123.54135,54135, 11/07/2014,P2 914812,"5,522.00",Revenue,Yarrow Housing Ltd,602070,
The Royal Borough of Kensington and Chelsea,RBKC,Adult Social Care,ASC,Operations,AS6,ASC Learning Dis Local SWT (OSS),Third Party Payments          ,500,Supported Living              ,S6123.54135,54135, 02/07/2014,P2 914826,534.84,Revenue,Equal People (Kensington & Chelsea),600509,
The Royal Borough of Kensington and Chelsea,RBKC,Adult Social Care,ASC,Operations,AS6,ASC Learning Dis Local SWT (OSS),Employees,100,Salaries Agency               ,S6292.12000,12000, 11/07/2014,P2 914831,"13,206.03",Revenue,CNWL NHS Foundation Trust,604430,
The Royal Borough of Kensington and Chelsea,RBKC,Adult Social Care,ASC,Operations,AS6,ASC Learning Dis Local SWT (OSS),Employees,100,Salaries Agency               ,S6292.12000,12000, 11/07/2014,P2 914832,"13,244.47",Revenue,CNWL NHS Foundation Trust,604430,
The Royal Borough of Kensington and Chelsea,RBKC,Corporate Services,COS,Non Revenue,001,COS Corporate Finance (OSC),Balance Sheet,002,Other Sale Expenses           ,B4402.08456,08456, 11/07/2014,P2 914834,750.00,Control Account Balance Sheet,Cluttons LLP,603514,
The Royal Borough of Kensington and Chelsea,RBKC,Corporate Services,COS,Strategy & Local Services,CPU,COS Civic Ceremonial (OSC),Supplies and Services,400,Mayoral Expenses              ,P2501.43800,43800, 11/07/2014,P2 914838,607.60,Revenue,Wild Peacock,1278505,
The Royal Borough of Kensington and Chelsea,RBKC,"Envrmt,Leisure & Residents Svc",ELR,"Cleaner,Greener & Cultural Ser",YCG,ELR Recycling & Waste Disposal (OSY),Supplies and Services,400,Purchase Of Plastic Sacks     ,Y2160.40100,40100, 11/07/2014,P2 914844,"4,048.38",Revenue,BPI Recycled Products,601529,
The Royal Borough of Kensington and Chelsea,RBKC,Corporate Services,COS,Information Systems,CIS,Fleet Transport (OSS),Employees,100,Car Leasing Payments          ,P4810.18010,18010, 11/07/2014,P2 914862,560.94,Revenue,Lex Autolease Ltd,903962,
The Royal Borough of Kensington and Chelsea,RBKC,Children's Services,CHS,Family Services - RBKC,SKC,FCS World's End SWT (OSF),Third Party Payments          ,500,Parenting Assessments         ,S1603.54185,54185, 15/07/2014,P2 914866,"2,968.00",Revenue,Jamma Umoja (Residential Services),604236,
The Royal Borough of Kensington and Chelsea,RBKC,Children's Services,CHS,Family Services - RBKC,SKC,FCS World's End SWT (OSF),Third Party Payments          ,500,Parenting Assessments         ,S1603.54185,54185, 15/07/2014,P2 914867,"3,608.00",Revenue,Jamma Umoja (Residential Services),604236,
The Royal Borough of Kensington and Chelsea,RBKC,Corporate Services,COS,Strategy & Local Services,CPU,COS Media and Communications (OSC),Supplies and Services,400,Newsletters                   ,P5101.41602,41602, 16/07/2014,P2 914868,"6,258.50",Revenue,N W N Media Ltd,1301664,
The Royal Borough of Kensington and Chelsea,RBKC,Adult Social Care,ASC,Provided Services/ MH Partners,AS5,ASC The Resource Centre (OSS),Supplies and Services,400,Catering Expenditure          ,S6190.41000,41000, 17/07/2014,P2 914870,702.00,Revenue,Apetito Ltd,602090,
The Royal Borough of Kensington and Chelsea,RBKC,Children's Services,CHS,Tri-Borough Education Service,SED,FCS Continual Profession Devel (OSF),Supplies and Services,400,Training Programme Delivery   ,E3500.42113,42113, 18/07/2014,P2 914880,660.50,Revenue,Churchend School,1341127,
The Royal Borough of Kensington and Chelsea,RBKC,Public Health,PHL,Public Health,JPH,NHS Health Check Progrme & Oth (),Third Party Payments          ,500,Contract Costs                ,J4102.55000,55000, 18/07/2014,P2 914881,875.00,Revenue,At Medics Ltd,1307576,
The Royal Borough of Kensington and Chelsea,RBKC,Children's Services,CHS,Tri-Borough Education Service,SED,FCS Continual Profession Devel (OSF),Supplies and Services,400,Training Programme Delivery   ,E3500.42113,42113, 18/07/2014,P2 914882,700.00,Revenue,Wakefield City Academy,1341128,
The Royal Borough of Kensington and Chelsea,RBKC,Corporate Services,COS,Financial Services,CFS,COS ISD Equipment Orders (OSC),Supplies and Services,400,Computer Hardware Purchase    ,P4630.43000,43000, 18/07/2014,P2 914914,855.00,Revenue,Dell Computer Corporation Ltd,611632,
The Royal Borough of Kensington and Chelsea,RBKC,Corporate Services,COS,Non Revenue,001,COS ISD Equipment Orders (OSC),Balance Sheet,002,Expenditure                   ,B1081.05502,05502, 18/07/2014,P2 914916,"95,997.16",Control Account Balance Sheet,Trustmarque Solutions Ltd,600181,
The Royal Borough of Kensington and Chelsea,RBKC,Transport & Technical Srvcs,TTS,Non Revenue,001,TTS TAPs and LSSs (OSY),Capital,003,Construction-Main Ctrctrs A/C ,X5006.00090.HPAHPS13,00090, 04/07/2014,P2 915136,"3,816.62",Capital,D W Windsor Lighting,600415,
The Royal Borough of Kensington and Chelsea,RBKC,Corporate Services,COS,Revenues,CFR,COS Cashiers (OSC),Supplies and Services,400,Equipment-General Admin       ,P4613.40170,40170, 07/07/2014,P2 915140,600.23,Revenue,Avery Weigh-Tronix,910413,
The Royal Borough of Kensington and Chelsea,RBKC,Public Health,PHL,Public Health,JPH,Sexual Health (),Third Party Payments          ,500,Contract Costs                ,J4200.55000,55000, 16/07/2014,P2 915144,772.50,Revenue,Way Forward Organisation,1307925,
The Royal Borough of Kensington and Chelsea,RBKC,"Envrmt,Leisure & Residents Svc",ELR,"Cleaner,Greener & Cultural Ser",YCG,ELR OHP Production (OSY),Supplies and Services,400,Stage Management              ,L0393.45137,45137, 02/07/2014,P2 915151,"1,500.00",Revenue,Payment to an individual or sole trader,1336784,
The Royal Borough of Kensington and Chelsea,RBKC,"Envrmt,Leisure & Residents Svc",ELR,Safer Neighbourhoods,YSN,ELR Parks and Cemeteries (OSY),Premises Related,200,Park Maintenance              ,Y2710.20810,20810, 04/07/2014,P2 915154,"1,710.00",Revenue,Payment to an individual or sole trader,815113,
The Royal Borough of Kensington and Chelsea,RBKC,Transport & Technical Srvcs,TTS,Transportation & Highways,YTH,TTS Construction (OSY),Third Party Payments          ,500,Bridges-Maintenance           ,Y7220.55480.BRDRDBRG,55480, 18/07/2014,P2 915161,500.00,Revenue,Connect Survey Services Ltd,1272781,
The Royal Borough of Kensington and Chelsea,RBKC,Transport & Technical Srvcs,TTS,Transportation & Highways,YTH,TTS Graham Shoesmith-Lighting (OSY),Third Party Payments          ,500,White Lights � Relighting     ,Y7252.55797,55797, 02/07/2014,P2 915169,"1,176.00",Revenue,UK Power Networks (Operations) Ltd,605671,
The Royal Borough of Kensington and Chelsea,RBKC,Adult & Family Learning Srvcs,AFL,Adult Education,FAE,AFL Adult Learning (OSF),Third Party Payments          ,500,Consultants                   ,E7243.54530,54530, 18/07/2014,P2 915170,"12,800.00",Revenue,Monterpoint Technologies,608278,
The Royal Borough of Kensington and Chelsea,RBKC,Transport & Technical Srvcs,TTS,Transportation & Highways,YTH,TTS Highways (OSY),Third Party Payments          ,500,Programmed Footway Maintenance,Y7212.55500,55500, 18/07/2014,P2 915172,"18,840.02",Revenue,J Murphy & Sons Ltd,611144,
The Royal Borough of Kensington and Chelsea,RBKC,Transport & Technical Srvcs,TTS,Transportation & Highways,YTH,TTS Highways (OSY),Third Party Payments          ,500,Programmed Footway Maintenance,Y7214.55500,55500, 18/07/2014,P2 915173,"9,212.47",Revenue,J Murphy & Sons Ltd,611144,
The Royal Borough of Kensington and Chelsea,RBKC,Public Health,PHL,Public Health,JPH,Sexual Health (),Third Party Payments          ,500,Contract Costs                ,J4200.55000,55000, 02/07/2014,P2 915210,772.50,Revenue,KwaAfrica,1308237,
The Royal Borough of Kensington and Chelsea,RBKC,Corporate Services,COS,Strategy & Local Services,CPU,COS Community Safety (OSC),Employees,100,Training Expenses             ,P5748.19090,19090, 17/07/2014,P2 915211,"6,718.00",Revenue,Aspire Europe Ltd,1148882,
The Royal Borough of Kensington and Chelsea,RBKC,Children's Services,CHS,Family Services - RBKC,SKC,FCS Children with Disabilities (OSF),Supplies and Services,400,Disability Register           ,S1750.42225,42225, 18/07/2014,P2 915213,"9,600.00",Revenue,Central London Community Healthcare,601663,
The Royal Borough of Kensington and Chelsea,RBKC,Transport & Technical Srvcs,TTS,Transportation & Highways,YTH,TTS KTH Car Park (OSY),Third Party Payments          ,500,KTH Car Prk Mngmnt Fee (APCOA),Y8001.56000,56000, 18/07/2014,P2 915223,"18,480.26",Revenue,Apcoa Parking (UK) Ltd,600233,
The Royal Borough of Kensington and Chelsea,RBKC,Corporate Services,COS,Human Resources,CHG,COS Learning and Development (OSC),Supplies and Services,400,Lunchtime Seminars            ,P4421.42510,42510, 11/07/2014,P2 915224,"1,123.00",Revenue,Lodge Catering,603515,
The Royal Borough of Kensington and Chelsea,RBKC,Adult Social Care,ASC,Operations,AS6,ASC Learning Dis Local SWT (OSS),Third Party Payments          ,500,Supported Living              ,S6123.54135,54135, 23/07/2014,P2 915225,"4,417.60",Revenue,Yarrow Housing Ltd,602070,
The Royal Borough of Kensington and Chelsea,RBKC,Transport & Technical Srvcs,TTS,Transportation & Highways,YTH,TTS Graham Shoesmith-Lighting (OSY),Third Party Payments          ,500,Ped Crossings-Lighting Work   ,Y7256.55690,55690, 23/07/2014,P2 915230,"28,159.96",Revenue,Eurovia Infrastructure Ltd,949196,
The Royal Borough of Kensington and Chelsea,RBKC,Transport & Technical Srvcs,TTS,Transportation & Highways,YTH,TTS Graham Shoesmith-Lighting (OSY),Third Party Payments          ,500,White Lights � Relighting     ,Y7252.55797,55797, 23/07/2014,P2 915231,"1,296.42",Revenue,Eurovia Infrastructure Ltd,949196,
The Royal Borough of Kensington and Chelsea,RBKC,Transport & Technical Srvcs,TTS,Transportation & Highways,YTH,TTS Graham Shoesmith-Lighting (OSY),Third Party Payments          ,500,Public Lighting-Major Roads   ,Y7252.55870,55870, 23/07/2014,P2 915232,514.56,Revenue,Eurovia Infrastructure Ltd,949196,
The Royal Borough of Kensington and Chelsea,RBKC,Transport & Technical Srvcs,TTS,Transportation & Highways,YTH,TTS Graham Shoesmith-Lighting (OSY),Premises Related,200,Cleaning Contract             ,Y7252.26000,26000, 23/07/2014,P2 915233,"4,647.33",Revenue,Eurovia Infrastructure Ltd,949196,
The Royal Borough of Kensington and Chelsea,RBKC,Transport & Technical Srvcs,TTS,Transportation & Highways,YTH,TTS Graham Shoesmith-Lighting (OSY),Third Party Payments          ,500,White Lights � Relighting     ,Y7252.55797,55797, 23/07/2014,P2 915234,550.72,Revenue,Eurovia Infrastructure Ltd,949196,
The Royal Borough of Kensington and Chelsea,RBKC,Corporate Services,COS,Non Revenue,001,COS ISD Network and Telecomms (OSC),Balance Sheet,002,Expenditure                   ,B1081.05502,05502, 04/07/2014,P2 916391,"4,247.11",Control Account Balance Sheet,Microsoft Ireland Operations Ltd,601247,
The Royal Borough of Kensington and Chelsea,RBKC,Adult Social Care,ASC,Provided Services/ MH Partners,AS5,ASC North Recovery Team (OSS),Third Party Payments          ,500,P&V Homes & Hostels           ,S5128.54120,54120, 01/07/2014,P2 916393,"1,050.86",Revenue,London Cyrenians Housing Ltd,600129,
The Royal Borough of Kensington and Chelsea,RBKC,Children's Services,CHS,Family Services - RBKC,SKC,FCS Play Centres (OSF),Supplies and Services,400,Legal Costs                   ,E6028.42340,42340, 04/07/2014,P2 916400,612.00,Revenue,London Borough Of Hammersmith & Fulham,600048,
The Royal Borough of Kensington and Chelsea,RBKC,"Envrmt,Leisure & Residents Svc",ELR,"Cleaner,Greener & Cultural Ser",YCG,ELR OHP Production (OSY),Supplies and Services,400,Artistic Team                 ,L0393.45122,45122, 01/07/2014,P2 916408,"1,134.00",Revenue,Payment to an individual or sole trader,1217962,
The Royal Borough of Kensington and Chelsea,RBKC,"Envrmt,Leisure & Residents Svc",ELR,"Cleaner,Greener & Cultural Ser",YCG,ELR OHP Production (OSY),Supplies and Services,400,Production Staff              ,L0394.45124,45124, 02/07/2014,P2 916409,"1,500.00",Revenue,Payment to an individual or sole trader,1310879,
The Royal Borough of Kensington and Chelsea,RBKC,"Envrmt,Leisure & Residents Svc",ELR,"Cleaner,Greener & Cultural Ser",YCG,ELR OHP Production (OSY),Supplies and Services,400,Stage Management              ,L0395.45137,45137, 02/07/2014,P2 916410,"1,600.00",Revenue,Payment to an individual or sole trader,1312879,
The Royal Borough of Kensington and Chelsea,RBKC,"Envrmt,Leisure & Residents Svc",ELR,"Cleaner,Greener & Cultural Ser",YCG,ELR OHP Production (OSY),Supplies and Services,400,Stage Management              ,L0393.45137,45137, 02/07/2014,P2 916411,"1,350.00",Revenue,Payment to an individual or sole trader,1311335,
The Royal Borough of Kensington and Chelsea,RBKC,Children's Services,CHS,Family Services - RBKC,SKC,FCS Violett Melchett Centre (OSF),Supplies and Services,400,Equipment Purchase            ,S2137.40080,40080, 11/07/2014,P2 916412,"1,562.00",Revenue,Community Products (UK) Ltd,603393,
The Royal Borough of Kensington and Chelsea,RBKC,Children's Services,CHS,Family Services - RBKC,SKC,FCS Ladbroke North SWT (OSF),Third Party Payments          ,500,Family Group Conference       ,S1735.54175,54175, 17/07/2014,P2 916417,"1,240.00",Revenue,Galton Associates,1236754,
The Royal Borough of Kensington and Chelsea,RBKC,Transport & Technical Srvcs,TTS,Transportation & Highways,YTH,TTS Derek Mahon-Lighting (OSY),Third Party Payments          ,500,Public Lighting-Irrecov Works ,Y7252.55920,55920, 02/07/2014,P2 916423,694.00,Revenue,UK Power Networks (Operations) Ltd,605671,
The Royal Borough of Kensington and Chelsea,RBKC,Transport & Technical Srvcs,TTS,Transportation & Highways,YTH,TTS Derek Mahon-Lighting (OSY),Third Party Payments          ,500,Public Lighting-Irrecov Works ,Y7254.55920,55920, 02/07/2014,P2 916424,694.00,Revenue,UK Power Networks (Operations) Ltd,605671,
The Royal Borough of Kensington and Chelsea,RBKC,Transport & Technical Srvcs,TTS,Transportation & Highways,YTH,TTS Derek Mahon-Lighting (OSY),Third Party Payments          ,500,White Lights � Relighting     ,Y7252.55797,55797, 02/07/2014,P2 916425,"3,470.00",Revenue,UK Power Networks (Operations) Ltd,605671,
The Royal Borough of Kensington and Chelsea,RBKC,Transport & Technical Srvcs,TTS,Transportation & Highways,YTH,TTS Derek Mahon-Lighting (OSY),Third Party Payments          ,500,Public Lighting-Irrecov Works ,Y7252.55920,55920, 02/07/2014,P2 916426,694.00,Revenue,UK Power Networks (Operations) Ltd,605671,
The Royal Borough of Kensington and Chelsea,RBKC,Adult Social Care,ASC,Operations,AS6,ASC Finance (OSS),Third Party Payments          ,500,P&V Residential               ,S6123.54060,54060, 01/07/2014,P2 916429,"3,720.62",Revenue,Carefutures,600075,
The Royal Borough of Kensington and Chelsea,RBKC,"Envrmt,Leisure & Residents Svc",ELR,"Cleaner,Greener & Cultural Ser",YCG,ELR OHP Production (OSY),Supplies and Services,400,Wardrobe                      ,L0393.45126,45126, 01/07/2014,P2 916430,"1,500.00",Revenue,Payment to an individual or sole trader,1307621,
The Royal Borough of Kensington and Chelsea,RBKC,Children's Services,CHS,Family Services - RBKC,SKC,FCS Ladbroke South SWT (OSF),Third Party Payments          ,500,P & V Fostering               ,S1742.54005,54005, 04/07/2014,P2 916431,"3,363.73",Revenue,Ethelbert Specialist Homes Ltd,836731,
The Royal Borough of Kensington and Chelsea,RBKC,Corporate Services,COS,Financial Services,CFS,COS Corporate Finance (OSC),Third Party Payments          ,500,Audit Fees                    ,P5601.54600,54600, 18/07/2014,P2 916436,"46,460.00",Revenue,KPMG,604520,
The Royal Borough of Kensington and Chelsea,RBKC,Transport & Technical Srvcs,TTS,Transportation & Highways,YTH,TTS Ken King-Lighting (OSY),Third Party Payments          ,500,KP Lighting                   ,Y7254.55830,55830, 23/07/2014,P2 916442,"1,036.18",Revenue,Eurovia Infrastructure Ltd,949196,
The Royal Borough of Kensington and Chelsea,RBKC,Corporate Services,COS,Non Revenue,001,COS Group Finance (OSC),Balance Sheet,002,Payments                      ,C0518.00306,00306, 07/07/2014,P2 916758,"7,860.87",Holding Control Account,Amey Community Ltd,1315008,
The Royal Borough of Kensington and Chelsea,RBKC,Adult Social Care,ASC,Operations,AS6,ASC E Monitoring Team (OSS),Third Party Payments          ,500,Home Care over 65             ,S3800.54453,54453, 04/07/2014,P2 916760,"1,088.43",Revenue,Saga Homecare,1280847,
The Royal Borough of Kensington and Chelsea,RBKC,"Envrmt,Leisure & Residents Svc",ELR,"Cleaner,Greener & Cultural Ser",YCG,ELR Arts Development (OSY),Supplies and Services,400,Artist Fees                   ,L0352.42565,42565, 08/07/2014,P2 916761,878.92,Revenue,That Way Productions Ltd,1306549,
The Royal Borough of Kensington and Chelsea,RBKC,Housing Revenue Account,HRA,Non Revenue,001,HOS Finance & Support (OSS),Capital,003,Salaries-Hsg Dev& Mgment Staff,G5020.00074,00074, 04/07/2014,P2 916771,"38,466.73",Capital,RBKC - TMO Ltd,602155,
The Royal Borough of Kensington and Chelsea,RBKC,Children's Services,CHS,Children's Commissioning,SCC,CHS Workforce Development Team (OSF),Supplies and Services,400,Training Programme Delivery   ,E9752.42113,42113, 16/07/2014,P2 916772,"1,429.94",Revenue,Emailogic Ltd,1040308,
The Royal Borough of Kensington and Chelsea,RBKC,"Envrmt,Leisure & Residents Svc",ELR,"Cleaner,Greener & Cultural Ser",YCG,TTS Alan Moore-Lighting (OSY),Third Party Payments          ,500,Carnival-Highway Works        ,Y2390.55240,55240, 16/07/2014,P2 916778,"1,154.54",Revenue,Digital Data Ltd,1053790,
The Royal Borough of Kensington and Chelsea,RBKC,"Envrmt,Leisure & Residents Svc",ELR,"Cleaner,Greener & Cultural Ser",YCG,ELR Refuse & Cleansing (OSY),Supplies and Services,400,Special Equip-Administrative  ,Y2010.40115,40115, 18/07/2014,P2 916779,"1,565.00",Revenue,Jeeves International Badge Division,603230,
The Royal Borough of Kensington and Chelsea,RBKC,"Envrmt,Leisure & Residents Svc",ELR,Customer & Business Improvemnt,YCB,ELR Commercial Waste (OSY),Supplies and Services,400,Equipment Purchase            ,Y2350.40080,40080, 11/07/2014,P2 916925,563.34,Revenue,G G Rentals Ltd,1116288,
The Royal Borough of Kensington and Chelsea,RBKC,"Envrmt,Leisure & Residents Svc",ELR,Customer & Business Improvemnt,YCB,ELR Commercial Waste (OSY),Supplies and Services,400,Purchase Of Plastic Sacks     ,Y2350.40100,40100, 11/07/2014,P2 916926,"5,162.04",Revenue,BPI Recycled Products,601529,
The Royal Borough of Kensington and Chelsea,RBKC,"Envrmt,Leisure & Residents Svc",ELR,Customer & Business Improvemnt,YCB,ELR Commercial Waste (OSY),Supplies and Services,400,Purchase Of Plastic Sacks     ,Y2350.40100,40100, 16/07/2014,P2 916931,"7,602.66",Revenue,BPI Recycled Products,601529,
The Royal Borough of Kensington and Chelsea,RBKC,Corporate Services,COS,Customer Services,CFC,COS Customer Services (OSC),Support Sevices,700,Customer Services             ,P4640.71030,71030, 23/07/2014,P2 916940,509.00,Revenue,Aura Graphics Ltd,920145,
The Royal Borough of Kensington and Chelsea,RBKC,Adult Social Care,ASC,Provided Services/ MH Partners,AS5,ASC Finance (OSS),Third Party Payments          ,500,Supported Living              ,S5128.54135,54135, 02/07/2014,P2 916943,"2,415.60",Revenue,National Autistic Society,600897,
The Royal Borough of Kensington and Chelsea,RBKC,Corporate Services,COS,Human Resources,CHG,COS Learning and Development (OSC),Supplies and Services,400,Annual Programme              ,P4421.42515,42515, 25/07/2014,P2 916944,"1,150.00",Revenue,Payment to an individual or sole trader,1221930,
The Royal Borough of Kensington and Chelsea,RBKC,Children's Services,CHS,Family Services - RBKC,SKC,FCS Children with Disabilities (OSF),Third Party Payments          ,500,Supportive Care               ,S1752.54290,54290, 18/07/2014,P2 916946,"3,353.13",Revenue,Special People,625778,
The Royal Borough of Kensington and Chelsea,RBKC,"Envrmt,Leisure & Residents Svc",ELR,Non Revenue,001,TTS Construction (OSY),Capital,003,Construction-Main Ctrctrs A/C ,X6366.00090,00090, 23/07/2014,P2 916947,500.00,Capital,Project Centre,601607,
The Royal Borough of Kensington and Chelsea,RBKC,Public Health,PHL,Public Health,JPH,NHS Health Check Progrme & Oth (),Third Party Payments          ,500,Contract Costs                ,J4102.55000,55000, 18/07/2014,P2 916948,"1,750.00",Revenue,At Medics Ltd,1307576,
The Royal Borough of Kensington and Chelsea,RBKC,Corporate Services,COS,Non Revenue,001,COS Group Finance (OSC),Balance Sheet,002,Payments                      ,C1702.00306,00306, 11/07/2014,P2 916949,"136,716.42",Holding Control Account,Comensura Ltd,1003827,
The Royal Borough of Kensington and Chelsea,RBKC,Transport & Technical Srvcs,TTS,Transportation & Highways,YTH,TTS Alan Moore-Lighting (OSY),Third Party Payments          ,500,Meter Bays & Posts            ,Y8300.55990,55990, 23/07/2014,P2 916951,"2,820.46",Revenue,Eurovia Infrastructure Ltd,949196,
The Royal Borough of Kensington and Chelsea,RBKC,Transport & Technical Srvcs,TTS,Transportation & Highways,YTH,TTS Road Safety & Travel Plan (OSY),Supplies and Services,400,Initiatives                   ,Y7114.45370.ST14009,45370, 23/07/2014,P2 916952,"1,110.00",Revenue,Technicolour Tyre Company Ltd,1067682,
The Royal Borough of Kensington and Chelsea,RBKC,Corporate Services,COS,Legal Services,CLA,COS Legal Children Social Care (OSC),Third Party Payments          ,500,Counsels Fees                 ,P4341.54510.LBHSCF,54510, 18/07/2014,P2 916986,"1,100.00",Revenue,Payment to an individual or sole trader,1333968,
The Royal Borough of Kensington and Chelsea,RBKC,Corporate Services,COS,Legal Services,CLA,COS Legal Children Social Care (OSC),Third Party Payments          ,500,Counsels Fees                 ,P4341.54510.LBHSCF,54510, 18/07/2014,P2 916987,500.00,Revenue,Payment to an individual or sole trader,601068,
The Royal Borough of Kensington and Chelsea,RBKC,Corporate Services,COS,Legal Services,CLA,COS Legal Children Social Care (OSC),Third Party Payments          ,500,Counsels Fees                 ,P4341.54510.LBWCC,54510, 16/07/2014,P2 916988,800.00,Revenue,Payment to an individual or sole trader,1338569,
The Royal Borough of Kensington and Chelsea,RBKC,Adult Social Care,ASC,Operations,AS6,ASC Learning Dis Local SWT (OSS),Third Party Payments          ,500,Supported Living              ,S6125.54135,54135, 18/07/2014,P2 916993,"8,768.66",Revenue,Cash Friday,1279802,
The Royal Borough of Kensington and Chelsea,RBKC,Adult Social Care,ASC,Operations,AS6,ASC Learning Dis Local SWT (OSS),Third Party Payments          ,500,Supported Living              ,S6125.54135,54135, 18/07/2014,P2 916994,"12,038.23",Revenue,Cash Friday,1279802,
The Royal Borough of Kensington and Chelsea,RBKC,Corporate Services,COS,Strategy & Local Services,CPU,COS Group Finance (OSC),Third Party Payments          ,500,Payments to LBHF              ,E9707.51080,51080, 18/07/2014,P2 917007,"11,243.75",Revenue,London Borough Of Hammersmith & Fulham,600048,
The Royal Borough of Kensington and Chelsea,RBKC,Corporate Services,COS,Non Revenue,001,COS SPACE Programme (OSC),Capital,003,Fees-Architects               ,Q3469.00060,00060, 04/07/2014,P2 917470,"5,808.00",Capital,Sheppard Robson,1225836,
The Royal Borough of Kensington and Chelsea,RBKC,"Envrmt,Leisure & Residents Svc",ELR,Customer & Business Improvemnt,YCB,COS Recruitment (OSC),Employees,100,Salaries                      ,Y0002.10100,10100, 11/07/2014,P2 917471,"16,779.80",Revenue,University of London,639034,
The Royal Borough of Kensington and Chelsea,RBKC,Children's Services,CHS,Family Services - RBKC,SKC,FCS World's End SWT (OSF),Third Party Payments          ,500,Medical Fees                  ,S1851.54525,54525, 04/07/2014,P2 917473,660.00,Revenue,Alere Toxicology  Plc,1328836,
The Royal Borough of Kensington and Chelsea,RBKC,Children's Services,CHS,Family Services - RBKC,SKC,FCS World's End SWT (OSF),Third Party Payments          ,500,Parenting Assessments         ,S1603.54185,54185, 07/07/2014,P2 917488,"3,157.00",Revenue,Jamma Umoja (Residential Services),604236,
The Royal Borough of Kensington and Chelsea,RBKC,Children's Services,CHS,Family Services - RBKC,SKC,FCS World's End SWT (OSF),Third Party Payments          ,500,Parenting Assessments         ,S1603.54185,54185, 07/07/2014,P2 917492,"2,597.00",Revenue,Jamma Umoja (Residential Services),604236,
The Royal Borough of Kensington and Chelsea,RBKC,Transport & Technical Srvcs,TTS,Transportation & Highways,YTH,TTS Parking Divisional Expend (OSY),Supplies and Services,400,Ticket Stocks                 ,Y8300.41705,41705, 17/07/2014,P2 917493,981.00,Revenue,BemroseBooth Paragon,604252,
The Royal Borough of Kensington and Chelsea,RBKC,Transport & Technical Srvcs,TTS,Transportation & Highways,YTH,TTS Parking Divisional Expend (OSY),Supplies and Services,400,Ticket Stocks                 ,Y8300.41705,41705, 17/07/2014,P2 917495,780.00,Revenue,BemroseBooth Paragon,604252,
The Royal Borough of Kensington and Chelsea,RBKC,Transport & Technical Srvcs,TTS,Transportation & Highways,YTH,TTS Road Safety & Travel Plan (OSY),Supplies and Services,400,Initiatives                   ,Y7125.45370.CN14002,45370, 23/07/2014,P2 917506,"4,350.00",Revenue,Technicolour Tyre Company Ltd,1067682,
The Royal Borough of Kensington and Chelsea,RBKC,Corporate Services,COS,Information Systems,CIS,COS ISD Support (OSC),Supplies and Services,400,Telephone Charges             ,P4823.43320,43320, 08/07/2014,P2 917507,617.00,Revenue,Gradwell Dot Com Ltd,1050426,
The Royal Borough of Kensington and Chelsea,RBKC,Children's Services,CHS,Family Services - RBKC,SKC,FCS World's End SWT (OSF),Third Party Payments          ,500,Parenting Assessments         ,S1603.54185,54185, 22/07/2014,P2 917508,"1,113.00",Revenue,Jamma Umoja (Residential Services),604236,
The Royal Borough of Kensington and Chelsea,RBKC,Children's Services,CHS,Family Services - RBKC,SKC,FCS World's End SWT (OSF),Third Party Payments          ,500,Parenting Assessments         ,S1603.54185,54185, 22/07/2014,P2 917509,"1,353.00",Revenue,Jamma Umoja (Residential Services),604236,
The Royal Borough of Kensington and Chelsea,RBKC,Adult Social Care,ASC,Operations,AS6,HHASC Service Management (OSS),Employees,100,Salaries Agency               ,S0025.12000,12000, 04/07/2014,P2 917511,"3,580.00",Revenue,GatenbySanderson,926253,
The Royal Borough of Kensington and Chelsea,RBKC,Corporate Services,COS,Tri/Bi-Borough Projects,CTB,COS Corporate Finance (OSC),Employees,100,Salaries Agency               ,P5781.12000,12000, 17/07/2014,P2 917526,"8,838.00",Revenue,CIPFA Business Ltd,600140,
The Royal Borough of Kensington and Chelsea,RBKC,Transport & Technical Srvcs,TTS,Transportation & Highways,YTH,TTS Parking Divisional Expend (OSY),Third Party Payments          ,500,Debt Recovery Commission      ,Y8345.55068,55068, 24/07/2014,P2 917529,783.42,Revenue,Euro Parking Collection Plc,1218709,
The Royal Borough of Kensington and Chelsea,RBKC,Transport & Technical Srvcs,TTS,Transportation & Highways,YTH,TTS Road Safety & Travel Plan (OSY),Supplies and Services,400,Initiatives                   ,Y7114.45370.ST14009,45370, 23/07/2014,P2 917530,750.00,Revenue,GetCarterPR Ltd,1279322,
The Royal Borough of Kensington and Chelsea,RBKC,Corporate Services,COS,Human Resources,CHG,COS HR Directorate (OSC),Employees,100,Training-Corporate Initiatives,P4418.19100,19100, 24/07/2014,P2 917531,"3,940.00",Revenue,Freeney Williams Ltd,1097275,
The Royal Borough of Kensington and Chelsea,RBKC,Children's Services,CHS,Family Services - RBKC,SKC,FCS Care Resources (OSF),Third Party Payments          ,500,Commissioned Services         ,S1400.52560,52560, 18/07/2014,P2 917532,"5,519.37",Revenue,Central London Community Healthcare,601663,
The Royal Borough of Kensington and Chelsea,RBKC,Children's Services,CHS,Family Services - RBKC,SKC,FCS Connected Persons (OSF),Third Party Payments          ,500,Commissioned Services         ,S1463.52560,52560, 24/07/2014,P2 917538,"2,000.00",Revenue,Payment to an individual or sole trader,1324664,
The Royal Borough of Kensington and Chelsea,RBKC,Corporate Services,COS,Internal Audit & Risk Mngmnt,CFA,COS Internal Audit (OSC),Third Party Payments          ,500,General Hired & Contracted Ser,P4602.54505,54505, 16/07/2014,P2 917541,"2,460.00",Revenue,Croydon Council,1179564,
The Royal Borough of Kensington and Chelsea,RBKC,Transport & Technical Srvcs,TTS,Transportation & Highways,YTH,TTS Parking Divisional Expend (OSY),Supplies and Services,400,Suspension Equipment          ,Y8330.40293,40293, 16/07/2014,P2 917647,"5,850.00",Revenue,Digital Data Ltd,1053790,
The Royal Borough of Kensington and Chelsea,RBKC,"Envrmt,Leisure & Residents Svc",ELR,"Cleaner,Greener & Cultural Ser",YCG,ELR OHP General (OSY),Third Party Payments          ,500,Security Guards               ,L0311.54620,54620, 04/07/2014,P2 917648,573.00,Revenue,Payment to an individual or sole trader,1309150,
The Royal Borough of Kensington and Chelsea,RBKC,Corporate Services,COS,Non Revenue,001,COS TFM LINK Team (OSC),Balance Sheet,002,Payments                      ,C0518.00306,00306, 11/07/2014,P2 917653,"3,884.95",Holding Control Account,Amey Community Ltd,1315008,
The Royal Borough of Kensington and Chelsea,RBKC,"Envrmt,Leisure & Residents Svc",ELR,"Cleaner,Greener & Cultural Ser",YCG,ELR OHP General (OSY),Supplies and Services,400,Entertainements Licensing     ,L0311.45530,45530, 18/07/2014,P2 917654,"1,200.00",Revenue,Gyoury Self Partnership (St Albans) LLP,1264723,
The Royal Borough of Kensington and Chelsea,RBKC,Corporate Services,COS,Revenues,CFR,COS Benefits (OSC),Supplies and Services,400,Computer Software Purchase    ,P5915.43050,43050, 09/07/2014,P2 917658,577.54,Revenue,Civica UK Ltd,1223139,
The Royal Borough of Kensington and Chelsea,RBKC,Children's Services,CHS,Family Services - RBKC,SKC,FCS World's End SWT (OSF),Third Party Payments          ,500,Medical Fees                  ,S1851.54525,54525, 18/07/2014,P2 917663,620.00,Revenue,Alpha Biolaboratories Ltd,1341477,
The Royal Borough of Kensington and Chelsea,RBKC,Children's Services,CHS,Family Services - RBKC,SKC,FCS Healthlink SWT (OSF),Third Party Payments          ,500,Hotel BandB Accommodation     ,S1862.54170,54170, 24/07/2014,P2 917665,900.00,Revenue,Jamma Umoja (Community Services) Ltd,604497,
The Royal Borough of Kensington and Chelsea,RBKC,Children's Services,CHS,Non Revenue,001,COS AssetMngt & Capital Prjcts (OSC),Capital,003,Construction-Main Ctrctrs A/C ,F9082.00090,00090, 04/07/2014,P2 917666,"117,798.71",Capital,Bam Construction Ltd,1297470,
The Royal Borough of Kensington and Chelsea,RBKC,"Library,Archive & Heritage Svc",LAH,Non Revenue,001,COS ISD Network and Telecomms (OSC),Capital,003,Construction-Main Ctrctrs A/C ,K5043.00090,00090, 18/07/2014,P2 917694,"4,852.00",Capital,Unify Enterprise Communications Ltd,603041,
The Royal Borough of Kensington and Chelsea,RBKC,Corporate Services,COS,Non Revenue,001,COS Corporate Finance (OSC),Balance Sheet,002,Other Sale Expenses           ,B4402.08456,08456, 24/07/2014,P2 917708,750.00,Control Account Balance Sheet,Cluttons LLP,603514,
The Royal Borough of Kensington and Chelsea,RBKC,Corporate Services,COS,"Finance, Info Systems&Property",CFI,COS ISD Network and Telecomms (OSC),Capital,003,Construction-Main Ctrctrs A/C ,Q3511.00090,00090, 18/07/2014,P2 917709,"44,049.00",Capital,Unify Enterprise Communications Ltd,603041,
The Royal Borough of Kensington and Chelsea,RBKC,"Envrmt,Leisure & Residents Svc",ELR,"Cleaner,Greener & Cultural Ser",YCG,ELR Museums Service (OSY),Supplies and Services,400,Maintenance Of Exhibits       ,L0306.40082,40082, 18/07/2014,P2 917712,814.10,Revenue,Preservation Equipment Ltd,602251,
The Royal Borough of Kensington and Chelsea,RBKC,Children's Services,CHS,Safeguarding & LSCB,SGB,CHS Workforce Development Team (OSF),Supplies and Services,400,Training Programme Delivery   ,S1017.42113,42113, 25/07/2014,P2 917726,550.00,Revenue,Payment to an individual or sole trader,1339699,
The Royal Borough of Kensington and Chelsea,RBKC,Adult Social Care,ASC,Operations,AS6,ASC Community Team North (OSS),Employees,100,Training Expenses             ,S3620.19090,19090, 25/07/2014,P2 917739,883.00,Revenue,Linden House,1227145,
The Royal Borough of Kensington and Chelsea,RBKC,"Envrmt,Leisure & Residents Svc",ELR,"Cleaner,Greener & Cultural Ser",YCG,ELR Museums Service (OSY),Supplies and Services,400,Guided tours staff fees       ,L0306.42561,42561, 23/07/2014,P2 917741,840.00,Revenue,Payment to an individual or sole trader,812604,
The Royal Borough of Kensington and Chelsea,RBKC,Transport & Technical Srvcs,TTS,Transportation & Highways,YTH,TTS Highways (OSY),Third Party Payments          ,500,Footway Maintenance-Other Jobs,Y7214.55540,55540, 22/07/2014,P2 917745,"1,100.30",Revenue,J Murphy & Sons Ltd,611144,
The Royal Borough of Kensington and Chelsea,RBKC,Transport & Technical Srvcs,TTS,Transportation & Highways,YTH,TTS Highways (OSY),Third Party Payments          ,500,Rechargeable Works Expenditure,Y7238.55960.NRW609,55960, 22/07/2014,P2 917746,"1,393.82",Revenue,J Murphy & Sons Ltd,611144,
The Royal Borough of Kensington and Chelsea,RBKC,Transport & Technical Srvcs,TTS,Transportation & Highways,YTH,TTS Highways (OSY),Third Party Payments          ,500,Programmed Footway Maintenance,Y7214.55500,55500, 22/07/2014,P2 917747,"18,759.00",Revenue,J Murphy & Sons Ltd,611144,
The Royal Borough of Kensington and Chelsea,RBKC,Transport & Technical Srvcs,TTS,Transportation & Highways,YTH,TTS Highways (OSY),Third Party Payments          ,500,Programmed Footway Maintenance,Y7214.55500,55500, 22/07/2014,P2 917748,"14,625.63",Revenue,J Murphy & Sons Ltd,611144,
The Royal Borough of Kensington and Chelsea,RBKC,Transport & Technical Srvcs,TTS,Transportation & Highways,YTH,TTS Highways (OSY),Third Party Payments          ,500,Programmed Footway Maintenance,Y7214.55500,55500, 22/07/2014,P2 917749,"39,086.55",Revenue,J Murphy & Sons Ltd,611144,
The Royal Borough of Kensington and Chelsea,RBKC,Transport & Technical Srvcs,TTS,Transportation & Highways,YTH,TTS Construction (OSY),Supplies and Services,400,Initiatives                   ,Y7131.45370.CN14012,45370, 25/07/2014,P2 917750,650.00,Revenue,David J Webb Surveys Ltd,986260,
The Royal Borough of Kensington and Chelsea,RBKC,Corporate Services,COS,Corporate Property,CBV,COS ISD Network and Telecomms (OSC),Support Sevices,700,CSS-ISD Network Mgt           ,P1516.73030,73030, 24/07/2014,P2 917751,"1,250.00",Revenue,Black Box Network Services,611238,
The Royal Borough of Kensington and Chelsea,RBKC,Corporate Services,COS,Non Revenue,001,COS Group Finance (OSC),Balance Sheet,002,Payments                      ,C1705.00306,00306, 02/07/2014,P2 917758,"1,125.15",Holding Control Account,Q Despatch (West) Ltd,1158082,
The Royal Borough of Kensington and Chelsea,RBKC,Corporate Services,COS,Non Revenue,001,COS Group Finance (OSC),Balance Sheet,002,Payments                      ,C1705.00306,00306, 09/07/2014,P2 917759,"2,718.60",Holding Control Account,Q Despatch (West) Ltd,1158082,
The Royal Borough of Kensington and Chelsea,RBKC,Children's Services,CHS,Family Services - RBKC,SKC,FCS Leaving Care (OSF),Third Party Payments          ,500,Supported Living              ,S1425.54135,54135, 01/07/2014,P2 917857,"2,070.00",Revenue,Depaul UK,1283527,
The Royal Borough of Kensington and Chelsea,RBKC,Children's Services,CHS,Family Services - RBKC,SKC,FCS Leaving Care (OSF),Third Party Payments          ,500,Supported Living              ,S1425.54135,54135, 01/07/2014,P2 917860,"2,472.00",Revenue,Support Link Services Ltd,1141541,
The Royal Borough of Kensington and Chelsea,RBKC,Corporate Services,COS,Revenues,CFR,COS Council Tax & Revenues IT (OSC),Supplies and Services,400,Computer Hardware Purchase    ,P5915.43000,43000, 09/07/2014,P2 917861,"4,393.00",Revenue,Civica UK Ltd,1223139,
The Royal Borough of Kensington and Chelsea,RBKC,Corporate Services,COS,Tri/Bi-Borough Projects,CTB,COS HR Systems (OSC),Third Party Payments          ,500,HR Systems Contract           ,P5781.55030,55030, 16/07/2014,P2 917863,"1,650.00",Revenue,NorthgateArinso UK Ltd,623793,
The Royal Borough of Kensington and Chelsea,RBKC,Children's Services,CHS,Family Services - RBKC,SKC,FCS AHDC & BFST (OSF),Supplies and Services,400,Stationery Purchase           ,S1755.41700,41700, 18/07/2014,P2 917864,512.50,Revenue,Rahmqvist Uk Ltd/Avico Division,605264,
The Royal Borough of Kensington and Chelsea,RBKC,Children's Services,CHS,Tri-Borough Education Service,SED,FCS School Meals Contracts (OSF),Income,900,Standards Funds Grant         ,E9000.90080,90080, 16/07/2014,P2 917870,"1,616.50",Revenue,Cater Cover Service Ltd,1127283,
The Royal Borough of Kensington and Chelsea,RBKC,"Envrmt,Leisure & Residents Svc",ELR,"Cleaner,Greener & Cultural Ser",YCG,ELR OHP Production (OSY),Supplies and Services,400,Artistic Team                 ,L0392.45122,45122, 11/07/2014,P2 917879,800.00,Revenue,Payment to an individual or sole trader,1314479,
The Royal Borough of Kensington and Chelsea,RBKC,Transport & Technical Srvcs,TTS,Transportation & Highways,YTH,TTS Parking Divisional Expend (OSY),Supplies and Services,400,Suspension Equipment          ,Y8330.40293,40293, 16/07/2014,P2 917880,"4,693.00",Revenue,Digital Data Ltd,1053790,
The Royal Borough of Kensington and Chelsea,RBKC,"Envrmt,Leisure & Residents Svc",ELR,"Cleaner,Greener & Cultural Ser",YCG,ELR OHP Production (OSY),Supplies and Services,400,Artistic Team                 ,L0392.45122,45122, 24/07/2014,P2 917881,900.00,Revenue,Payment to an individual or sole trader,778114,
The Royal Borough of Kensington and Chelsea,RBKC,Children's Services,CHS,Family Services - RBKC,SKC,FCS Ladbroke North SWT (OSF),Third Party Payments          ,500,P & V Fostering               ,S1735.54005,54005, 25/07/2014,P2 917890,"5,065.50",Revenue,Fostering Together Ltd,1271027,
The Royal Borough of Kensington and Chelsea,RBKC,Public Health,PHL,Public Health,JPH,Sexual Health (),Third Party Payments          ,500,Contract Costs                ,J4200.55000,55000, 25/07/2014,P2 917891,"3,750.00",Revenue,Epic Elm CIC,1326397,
The Royal Borough of Kensington and Chelsea,RBKC,Transport & Technical Srvcs,TTS,Transportation & Highways,YTH,TTS Construction (OSY),Third Party Payments          ,500,Bridges-Maintenance           ,Y7220.55480,55480, 25/07/2014,P2 917906,750.00,Revenue,Hyder Consulting (UK) Ltd,951892,
The Royal Borough of Kensington and Chelsea,RBKC,Public Health,PHL,Public Health,JPH,Sexual Health (),Third Party Payments          ,500,Contract Costs                ,J4200.55000,55000, 25/07/2014,P2 917907,"2,578.75",Revenue,Positively UK,1306943,
The Royal Borough of Kensington and Chelsea,RBKC,Public Health,PHL,Public Health,JPH,Sexual Health (),Third Party Payments          ,500,Contract Costs                ,J4200.55000,55000, 11/07/2014,P2 917908,"4,856.75",Revenue,People Potential Possibilities T/a P3,600981,
The Royal Borough of Kensington and Chelsea,RBKC,Public Health,PHL,Public Health,JPH,NHS Health Check Progrme & Oth (),Third Party Payments          ,500,Contract Costs                ,J4215.55000,55000, 18/07/2014,P2 917909,"5,000.00",Revenue,French African Welfare Association,1332931,
The Royal Borough of Kensington and Chelsea,RBKC,Adult Social Care,ASC,Operations,AS6,ASC Learning Dis Local SWT (OSS),Third Party Payments          ,500,P&V Supp Accom                ,S6123.54210,54210, 01/07/2014,P2 917911,"33,990.53",Revenue,Look Ahead Housing & Care Ltd,600269,
The Royal Borough of Kensington and Chelsea,RBKC,Adult Social Care,ASC,Operations,AS6,ASC Learning Dis Local SWT (OSS),Third Party Payments          ,500,P&V Supp Accom                ,S6125.54210,54210, 01/07/2014,P2 917914,"10,285.71",Revenue,London Cyrenians Housing Ltd & Yarrow Ho,926481,
The Royal Borough of Kensington and Chelsea,RBKC,Adult Social Care,ASC,Operations,AS6,ASC Learning Dis Local SWT (OSS),Third Party Payments          ,500,P&V Day Care                  ,S6123.54070,54070, 09/07/2014,P2 917922,"1,120.00",Revenue,The Grace Eyre Foundation,600047,
The Royal Borough of Kensington and Chelsea,RBKC,Adult Social Care,ASC,Operations,AS6,ASC Learning Dis Local SWT (OSS),Third Party Payments          ,500,P&V Residential               ,S6125.54060,54060, 11/07/2014,P2 917923,"27,900.00",Revenue,Jeesal Akman Care Corporation Ltd,602184,
The Royal Borough of Kensington and Chelsea,RBKC,Transport & Technical Srvcs,TTS,Non Revenue,001,TTS Highways (OSY),Capital,003,Construction-Main Ctrctrs A/C ,X5006.00090.12CHARL,00090, 03/07/2014,P2 918045,"5,744.00",Capital,Marshalls Ltd,600411,
The Royal Borough of Kensington and Chelsea,RBKC,Transport & Technical Srvcs,TTS,Non Revenue,001,TTS Highways (OSY),Capital,003,Construction-Main Ctrctrs A/C ,X5006.00090.12CHARL,00090, 03/07/2014,P2 918046,"5,665.31",Capital,Marshalls Ltd,600411,
The Royal Borough of Kensington and Chelsea,RBKC,Transport & Technical Srvcs,TTS,Transportation & Highways,YTH,TTS Highways (OSY),Third Party Payments          ,500,Footway Maintenance-Other Jobs,Y7214.55540,55540, 04/07/2014,P2 918048,"5,445.28",Revenue,Marshalls Ltd,600411,
The Royal Borough of Kensington and Chelsea,RBKC,Transport & Technical Srvcs,TTS,Non Revenue,001,TTS Highways (OSY),Capital,003,Construction-Main Ctrctrs A/C ,X5006.00090.12CHARL,00090, 04/07/2014,P2 918049,"5,559.43",Capital,Marshalls Ltd,600411,
The Royal Borough of Kensington and Chelsea,RBKC,Children's Services,CHS,Family Services - RBKC,SKC,FCS Leaving Care (OSF),Third Party Payments          ,500,Supported Living              ,S1425.54135,54135, 01/07/2014,P2 918052,"2,472.00",Revenue,Support Link Services Ltd,1141541,
The Royal Borough of Kensington and Chelsea,RBKC,Adult Social Care,ASC,Operations,AS6,ASC Learning Dis Local SWT (OSS),Employees,100,Salaries Agency               ,S6292.12000,12000, 17/07/2014,P2 918055,"16,585.00",Revenue,CNWL NHS Foundation Trust,604430,
The Royal Borough of Kensington and Chelsea,RBKC,Corporate Services,COS,Strategy & Local Services,CPU,COS Chief Executive (OSC),Employees,100,Training Expenses             ,P5750.19090,19090, 16/07/2014,P2 918056,"2,500.00",Revenue,Misura Consulting Ltd,1340997,
The Royal Borough of Kensington and Chelsea,RBKC,Children's Services,CHS,Non Revenue,001,FCS Central London Connexions (OSF),Transfer Payments             ,600,Other Costs                   ,Z0002.65070,65070, 18/07/2014,P2 918060,"32,871.22",Holding Control Account,CareerVision Ltd,887917,
The Royal Borough of Kensington and Chelsea,RBKC,Planning & Borough Development,PBD,Support Services & Executive,PS,PBD Land Charges (OST),Supplies and Services,400,Advertising                   ,T0150.45445,45445, 16/07/2014,P2 918061,520.00,Revenue,Trinity Mirror Publishing Ltd,611637,
The Royal Borough of Kensington and Chelsea,RBKC,Public Health,PHL,Public Health,JPH,NHS Health Check Progrme & Oth (),Third Party Payments          ,500,Contract Costs                ,J4100.55000,55000, 18/07/2014,P2 918065,"17,377.00",Revenue,Barts Health NHS Trust,1318466,
The Royal Borough of Kensington and Chelsea,RBKC,Children's Services,CHS,Tri-Borough Education Service,SED,FCS Continual Profession Devel (OSF),Supplies and Services,400,Training Programme Delivery   ,E3500.42113,42113, 18/07/2014,P2 918067,"1,983.50",Revenue,Contender Charlie Ltd,1126310,
The Royal Borough of Kensington and Chelsea,RBKC,Transport & Technical Srvcs,TTS,Transportation & Highways,YTH,TTS Derek Mahon-Lighting (OSY),Third Party Payments          ,500,Traffic Signs � Contract Maint,Y7256.55751,55751, 23/07/2014,P2 918071,"6,298.59",Revenue,Eurovia Infrastructure Ltd,949196,
The Royal Borough of Kensington and Chelsea,RBKC,Public Health,PHL,Public Health,JPH,Substance Use (),Third Party Payments          ,500,Contract Costs                ,J4205.55000,55000, 11/07/2014,P2 918073,"128,750.00",Revenue,Blenheim CDP,1082628,
The Royal Borough of Kensington and Chelsea,RBKC,Public Health,PHL,Public Health,JPH,Substance Use (),Third Party Payments          ,500,Contract Costs                ,J4300.55000,55000, 11/07/2014,P2 918074,"58,750.00",Revenue,Blenheim CDP,1082628,
The Royal Borough of Kensington and Chelsea,RBKC,Public Health,PHL,Public Health,JPH,Substance Use (),Third Party Payments          ,500,Contract Costs                ,J4300.55000,55000, 11/07/2014,P2 918076,"25,000.00",Revenue,Blenheim CDP,1082628,
The Royal Borough of Kensington and Chelsea,RBKC,Public Health,PHL,Public Health,JPH,Substance Use (),Third Party Payments          ,500,Contract Costs                ,J4205.55000,55000, 11/07/2014,P2 918079,"36,250.00",Revenue,Build on Belief Ltd,1313582,
The Royal Borough of Kensington and Chelsea,RBKC,Transport & Technical Srvcs,TTS,Transportation & Highways,YTH,TTS Highways (OSY),Third Party Payments          ,500,Programmed Carriageway Mntce  ,Y7214.55550,55550, 10/07/2014,P2 918101,"16,753.55",Revenue,Eurovia Infrastructure Ltd,949196,
The Royal Borough of Kensington and Chelsea,RBKC,Corporate Services,COS,Corporate Property,CBV,COS FM Energy (OSC),Premises Related,200,Water & Sewerage Rates        ,P1311.24500,24500, 03/07/2014,P2 918111,"3,106.43",Revenue,Thames Water Utilities Ltd,600917,
The Royal Borough of Kensington and Chelsea,RBKC,Corporate Services,COS,"Finance, Info Systems&Property",CFI,COS AssetMngt & Capital Prjcts (OSC),Capital,003,Fees-Consultants              ,Q3511.00065,00065, 01/07/2014,P2 918307,"4,980.00",Capital,Playle & Partners Llp,1283523,
The Royal Borough of Kensington and Chelsea,RBKC,Children's Services,CHS,Non Revenue,001,COS AssetMngt & Capital Prjcts (OSC),Capital,003,Fees-Consultants              ,F5208.00065,00065, 01/07/2014,P2 918308,"2,552.00",Capital,Playle & Partners Llp,1283523,
The Royal Borough of Kensington and Chelsea,RBKC,Children's Services,CHS,Non Revenue,001,COS AssetMngt & Capital Prjcts (OSC),Capital,003,Fees-Consultants              ,F9082.00065,00065, 01/07/2014,P2 918310,"2,255.00",Capital,John Rowan & Partners LLP,986708,
The Royal Borough of Kensington and Chelsea,RBKC,Planning & Borough Development,PBD,Support Services & Executive,PS,PBD Land Charges (OST),Supplies and Services,400,Computer Software Purchase    ,T0120.43050,43050, 01/07/2014,P2 918312,"1,400.00",Revenue,Idox Software Ltd,600475,
The Royal Borough of Kensington and Chelsea,RBKC,Children's Services,CHS,Tri-Borough Education Service,SED,FCS Schools Finance Central (OSF),Employees,100,Agency Staff-Support Services ,E5613.12100,12100, 01/07/2014,P2 918319,"1,305.00",Revenue,Fleet Tutors,1004026,
The Royal Borough of Kensington and Chelsea,RBKC,"Envrmt,Leisure & Residents Svc",ELR,"Cleaner,Greener & Cultural Ser",YCG,ELR OHP General (OSY),Supplies and Services,400,HPT-Sponsorship               ,L0309.45490,45490, 01/07/2014,P2 918337,"1,080.00",Revenue,Payment to an individual or sole trader,1333221,
The Royal Borough of Kensington and Chelsea,RBKC,Transport & Technical Srvcs,TTS,Transportation & Highways,YTH,TTS Parking Cust Serv/Refund (OSY),Supplies and Services,400,Postage/Franking Charges      ,Y8345.43300,43300, 17/07/2014,P2 918339,"1,392.36",Revenue,Royal Mail,600096,
The Royal Borough of Kensington and Chelsea,RBKC,"Envrmt,Leisure & Residents Svc",ELR,"Cleaner,Greener & Cultural Ser",YCG,ELR OHP Production (OSY),Supplies and Services,400,Chorus                        ,L0395.45123,45123, 02/07/2014,P2 918341,"1,000.00",Revenue,Payment to an individual or sole trader,1266858,
The Royal Borough of Kensington and Chelsea,RBKC,"Envrmt,Leisure & Residents Svc",ELR,"Cleaner,Greener & Cultural Ser",YCG,ELR OHP Production (OSY),Supplies and Services,400,Chorus                        ,L0395.45123,45123, 02/07/2014,P2 918342,"1,000.00",Revenue,Payment to an individual or sole trader,1329316,
The Royal Borough of Kensington and Chelsea,RBKC,"Envrmt,Leisure & Residents Svc",ELR,"Cleaner,Greener & Cultural Ser",YCG,ELR OHP Production (OSY),Supplies and Services,400,Chorus                        ,L0395.45123,45123, 02/07/2014,P2 918343,"1,150.00",Revenue,Payment to an individual or sole trader,1133924,
The Royal Borough of Kensington and Chelsea,RBKC,"Envrmt,Leisure & Residents Svc",ELR,"Cleaner,Greener & Cultural Ser",YCG,ELR OHP Production (OSY),Supplies and Services,400,Chorus                        ,L0395.45123,45123, 02/07/2014,P2 918344,"1,000.00",Revenue,Payment to an individual or sole trader,1311175,
The Royal Borough of Kensington and Chelsea,RBKC,"Envrmt,Leisure & Residents Svc",ELR,"Cleaner,Greener & Cultural Ser",YCG,ELR OHP Production (OSY),Supplies and Services,400,Chorus                        ,L0395.45123,45123, 01/07/2014,P2 918345,"1,000.00",Revenue,Payment to an individual or sole trader,796207,
The Royal Borough of Kensington and Chelsea,RBKC,"Envrmt,Leisure & Residents Svc",ELR,"Cleaner,Greener & Cultural Ser",YCG,ELR OHP Production (OSY),Supplies and Services,400,Chorus                        ,L0395.45123,45123, 02/07/2014,P2 918346,"1,000.00",Revenue,Payment to an individual or sole trader,1311156,
The Royal Borough of Kensington and Chelsea,RBKC,"Envrmt,Leisure & Residents Svc",ELR,"Cleaner,Greener & Cultural Ser",YCG,ELR OHP Production (OSY),Supplies and Services,400,Chorus                        ,L0395.45123,45123, 02/07/2014,P2 918347,"1,000.00",Revenue,Payment to an individual or sole trader,1310341,
The Royal Borough of Kensington and Chelsea,RBKC,"Envrmt,Leisure & Residents Svc",ELR,"Cleaner,Greener & Cultural Ser",YCG,ELR OHP Production (OSY),Supplies and Services,400,Chorus                        ,L0395.45123,45123, 02/07/2014,P2 918348,"1,000.00",Revenue,Payment to an individual or sole trader,1283867,
The Royal Borough of Kensington and Chelsea,RBKC,"Envrmt,Leisure & Residents Svc",ELR,"Cleaner,Greener & Cultural Ser",YCG,ELR OHP Production (OSY),Supplies and Services,400,Chorus                        ,L0395.45123,45123, 02/07/2014,P2 918349,"1,000.00",Revenue,Payment to an individual or sole trader,1129426,
The Royal Borough of Kensington and Chelsea,RBKC,"Envrmt,Leisure & Residents Svc",ELR,"Cleaner,Greener & Cultural Ser",YCG,ELR OHP Production (OSY),Supplies and Services,400,Chorus                        ,L0395.45123,45123, 02/07/2014,P2 918350,"1,000.00",Revenue,Payment to an individual or sole trader,1065314,
The Royal Borough of Kensington and Chelsea,RBKC,"Envrmt,Leisure & Residents Svc",ELR,"Cleaner,Greener & Cultural Ser",YCG,ELR OHP Production (OSY),Supplies and Services,400,Chorus                        ,L0395.45123,45123, 02/07/2014,P2 918351,"1,000.00",Revenue,Payment to an individual or sole trader,1243140,
The Royal Borough of Kensington and Chelsea,RBKC,"Envrmt,Leisure & Residents Svc",ELR,"Cleaner,Greener & Cultural Ser",YCG,ELR OHP Production (OSY),Supplies and Services,400,Chorus                        ,L0395.45123,45123, 02/07/2014,P2 918352,"1,000.00",Revenue,Payment to an individual or sole trader,1313945,
The Royal Borough of Kensington and Chelsea,RBKC,"Envrmt,Leisure & Residents Svc",ELR,"Cleaner,Greener & Cultural Ser",YCG,ELR OHP Production (OSY),Supplies and Services,400,Chorus                        ,L0395.45123,45123, 02/07/2014,P2 918353,"1,000.00",Revenue,Payment to an individual or sole trader,1311173,
The Royal Borough of Kensington and Chelsea,RBKC,"Envrmt,Leisure & Residents Svc",ELR,"Cleaner,Greener & Cultural Ser",YCG,ELR OHP Production (OSY),Supplies and Services,400,Chorus                        ,L0395.45123,45123, 02/07/2014,P2 918354,"1,000.00",Revenue,Payment to an individual or sole trader,1329333,
The Royal Borough of Kensington and Chelsea,RBKC,"Envrmt,Leisure & Residents Svc",ELR,"Cleaner,Greener & Cultural Ser",YCG,ELR OHP Production (OSY),Supplies and Services,400,Chorus                        ,L0395.45123,45123, 02/07/2014,P2 918355,"1,000.00",Revenue,Payment to an individual or sole trader,1311162,
The Royal Borough of Kensington and Chelsea,RBKC,"Envrmt,Leisure & Residents Svc",ELR,"Cleaner,Greener & Cultural Ser",YCG,ELR OHP Production (OSY),Supplies and Services,400,Chorus                        ,L0395.45123,45123, 01/07/2014,P2 918356,"1,000.00",Revenue,Payment to an individual or sole trader,793037,
The Royal Borough of Kensington and Chelsea,RBKC,"Envrmt,Leisure & Residents Svc",ELR,"Cleaner,Greener & Cultural Ser",YCG,ELR OHP Production (OSY),Supplies and Services,400,Chorus                        ,L0395.45123,45123, 02/07/2014,P2 918357,"1,000.00",Revenue,Payment to an individual or sole trader,603437,
The Royal Borough of Kensington and Chelsea,RBKC,"Envrmt,Leisure & Residents Svc",ELR,"Cleaner,Greener & Cultural Ser",YCG,ELR OHP Production (OSY),Supplies and Services,400,Chorus                        ,L0395.45123,45123, 02/07/2014,P2 918358,"1,000.00",Revenue,Payment to an individual or sole trader,1025155,
The Royal Borough of Kensington and Chelsea,RBKC,"Envrmt,Leisure & Residents Svc",ELR,"Cleaner,Greener & Cultural Ser",YCG,ELR OHP Production (OSY),Supplies and Services,400,Chorus                        ,L0395.45123,45123, 02/07/2014,P2 918359,"1,000.00",Revenue,Payment to an individual or sole trader,1236308,
The Royal Borough of Kensington and Chelsea,RBKC,"Envrmt,Leisure & Residents Svc",ELR,"Cleaner,Greener & Cultural Ser",YCG,ELR OHP Production (OSY),Supplies and Services,400,Chorus                        ,L0395.45123,45123, 02/07/2014,P2 918360,"1,000.00",Revenue,Payment to an individual or sole trader,1201049,
The Royal Borough of Kensington and Chelsea,RBKC,"Envrmt,Leisure & Residents Svc",ELR,"Cleaner,Greener & Cultural Ser",YCG,ELR OHP Production (OSY),Supplies and Services,400,Chorus                        ,L0395.45123,45123, 02/07/2014,P2 918361,"1,000.00",Revenue,Payment to an individual or sole trader,1266860,
The Royal Borough of Kensington and Chelsea,RBKC,"Envrmt,Leisure & Residents Svc",ELR,"Cleaner,Greener & Cultural Ser",YCG,ELR OHP Production (OSY),Supplies and Services,400,Chorus                        ,L0395.45123,45123, 02/07/2014,P2 918362,"1,000.00",Revenue,Payment to an individual or sole trader,1329331,
The Royal Borough of Kensington and Chelsea,RBKC,"Envrmt,Leisure & Residents Svc",ELR,"Cleaner,Greener & Cultural Ser",YCG,ELR OHP Production (OSY),Supplies and Services,400,Chorus                        ,L0395.45123,45123, 02/07/2014,P2 918363,"1,000.00",Revenue,Payment to an individual or sole trader,1329334,
The Royal Borough of Kensington and Chelsea,RBKC,"Envrmt,Leisure & Residents Svc",ELR,"Cleaner,Greener & Cultural Ser",YCG,ELR OHP Production (OSY),Supplies and Services,400,Chorus                        ,L0395.45123,45123, 02/07/2014,P2 918364,"1,000.00",Revenue,Payment to an individual or sole trader,1235503,
The Royal Borough of Kensington and Chelsea,RBKC,"Envrmt,Leisure & Residents Svc",ELR,"Cleaner,Greener & Cultural Ser",YCG,ELR OHP Production (OSY),Supplies and Services,400,Chorus                        ,L0395.45123,45123, 02/07/2014,P2 918365,"1,000.00",Revenue,Payment to an individual or sole trader,1329328,
The Royal Borough of Kensington and Chelsea,RBKC,"Envrmt,Leisure & Residents Svc",ELR,"Cleaner,Greener & Cultural Ser",YCG,ELR OHP Production (OSY),Supplies and Services,400,Chorus                        ,L0395.45123,45123, 02/07/2014,P2 918366,"1,000.00",Revenue,Payment to an individual or sole trader,1331422,
The Royal Borough of Kensington and Chelsea,RBKC,"Envrmt,Leisure & Residents Svc",ELR,"Cleaner,Greener & Cultural Ser",YCG,ELR OHP Production (OSY),Supplies and Services,400,Chorus                        ,L0395.45123,45123, 02/07/2014,P2 918367,"1,000.00",Revenue,Payment to an individual or sole trader,1202586,
The Royal Borough of Kensington and Chelsea,RBKC,"Envrmt,Leisure & Residents Svc",ELR,"Cleaner,Greener & Cultural Ser",YCG,ELR OHP Production (OSY),Supplies and Services,400,Chorus                        ,L0395.45123,45123, 02/07/2014,P2 918368,"1,000.00",Revenue,Payment to an individual or sole trader,1305648,
The Royal Borough of Kensington and Chelsea,RBKC,"Envrmt,Leisure & Residents Svc",ELR,"Cleaner,Greener & Cultural Ser",YCG,ELR OHP Production (OSY),Supplies and Services,400,Chorus                        ,L0395.45123,45123, 02/07/2014,P2 918369,"1,000.00",Revenue,Payment to an individual or sole trader,1330188,
The Royal Borough of Kensington and Chelsea,RBKC,"Envrmt,Leisure & Residents Svc",ELR,"Cleaner,Greener & Cultural Ser",YCG,ELR OHP Production (OSY),Supplies and Services,400,Chorus                        ,L0395.45123,45123, 02/07/2014,P2 918370,"1,000.00",Revenue,Payment to an individual or sole trader,1311161,
The Royal Borough of Kensington and Chelsea,RBKC,"Envrmt,Leisure & Residents Svc",ELR,"Cleaner,Greener & Cultural Ser",YCG,ELR OHP Production (OSY),Supplies and Services,400,Chorus                        ,L0395.45123,45123, 02/07/2014,P2 918371,"1,000.00",Revenue,Payment to an individual or sole trader,1311354,
The Royal Borough of Kensington and Chelsea,RBKC,Children's Services,CHS,School Funding,SSF,CHS Golborne (OSF),Employees,100,Salaries-Supply Other         ,E1002.13043,13043, 01/07/2014,P2 921535,"1,040.00",Revenue,Smart Education Ltd,1082199,
The Royal Borough of Kensington and Chelsea,RBKC,Corporate Services,COS,Legal Services,CLA,COS Legal Litigation (OSC),Third Party Payments          ,500,Counsels Fees                 ,P4341.54510.LBESEHNN,54510, 01/07/2014,P2 921536,"2,012.50",Revenue,Payment to an individual or sole trader,875228,
The Royal Borough of Kensington and Chelsea,RBKC,Children's Services,CHS,Family Services - RBKC,SKC,FCS Childrens Social Work (OSF),Third Party Payments          ,500,Parenting Assessments         ,S1603.54185,54185, 01/07/2014,P2 921537,"2,597.00",Revenue,Jamma Umoja (Residential Services),604236,
The Royal Borough of Kensington and Chelsea,RBKC,Adult Social Care,ASC,Operations,AS6,ASC E Monitoring Team (OSS),Third Party Payments          ,500,Home Care-Ext Providers-Health,S3800.55355,55355, 02/07/2014,P2 921539,"1,260.23",Revenue,Bluebird Care (Kensington & Chelsea),1265729,
The Royal Borough of Kensington and Chelsea,RBKC,Adult Social Care,ASC,Operations,AS6,ASC E Monitoring Team (OSS),Third Party Payments          ,500,Home Care-Ext Providers-Health,S3800.55355,55355, 02/07/2014,P2 921540,"1,548.91",Revenue,Bluebird Care (Kensington & Chelsea),1265729,
The Royal Borough of Kensington and Chelsea,RBKC,Adult Social Care,ASC,Operations,AS6,ASC E Monitoring Team (OSS),Third Party Payments          ,500,Home Care-Ext Providers-Health,S3800.55355,55355, 02/07/2014,P2 921541,"2,147.28",Revenue,Bluebird Care (Kensington & Chelsea),1265729,
The Royal Borough of Kensington and Chelsea,RBKC,Adult Social Care,ASC,Operations,AS6,ASC E Monitoring Team (OSS),Third Party Payments          ,500,Home Care-Ext Providers-Health,S3800.55355,55355, 02/07/2014,P2 921542,"2,010.24",Revenue,Bluebird Care (Kensington & Chelsea),1265729,
The Royal Borough of Kensington and Chelsea,RBKC,Adult Social Care,ASC,Operations,AS6,ASC E Monitoring Team (OSS),Third Party Payments          ,500,Home Care over 65             ,S3800.54453,54453, 02/07/2014,P2 921543,"1,364.16",Revenue,Bluebird Care (Kensington & Chelsea),1265729,
The Royal Borough of Kensington and Chelsea,RBKC,Adult Social Care,ASC,Operations,AS6,ASC E Monitoring Team (OSS),Third Party Payments          ,500,Home Care over 65             ,S3801.54453,54453, 02/07/2014,P2 921544,663.96,Revenue,Bluebird Care (Kensington & Chelsea),1265729,
The Royal Borough of Kensington and Chelsea,RBKC,Children's Services,CHS,Non Revenue,001,COS TFM LINK Team (OSC),Capital,003,Fees-Consultants              ,F8006.00065,00065, 01/07/2014,P2 921545,750.00,Capital,Carter Clack Partnership Ltd,1301939,
The Royal Borough of Kensington and Chelsea,RBKC,Adult Social Care,ASC,Operations,AS6,ASC E Monitoring Team (OSS),Third Party Payments          ,500,Home Care-Ext Providers-Health,S3800.55355,55355, 04/07/2014,P2 921550,972.42,Revenue,Bluebird Care (Kensington & Chelsea),1265729,
The Royal Borough of Kensington and Chelsea,RBKC,Adult Social Care,ASC,Operations,AS6,ASC E Monitoring Team (OSS),Third Party Payments          ,500,Home Care over 65             ,S3800.54453,54453, 04/07/2014,P2 921551,620.62,Revenue,Bluebird Care (Kensington & Chelsea),1265729,
The Royal Borough of Kensington and Chelsea,RBKC,Adult Social Care,ASC,Operations,AS6,ASC E Monitoring Team (OSS),Third Party Payments          ,500,Home Care over 65             ,S3800.54453,54453, 04/07/2014,P2 921552,732.55,Revenue,Bluebird Care (Kensington & Chelsea),1265729,
The Royal Borough of Kensington and Chelsea,RBKC,Adult Social Care,ASC,Operations,AS6,ASC E Monitoring Team (OSS),Third Party Payments          ,500,Home Care over 65             ,S3800.54453,54453, 04/07/2014,P2 921553,631.63,Revenue,Bluebird Care (Kensington & Chelsea),1265729,
The Royal Borough of Kensington and Chelsea,RBKC,Adult Social Care,ASC,Operations,AS6,ASC E Monitoring Team (OSS),Third Party Payments          ,500,Home Care-Ext Providers-Health,S3801.55355,55355, 09/07/2014,P2 921555,"1,135.06",Revenue,Bluebird Care (Kensington & Chelsea),1265729,
The Royal Borough of Kensington and Chelsea,RBKC,Adult Social Care,ASC,Operations,AS6,ASC E Monitoring Team (OSS),Third Party Payments          ,500,Home Care-Ext Providers-Health,S3801.55355,55355, 09/07/2014,P2 921556,723.64,Revenue,Bluebird Care (Kensington & Chelsea),1265729,
The Royal Borough of Kensington and Chelsea,RBKC,Adult Social Care,ASC,Operations,AS6,ASC E Monitoring Team (OSS),Third Party Payments          ,500,Home Care-Ext Providers-Health,S3801.55355,55355, 09/07/2014,P2 921557,701.19,Revenue,Bluebird Care (Kensington & Chelsea),1265729,
The Royal Borough of Kensington and Chelsea,RBKC,Adult Social Care,ASC,Operations,AS6,ASC E Monitoring Team (OSS),Third Party Payments          ,500,Home Care over 65             ,S3801.54453,54453, 09/07/2014,P2 921562,515.91,Revenue,Bluebird Care (Kensington & Chelsea),1265729,
The Royal Borough of Kensington and Chelsea,RBKC,Corporate Services,COS,Legal Services,CLA,COS Legal Litigation (OSC),Third Party Payments          ,500,Counsels Fees                 ,P4341.54510.LBCSCIG,54510, 04/07/2014,P2 921569,"4,100.00",Revenue,9-12 Bell Yard Advocacy Services Ltd,1281246,
The Royal Borough of Kensington and Chelsea,RBKC,Corporate Services,COS,Legal Services,CLA,COS Legal Litigation (OSC),Third Party Payments          ,500,Counsels Fees                 ,P4341.54510.LBESEHTS,54510, 04/07/2014,P2 921571,800.00,Revenue,9-12 Bell Yard Advocacy Services Ltd,1281246,
The Royal Borough of Kensington and Chelsea,RBKC,Corporate Services,COS,Non Revenue,001,COS Corporate Finance (OSC),Balance Sheet,002,Other Sale Expenses           ,B4402.08456,08456, 09/07/2014,P2 921573,750.00,Control Account Balance Sheet,Cluttons LLP,603514,
The Royal Borough of Kensington and Chelsea,RBKC,Adult Social Care,ASC,Operations,AS6,ASC E Monitoring Team (OSS),Third Party Payments          ,500,Home Care-Ext Providers-Health,S3800.55355,55355, 04/07/2014,P2 921574,957.60,Revenue,Ashbourne Healthcare Services,642207,
The Royal Borough of Kensington and Chelsea,RBKC,Corporate Services,COS,Non Revenue,001,COS Corporate Finance (OSC),Balance Sheet,002,Other Sale Expenses           ,B4402.08456,08456, 11/07/2014,P2 921578,750.00,Control Account Balance Sheet,Cluttons LLP,603514,
The Royal Borough of Kensington and Chelsea,RBKC,Corporate Services,COS,Non Revenue,001,COS Corporate Finance (OSC),Balance Sheet,002,Other Sale Expenses           ,B4402.08456,08456, 16/07/2014,P2 921579,750.00,Control Account Balance Sheet,Cluttons LLP,603514,
The Royal Borough of Kensington and Chelsea,RBKC,Corporate Services,COS,Corporate Property,CBV,COS Commercial Properties (OSC),Third Party Payments          ,500,Consultants                   ,P5720.54530,54530, 01/07/2014,P2 921580,"1,000.00",Revenue,Cluttons LLP,603514,
The Royal Borough of Kensington and Chelsea,RBKC,Corporate Services,COS,Corporate Property,CBV,COS TFM LINK Team (OSC),Supplies and Services,400,Photocopier Paper/Toner       ,P1053.40230,40230, 11/07/2014,P2 921581,641.84,Revenue,Canon (UK) Ltd,600655,
The Royal Borough of Kensington and Chelsea,RBKC,Planning & Borough Development,PBD,Planning Services,PP,PBD Casework (OST),Income,900,Fees & Charges-Refunds        ,T0100.93002,93002, 18/07/2014,P2 921585,"18,611.93",Revenue,Valuation Office Agency,603785,
The Royal Borough of Kensington and Chelsea,RBKC,Children's Services,CHS,Tri-Borough Education Service,SED,FCS Music Services (OSF),Supplies and Services,400,EDP/CPD                       ,E3551.46975,46975, 01/07/2014,P2 921587,750.00,Revenue,Primary Achievement,1279286,
The Royal Borough of Kensington and Chelsea,RBKC,Corporate Services,COS,Non Revenue,001,COS Corporate Finance (OSC),Balance Sheet,002,Other Sale Expenses           ,B4402.08456,08456, 18/07/2014,P2 921589,750.00,Control Account Balance Sheet,Cluttons LLP,603514,
The Royal Borough of Kensington and Chelsea,RBKC,Corporate Services,COS,Non Revenue,001,COS Corporate Finance (OSC),Balance Sheet,002,Other Sale Expenses           ,B4402.08456,08456, 18/07/2014,P2 921590,750.00,Control Account Balance Sheet,Cluttons LLP,603514,
The Royal Borough of Kensington and Chelsea,RBKC,Children's Services,CHS,Tri-Borough Education Service,SED,FCS Music Services (OSF),Supplies and Services,400,Events                        ,E3551.45340,45340, 11/07/2014,P2 921592,"2,000.00",Revenue,Payment to an individual or sole trader,856876,
The Royal Borough of Kensington and Chelsea,RBKC,Children's Services,CHS,Non Revenue,001,FCS Central London Connexions (OSF),Supplies and Services,400,Website Costs                 ,Z0004.43175,43175, 01/07/2014,P2 921593,"1,675.00",Holding Control Account,Apperception Ltd,631547,
The Royal Borough of Kensington and Chelsea,RBKC,Corporate Services,COS,Non Revenue,001,COS Risk Management & Insuranc (OSC),Balance Sheet,002,Expenditure                   ,B1751.07011,07011, 04/07/2014,P2 921594,508.00,Control Account Balance Sheet,Payment to an individual or sole trader,602245,
The Royal Borough of Kensington and Chelsea,RBKC,Adult Social Care,ASC,Operations,AS6,ASC Community Team North (OSS),Supplies and Services,400,Miscellaneous Expenses        ,S3620.45000,45000, 01/07/2014,P2 921596,997.25,Revenue,Banham Patent Locks Ltd,611653,
The Royal Borough of Kensington and Chelsea,RBKC,Corporate Services,COS,Non Revenue,001,COS Risk Management & Insuranc (OSC),Balance Sheet,002,Expenditure                   ,B1750.07011,07011, 01/07/2014,P2 921604,"1,281.50",Control Account Balance Sheet,Browne Jacobson Solicitors,602608,
The Royal Borough of Kensington and Chelsea,RBKC,Corporate Services,COS,Human Resources,CHG,COS Learning and Development (OSC),Supplies and Services,400,Annual Programme              ,P4421.42515,42515, 01/07/2014,P2 921607,750.00,Revenue,Focal Point Training and Consultancy Ltd,1264954,
The Royal Borough of Kensington and Chelsea,RBKC,Children's Services,CHS,Family Services - RBKC,SKC,FCS Recruitment & Assessment (OSF),Supplies and Services,400,Advertising                   ,S1461.45445,45445, 04/07/2014,P2 921609,579.61,Revenue,The Hotline Group Ltd,1285071,
The Royal Borough of Kensington and Chelsea,RBKC,Corporate Services,COS,Strategy & Local Services,CPU,COS FM Energy (OSC),Premises Related,200,Gas Contract                  ,P2101.22060,22060, 01/07/2014,P2 921610,518.70,Revenue,British Gas Business,946694,
The Royal Borough of Kensington and Chelsea,RBKC,Adult Social Care,ASC,Operations,AS6,ASC Learning Dis Local SWT (OSS),Third Party Payments          ,500,Physical Dsblty Rsdtl Resp    ,S6123.54065,54065, 01/07/2014,P2 921611,"3,374.70",Revenue,Well House,922806,
The Royal Borough of Kensington and Chelsea,RBKC,Corporate Services,COS,Non Revenue,001,COS Corporate Finance (OSC),Balance Sheet,002,Consultants                   ,C1448.00627,00627, 10/07/2014,P2 921612,"1,718.50",Holding Control Account,Neville Thirtle FMC Ltd,601050,
The Royal Borough of Kensington and Chelsea,RBKC,Adult Social Care,ASC,Commissioning,AS4,ASC Finance (OSS),Third Party Payments          ,500,VO Supp Accom                 ,S6700.54200,54200, 01/07/2014,P2 921614,"10,468.75",Revenue,Look Ahead Housing & Care,837252,
The Royal Borough of Kensington and Chelsea,RBKC,Children's Services,CHS,Children's Commissioning,SCC,CHS Workforce Development Team (OSF),Supplies and Services,400,Training Programme Delivery   ,E9752.42113,42113, 11/07/2014,P2 921616,620.00,Revenue,Payment to an individual or sole trader,878591,
The Royal Borough of Kensington and Chelsea,RBKC,Corporate Services,COS,Revenues,CFR,COS Benefits (OSC),Employees,100,Salaries Agency               ,P5915.12000,12000, 23/07/2014,P2 921621,"3,165.00",Revenue,Serco Ltd,1200359,
The Royal Borough of Kensington and Chelsea,RBKC,Corporate Services,COS,Revenues,CFR,COS Benefits (OSC),Employees,100,Salaries Agency               ,P5915.12000,12000, 23/07/2014,P2 921622,750.00,Revenue,Serco Ltd,1200359,
The Royal Borough of Kensington and Chelsea,RBKC,Corporate Services,COS,Revenues,CFR,COS Benefits (OSC),Employees,100,Salaries Agency               ,P5915.12000,12000, 23/07/2014,P2 921623,750.00,Revenue,Serco Ltd,1200359,
The Royal Borough of Kensington and Chelsea,RBKC,Corporate Services,COS,Revenues,CFR,COS Benefits (OSC),Employees,100,Salaries Agency               ,P5915.12000,12000, 23/07/2014,P2 921624,"2,775.00",Revenue,Serco Ltd,1200359,
The Royal Borough of Kensington and Chelsea,RBKC,Corporate Services,COS,Revenues,CFR,COS Benefits (OSC),Employees,100,Salaries Agency               ,P5915.12000,12000, 24/07/2014,P2 921625,750.00,Revenue,Serco Ltd,1200359,
The Royal Borough of Kensington and Chelsea,RBKC,Corporate Services,COS,Revenues,CFR,COS Benefits (OSC),Employees,100,Salaries Agency               ,P5915.12000,12000, 24/07/2014,P2 921626,"2,265.00",Revenue,Serco Ltd,1200359,
The Royal Borough of Kensington and Chelsea,RBKC,Adult Social Care,ASC,Operations,AS6,ASC E Monitoring Team (OSS),Third Party Payments          ,500,Home Care                     ,S6123.54452,54452, 01/07/2014,P2 921627,612.00,Revenue,Dust to Daisies Cleaning & Care Services,1232904,
The Royal Borough of Kensington and Chelsea,RBKC,Adult Social Care,ASC,Operations,AS6,ASC E Monitoring Team (OSS),Third Party Payments          ,500,Supported Living              ,S6123.54135,54135, 01/07/2014,P2 921628,"1,067.00",Revenue,Dust to Daisies Cleaning & Care Services,1232904,
The Royal Borough of Kensington and Chelsea,RBKC,Children's Services,CHS,Family Services - RBKC,SKC,FCS Recruitment & Assessment (OSF),Supplies and Services,400,Advertising                   ,S1461.45445,45445, 24/07/2014,P2 921630,"6,050.00",Revenue,Holman Advertising Ltd,634369,
The Royal Borough of Kensington and Chelsea,RBKC,Children's Services,CHS,Family Services - RBKC,SKC,FCS Recruitment & Assessment (OSF),Supplies and Services,400,Advertising                   ,S1461.45445,45445, 23/07/2014,P2 921631,"6,050.00",Revenue,Holman Advertising Ltd,634369,
The Royal Borough of Kensington and Chelsea,RBKC,Transport & Technical Srvcs,TTS,Transportation & Highways,YTH,TTS Transport Policy (OSY),Third Party Payments          ,500,Survey Fees                   ,Y7120.54745,54745, 30/07/2014,P2 921632,"2,100.00",Revenue,MHTC Ltd,1275461,
The Royal Borough of Kensington and Chelsea,RBKC,Children's Services,CHS,Non Revenue,001,COS AssetMngt & Capital Prjcts (OSC),Capital,003,Fees-Consultants              ,F6049.00065,00065, 30/07/2014,P2 921634,"5,248.41",Capital,John Burke Associates,600358,
The Royal Borough of Kensington and Chelsea,RBKC,"Envrmt,Leisure & Residents Svc",ELR,"Cleaner,Greener & Cultural Ser",YCG,ELR Refuse & Cleansing (OSY),Third Party Payments          ,500,Contractors Costs             ,Y2301.55170,55170, 30/07/2014,P2 921636,"4,631.82",Revenue,MPM Specialist Solutions Ltd,608057,
The Royal Borough of Kensington and Chelsea,RBKC,Transport & Technical Srvcs,TTS,Transportation & Highways,YTH,TTS Transportation Contracts (OSY),Third Party Payments          ,500,Consultants                   ,Y7130.54530,54530, 03/07/2014,P2 921637,"35,997.33",Revenue,Project Centre,601607,
The Royal Borough of Kensington and Chelsea,RBKC,Children's Services,CHS,Family Services - RBKC,SKC,FCS Recruitment & Assessment (OSF),Third Party Payments          ,500,Medical Fees                  ,S1461.54525,54525, 01/07/2014,P2 921639,"1,013.60",Revenue,Courtfield Private Practice Ltd,1312408,
The Royal Borough of Kensington and Chelsea,RBKC,Children's Services,CHS,Family Services - RBKC,SKC,FCS Recruitment & Assessment (OSF),Supplies and Services,400,Advertising                   ,S1461.45445,45445, 18/07/2014,P2 921642,729.60,Revenue,Families West,1272191,
The Royal Borough of Kensington and Chelsea,RBKC,Children's Services,CHS,Non Revenue,001,COS AssetMngt & Capital Prjcts (OSC),Capital,003,Fees-Consultants              ,F5234.00065,00065, 02/07/2014,P2 921757,"115,061.00",Capital,Mace Ltd,796798,
The Royal Borough of Kensington and Chelsea,RBKC,Adult Social Care,ASC,Operations,AS6,ASC E Monitoring Team (OSS),Third Party Payments          ,500,Home Care-Ext Providers-Health,S3801.55355,55355, 04/07/2014,P2 921763,957.60,Revenue,Ashbourne Healthcare Services,642207,
The Royal Borough of Kensington and Chelsea,RBKC,"Envrmt,Leisure & Residents Svc",ELR,Safer Neighbourhoods,YSN,ELR Parks and Cemeteries (OSY),Premises Related,200,Removal/Refixing-Headstones   ,Y2800.20870,20870, 02/07/2014,P2 921768,"6,885.00",Revenue,C J Jordan & Son Ltd,600060,
The Royal Borough of Kensington and Chelsea,RBKC,"Envrmt,Leisure & Residents Svc",ELR,Safer Neighbourhoods,YSN,ELR Parks and Cemeteries (OSY),Premises Related,200,Parks Horticultural Services  ,Y2720.20900,20900, 18/07/2014,P2 921772,"1,085.76",Revenue,Zaun Ltd,1275230,
The Royal Borough of Kensington and Chelsea,RBKC,Children's Services,CHS,Senior Management Team,SMT,COS Recruitment (OSC),Employees,100,Recruitment Advertising       ,S1000.18410,18410, 22/07/2014,P2 921774,940.00,Revenue,Penna PLC,1105134,
The Royal Borough of Kensington and Chelsea,RBKC,"Envrmt,Leisure & Residents Svc",ELR,"Cleaner,Greener & Cultural Ser",YCG,ELR Arts Development (OSY),Supplies and Services,400,Artist Fees                   ,L0354.42565,42565, 23/07/2014,P2 921776,"1,100.00",Revenue,Eastside Educational Trust,954886,
The Royal Borough of Kensington and Chelsea,RBKC,"Envrmt,Leisure & Residents Svc",ELR,"Cleaner,Greener & Cultural Ser",YCG,ELR Arts Development (OSY),Supplies and Services,400,Artist Fees                   ,L0354.42565,42565, 24/07/2014,P2 921777,"2,391.33",Revenue,Payment to an individual or sole trader,877102,
The Royal Borough of Kensington and Chelsea,RBKC,Corporate Services,COS,Information Systems,CIS,COS ISD General (OSC),Supplies and Services,400,Computer Software Maintenance ,P4830.43040,43040, 25/07/2014,P2 921783,"7,459.46",Revenue,Hornbill Service Management Ltd,1177876,
The Royal Borough of Kensington and Chelsea,RBKC,"Envrmt,Leisure & Residents Svc",ELR,Safer Neighbourhoods,YSN,ELR Parks and Cemeteries (OSY),Premises Related,200,G Mtce Contract-Main works    ,Y2720.20800,20800, 03/07/2014,P2 921784,"166,964.69",Revenue,Quadron Services Ltd,774253,
The Royal Borough of Kensington and Chelsea,RBKC,"Envrmt,Leisure & Residents Svc",ELR,Safer Neighbourhoods,YSN,ELR Parks and Cemeteries (OSY),Premises Related,200,Tree Management               ,Y2710.20940,20940, 10/07/2014,P2 921786,750.00,Revenue,Treemasters Ltd,600486,
The Royal Borough of Kensington and Chelsea,RBKC,"Envrmt,Leisure & Residents Svc",ELR,Safer Neighbourhoods,YSN,ELR Parks and Cemeteries (OSY),Premises Related,200,Tree Management               ,Y2720.20940,20940, 10/07/2014,P2 921787,"1,750.00",Revenue,Treemasters Ltd,600486,
The Royal Borough of Kensington and Chelsea,RBKC,"Envrmt,Leisure & Residents Svc",ELR,Safer Neighbourhoods,YSN,ELR Parks and Cemeteries (OSY),Premises Related,200,Tree Management               ,Y2720.20940,20940, 10/07/2014,P2 921788,"1,500.00",Revenue,Treemasters Ltd,600486,
The Royal Borough of Kensington and Chelsea,RBKC,Adult Social Care,ASC,Operations,AS6,ASC Finance (OSS),Third Party Payments          ,500,Client Furniture Storage      ,S0207.54685,54685, 30/07/2014,P2 921791,909.99,Revenue,Storing.com Ltd,998642,
The Royal Borough of Kensington and Chelsea,RBKC,Corporate Services,COS,Non Revenue,001,COS Consultation & Partnership (OSC),Balance Sheet,002,Payments                      ,C1088.00306,00306, 30/07/2014,P2 921792,578.00,Holding Control Account,Thebigword,1132553,
The Royal Borough of Kensington and Chelsea,RBKC,Corporate Services,COS,Non Revenue,001,COS Risk Management & Insuranc (OSC),Balance Sheet,002,Expenditure                   ,B1750.07011,07011, 23/07/2014,P2 921799,656.00,Control Account Balance Sheet,P Dutson Associates Ltd,925520,
The Royal Borough of Kensington and Chelsea,RBKC,Children's Services,CHS,Children's Commissioning,SCC,FCS Support (OSF),Employees,100,Salaries Agency               ,E9755.12000,12000, 02/07/2014,P2 921804,"7,260.00",Revenue,Penna PLC,1105134,
The Royal Borough of Kensington and Chelsea,RBKC,Corporate Services,COS,Customer Services,CFC,COS Customer Services (OSC),Third Party Payments          ,500,Contractors Costs             ,P4640.55170,55170, 02/07/2014,P2 921805,"8,784.39",Revenue,General Dynamics IT Ltd,1278782,
The Royal Borough of Kensington and Chelsea,RBKC,"Envrmt,Leisure & Residents Svc",ELR,Safer Neighbourhoods,YSN,ELR Parks and Cemeteries (OSY),Premises Related,200,Planned Park Maintenance      ,Y2720.20820,20820, 02/07/2014,P2 921806,"1,692.00",Revenue,Ustigate Ltd,1075850,
The Royal Borough of Kensington and Chelsea,RBKC,"Envrmt,Leisure & Residents Svc",ELR,Non Revenue,001,COS AssetMngt & Capital Prjcts (OSC),Capital,003,Fees-Consultants              ,X6330.00065,00065, 30/07/2014,P2 921810,"5,391.84",Capital,John Burke Associates,600358,
The Royal Borough of Kensington and Chelsea,RBKC,Public Health,PHL,Public Health,JPH,Seasonal Mortality (),Third Party Payments          ,500,Contract Costs                ,J4208.55000,55000, 24/07/2014,P2 921811,"8,336.91",Revenue,Boots UK Ltd,604480,
The Royal Borough of Kensington and Chelsea,RBKC,Transport & Technical Srvcs,TTS,Transportation & Highways,YTH,TTS Road Safety & Travel Plan (OSY),Supplies and Services,400,Initiatives                   ,Y7125.45370.CN14002,45370, 02/07/2014,P2 921813,"2,070.00",Revenue,Technicolour Tyre Company Ltd,1067682,
The Royal Borough of Kensington and Chelsea,RBKC,Transport & Technical Srvcs,TTS,Transportation & Highways,YTH,TTS Alan Moore-Lighting (OSY),Third Party Payments          ,500,Meter Bays & Posts            ,Y8300.55990,55990, 31/07/2014,P2 921814,"2,721.87",Revenue,Eurovia Infrastructure Ltd,949196,
The Royal Borough of Kensington and Chelsea,RBKC,Transport & Technical Srvcs,TTS,Transportation & Highways,YTH,TTS Streetworks (OSY),Supplies and Services,400,Equipment Purchase            ,Y7231.40080,40080, 25/07/2014,P2 921815,695.00,Revenue,Skills Training Centre Ltd,1023164,
The Royal Borough of Kensington and Chelsea,RBKC,Corporate Services,COS,Corporate Property,CBV,COS Commercial Properties (OSC),Premises Related,200,Use Of Premises               ,P5720.23001,23001, 02/07/2014,P2 921844,"6,000.00",Revenue,Westway Development Trust,604102,
The Royal Borough of Kensington and Chelsea,RBKC,Adult Social Care,ASC,Operations,AS6,ASC E Monitoring Team (OSS),Third Party Payments          ,500,Home Care-Ext Providers-Health,S3801.55355,55355, 02/07/2014,P2 921845,602.03,Revenue,Bluebird Care (Kensington & Chelsea),1265729,
The Royal Borough of Kensington and Chelsea,RBKC,Adult Social Care,ASC,Operations,AS6,ASC E Monitoring Team (OSS),Third Party Payments          ,500,Home Care-Ext Providers-Health,S6521.55355,55355, 04/07/2014,P2 921847,"2,319.29",Revenue,Ashbourne Healthcare Services,642207,
The Royal Borough of Kensington and Chelsea,RBKC,Adult Social Care,ASC,Operations,AS6,ASC E Monitoring Team (OSS),Third Party Payments          ,500,Home Care-Ext Providers-Health,S3801.55355,55355, 04/07/2014,P2 921848,"1,006.00",Revenue,Ashbourne Healthcare Services,642207,
The Royal Borough of Kensington and Chelsea,RBKC,Adult Social Care,ASC,Operations,AS6,ASC E Monitoring Team (OSS),Third Party Payments          ,500,Home Care-Ext Providers-Health,S3801.55355,55355, 04/07/2014,P2 921849,"1,008.20",Revenue,Ashbourne Healthcare Services,642207,
The Royal Borough of Kensington and Chelsea,RBKC,Adult Social Care,ASC,Operations,AS6,ASC E Monitoring Team (OSS),Third Party Payments          ,500,Home Care                     ,S6520.54452,54452, 04/07/2014,P2 921850,738.07,Revenue,Ashbourne Healthcare Services,642207,
The Royal Borough of Kensington and Chelsea,RBKC,Corporate Services,COS,Corporate Property,CBV,COS Commercial Properties (OSC),Third Party Payments          ,500,Consultants                   ,P5720.54530,54530, 02/07/2014,P2 921851,"4,500.00",Revenue,Aros Architects,1288521,
The Royal Borough of Kensington and Chelsea,RBKC,Adult Social Care,ASC,Operations,AS6,ASC E Monitoring Team (OSS),Third Party Payments          ,500,Home Care-Ext Providers-Health,S6521.55355,55355, 11/07/2014,P2 921858,"2,236.66",Revenue,Ashbourne Healthcare Services,642207,
The Royal Borough of Kensington and Chelsea,RBKC,Adult Social Care,ASC,Operations,AS6,ASC E Monitoring Team (OSS),Third Party Payments          ,500,Home Care                     ,S6520.54452,54452, 11/07/2014,P2 921865,691.14,Revenue,Ashbourne Healthcare Services,642207,
The Royal Borough of Kensington and Chelsea,RBKC,Adult Social Care,ASC,Operations,AS6,ASC E Monitoring Team (OSS),Third Party Payments          ,500,Home Care-Ext Providers-Health,S3801.55355,55355, 11/07/2014,P2 921866,967.60,Revenue,Ashbourne Healthcare Services,642207,
The Royal Borough of Kensington and Chelsea,RBKC,Adult Social Care,ASC,Operations,AS6,ASC E Monitoring Team (OSS),Third Party Payments          ,500,Home Care-Ext Providers-Health,S3800.55355,55355, 11/07/2014,P2 921868,921.52,Revenue,Ashbourne Healthcare Services,642207,
The Royal Borough of Kensington and Chelsea,RBKC,Adult Social Care,ASC,Operations,AS6,ASC E Monitoring Team (OSS),Third Party Payments          ,500,Home Care-Ext Providers-Health,S3801.55355,55355, 11/07/2014,P2 921869,691.14,Revenue,Ashbourne Healthcare Services,642207,
The Royal Borough of Kensington and Chelsea,RBKC,Adult Social Care,ASC,Operations,AS6,ASC E Monitoring Team (OSS),Third Party Payments          ,500,Home Care-Ext Providers-Health,S3801.55355,55355, 11/07/2014,P2 921870,718.20,Revenue,Ashbourne Healthcare Services,642207,
The Royal Borough of Kensington and Chelsea,RBKC,Adult Social Care,ASC,Operations,AS6,ASC E Monitoring Team (OSS),Third Party Payments          ,500,Home Care-Ext Providers-Health,S3801.55355,55355, 11/07/2014,P2 921871,921.52,Revenue,Ashbourne Healthcare Services,642207,
The Royal Borough of Kensington and Chelsea,RBKC,Corporate Services,COS,Corporate Property,CBV,COS AssetMngt & Capital Prjcts (OSC),Third Party Payments          ,500,Consultants                   ,P4007.54530,54530, 02/07/2014,P2 921872,"3,000.00",Revenue,Lambert Smith Hampton Group Ltd,909913,
The Royal Borough of Kensington and Chelsea,RBKC,Corporate Services,COS,Strategy & Local Services,CPU,COS Media and Communications (OSC),Supplies and Services,400,Newsletters                   ,P5101.41602,41602, 18/07/2014,P2 921873,"4,584.00",Revenue,Go4 Marketing & Public Relations Ltd,849161,
The Royal Borough of Kensington and Chelsea,RBKC,Adult Social Care,ASC,Operations,AS6,ASC E Monitoring Team (OSS),Third Party Payments          ,500,Home Care over 65             ,S3800.54453,54453, 11/07/2014,P2 921874,"1,243.92",Revenue,Saga Homecare,1280847,
The Royal Borough of Kensington and Chelsea,RBKC,Transport & Technical Srvcs,TTS,Transportation & Highways,YTH,TTS Parking On St Services (OSY),Supplies and Services,400,GSM lines                     ,Y8300.43412,43412, 18/07/2014,P2 921877,"2,903.20",Revenue,O2,622622,
The Royal Borough of Kensington and Chelsea,RBKC,Corporate Services,COS,Strategy & Local Services,CPU,COS Community Engagement (OSC),Supplies and Services,400,Advertising                   ,P5743.45445,45445, 18/07/2014,P2 921878,"1,248.00",Revenue,London Letterbox Marketing,1070845,
The Royal Borough of Kensington and Chelsea,RBKC,Corporate Services,COS,Corporate Property,CBV,COS Commercial Properties (OSC),Third Party Payments          ,500,Consultants                   ,P5720.54530,54530, 02/07/2014,P2 921880,"3,000.00",Revenue,Aros Architects,1288521,
The Royal Borough of Kensington and Chelsea,RBKC,Corporate Services,COS,Corporate Property,CBV,COS Commercial Properties (OSC),Third Party Payments          ,500,Consultants                   ,P5720.54530,54530, 02/07/2014,P2 921881,"7,500.00",Revenue,Deloitte Llp,602470,
The Royal Borough of Kensington and Chelsea,RBKC,Adult Social Care,ASC,Non Revenue,001,COS AssetMngt & Capital Prjcts (OSC),Capital,003,Construction-Main Ctrctrs A/C ,R4320.00090,00090, 25/07/2014,P2 921882,"64,221.90",Capital,C B S Maintenance Services Ltd,1335572,
The Royal Borough of Kensington and Chelsea,RBKC,Corporate Services,COS,Non Revenue,001,COS FM Print & Mailroom Servic (OSC),Balance Sheet,002,Payments                      ,C1703.00306,00306, 25/07/2014,P2 921885,"2,139.86",Holding Control Account,Konica Minolta Business Solutions (UK),600554,
The Royal Borough of Kensington and Chelsea,RBKC,Children's Services,CHS,Non Revenue,001,COS AssetMngt & Capital Prjcts (OSC),Capital,003,Construction-Miscellaneous    ,F6034.00099,00099, 25/07/2014,P2 921886,"1,731.68",Capital,Deconstruct (UK) Ltd,1311630,
The Royal Borough of Kensington and Chelsea,RBKC,Corporate Services,COS,Internal Audit & Risk Mngmnt,CFA,COS Internal Audit (OSC),Third Party Payments          ,500,General Hired & Contracted Ser,P4602.54505,54505, 04/07/2014,P2 921888,855.45,Revenue,Payment to an individual or sole trader,1091691,
The Royal Borough of Kensington and Chelsea,RBKC,"Envrmt,Leisure & Residents Svc",ELR,"Cleaner,Greener & Cultural Ser",YCG,COS FM Print & Mailroom Servic (OSC),Supplies and Services,400,Publicity Printing            ,Y2160.41680,41680, 25/07/2014,P2 921891,"2,773.00",Revenue,Mastercolour Plc,807384,
The Royal Borough of Kensington and Chelsea,RBKC,Corporate Services,COS,Strategy & Local Services,CPU,COS Community Safety (OSC),Third Party Payments          ,500,Consultants                   ,P5748.54530,54530, 16/07/2014,P2 921892,"4,800.00",Revenue,Paul Dunn Consultancy Ltd,1334294,
The Royal Borough of Kensington and Chelsea,RBKC,Children's Services,CHS,Non Revenue,001,FCS Central London Connexions (OSF),Supplies and Services,400,Trainee Awards                ,Z0038.45510.ACC,45510, 02/07/2014,P2 921893,"1,800.00",Holding Control Account,YourStory Ltd,951830,
The Royal Borough of Kensington and Chelsea,RBKC,Children's Services,CHS,Non Revenue,001,FCS Central London Connexions (OSF),Supplies and Services,400,Trainee Awards                ,Z0038.45510.ACC,45510, 02/07/2014,P2 921894,"1,800.00",Holding Control Account,YourStory Ltd,951830,
The Royal Borough of Kensington and Chelsea,RBKC,Housing Services,HOS,Hsg Needs and Homelessness,HNH,HOS Temp Accommodation (OSS),Third Party Payments          ,500,PLA Accommod - Stat Homeless  ,H6400.54714,54714, 07/07/2014,P2 921895,"7,694.10",Revenue,Urban Land Management Ltd,1318206,
The Royal Borough of Kensington and Chelsea,RBKC,Housing Services,HOS,Hsg Needs and Homelessness,HNH,HOS Temp Accommodation (OSS),Third Party Payments          ,500,PLA Accommod - Stat Homeless  ,H6400.54714,54714, 07/07/2014,P2 921896,"10,627.24",Revenue,RHP Services Ltd,822443,
The Royal Borough of Kensington and Chelsea,RBKC,Housing Services,HOS,Hsg Needs and Homelessness,HNH,HOS Temp Accommodation (OSS),Third Party Payments          ,500,PLA Accommod - Stat Homeless  ,H6400.54714,54714, 07/07/2014,P2 921897,"11,989.46",Revenue,RHP Services Ltd,822443,
The Royal Borough of Kensington and Chelsea,RBKC,Housing Services,HOS,Hsg Needs and Homelessness,HNH,HOS Temp Accommodation (OSS),Third Party Payments          ,500,PLA Accommod - Stat Homeless  ,H6400.54714,54714, 07/07/2014,P2 921898,"4,071.43",Revenue,RHP Services Ltd,822443,
The Royal Borough of Kensington and Chelsea,RBKC,Housing Services,HOS,Hsg Needs and Homelessness,HNH,HOS Temp Accommodation (OSS),Third Party Payments          ,500,PLA Accommod - Stat Homeless  ,H6400.54714,54714, 07/07/2014,P2 921899,"8,610.86",Revenue,RHP Services Ltd,822443,
The Royal Borough of Kensington and Chelsea,RBKC,Housing Services,HOS,Hsg Needs and Homelessness,HNH,HOS Temp Accommodation (OSS),Third Party Payments          ,500,PLA Accommod - Stat Homeless  ,H6400.54714,54714, 07/07/2014,P2 921900,"1,829.66",Revenue,RHP Services Ltd,822443,
The Royal Borough of Kensington and Chelsea,RBKC,Housing Services,HOS,Hsg Needs and Homelessness,HNH,HOS Temp Accommodation (OSS),Third Party Payments          ,500,PLA Accommod - Stat Homeless  ,H6400.54714,54714, 07/07/2014,P2 921901,"3,440.10",Revenue,RHP Services Ltd,822443,
The Royal Borough of Kensington and Chelsea,RBKC,Housing Services,HOS,Hsg Needs and Homelessness,HNH,HOS Temp Accommodation (OSS),Third Party Payments          ,500,B&B Accomm-Statutory Homeless ,H6400.54711,54711, 15/07/2014,P2 921902,"20,550.00",Revenue,Haveli Hotel,600259,
The Royal Borough of Kensington and Chelsea,RBKC,Housing Services,HOS,Hsg Needs and Homelessness,HNH,HOS Temp Accommodation (OSS),Third Party Payments          ,500,PLA Accommod - Stat Homeless  ,H6400.54714,54714, 07/07/2014,P2 921903,"11,979.90",Revenue,Altwood Properties Ltd,1264079,
The Royal Borough of Kensington and Chelsea,RBKC,Zero Budget Offsets,ZBO,"Finance, Info Systems&Property",CFI,COS Corporate Finance (OSC),Third Party Payments          ,500,Precepts and Levies           ,P9900.50900,50900, 25/07/2014,P2 921906,"42,228.00",Bus Grp Revenue Offset Totals,London Councils,608624,
The Royal Borough of Kensington and Chelsea,RBKC,Housing Services,HOS,Hsg Needs and Homelessness,HNH,HOS Temp Accommodation (OSS),Third Party Payments          ,500,PLA Accommod - Stat Homeless  ,H6400.54714,54714, 14/07/2014,P2 921907,"3,300.00",Revenue,Manor Lodge Hotel,602015,
The Royal Borough of Kensington and Chelsea,RBKC,"Envrmt,Leisure & Residents Svc",ELR,"Cleaner,Greener & Cultural Ser",YCG,ELR Refuse & Cleansing (OSY),Third Party Payments          ,500,Animal Warden Contract        ,Y2305.55290,55290, 30/07/2014,P2 921908,"3,207.50",Revenue,SDK (Kilsyth) Ltd,602146,
The Royal Borough of Kensington and Chelsea,RBKC,"Envrmt,Leisure & Residents Svc",ELR,"Cleaner,Greener & Cultural Ser",YCG,ELR Environmental Strategy (OSY),Supplies and Services,400,Environmental Initiatives     ,Y0013.45080,45080, 25/07/2014,P2 921909,552.65,Revenue,Westway Community Transport,600313,
The Royal Borough of Kensington and Chelsea,RBKC,Housing Services,HOS,Hsg Needs and Homelessness,HNH,HOS Temp Accommodation (OSS),Third Party Payments          ,500,PLA Accommod - Stat Homeless  ,H6400.54714,54714, 07/07/2014,P2 921913,"43,820.23",Revenue,Penham Ltd,1243843,
The Royal Borough of Kensington and Chelsea,RBKC,Housing Services,HOS,Hsg Needs and Homelessness,HNH,HOS Temp Accommodation (OSS),Third Party Payments          ,500,PLA Accommod - Stat Homeless  ,H6400.54714,54714, 07/07/2014,P2 921914,"44,565.04",Revenue,Penham Ltd,1243843,
The Royal Borough of Kensington and Chelsea,RBKC,Housing Services,HOS,Hsg Needs and Homelessness,HNH,HOS Temp Accommodation (OSS),Third Party Payments          ,500,PLA Accommod - Stat Homeless  ,H6400.54714,54714, 07/07/2014,P2 921915,"30,916.67",Revenue,Penham Ltd,1243843,
The Royal Borough of Kensington and Chelsea,RBKC,Children's Services,CHS,Tri-Borough Education Service,SED,FCS Schools Finance Central (OSF),Third Party Payments          ,500,General Hired & Contracted Ser,E5608.54505,54505, 25/07/2014,P2 921917,"28,515.70",Revenue,Radio Taxis Group Ltd,1336443,
The Royal Borough of Kensington and Chelsea,RBKC,Adult Social Care,ASC,Provided Services/ MH Partners,AS5,ASC Finance (OSS),Third Party Payments          ,500,P&V Nursing Over 65           ,S5128.54051,54051, 02/07/2014,P2 921918,"3,400.00",Revenue,Downs Cottage Care Home,1340083,
The Royal Borough of Kensington and Chelsea,RBKC,Adult Social Care,ASC,Provided Services/ MH Partners,AS5,ASC Finance (OSS),Third Party Payments          ,500,P&V Nursing Over 65           ,S5128.54051,54051, 02/07/2014,P2 921919,"3,400.00",Revenue,Downs Cottage Care Home,1340083,
The Royal Borough of Kensington and Chelsea,RBKC,Adult Social Care,ASC,Provided Services/ MH Partners,AS5,ASC Finance (OSS),Third Party Payments          ,500,P&V Nursing Over 65           ,S5128.54051,54051, 31/07/2014,P2 921920,"3,400.00",Revenue,Downs Cottage Care Home,1340083,
The Royal Borough of Kensington and Chelsea,RBKC,Transport & Technical Srvcs,TTS,Transportation & Highways,YTH,TTS Road Safety & Travel Plan (OSY),Supplies and Services,400,Campaigns                     ,Y7110.45602,45602, 30/07/2014,P2 921922,877.50,Revenue,Bikeworks,1226994,
The Royal Borough of Kensington and Chelsea,RBKC,Housing Services,HOS,Hsg Needs and Homelessness,HNH,HOS Temp Accommodation (OSS),Third Party Payments          ,500,PLA Accommod - Stat Homeless  ,H6400.54714,54714, 08/07/2014,P2 921925,"1,692.90",Revenue,Castleline Ltd,1308083,
The Royal Borough of Kensington and Chelsea,RBKC,Housing Services,HOS,Hsg Needs and Homelessness,HNH,HOS Temp Accommodation (OSS),Third Party Payments          ,500,PLA Accommod - Stat Homeless  ,H6400.54714,54714, 08/07/2014,P2 921926,939.60,Revenue,Castleline Ltd,1308083,
The Royal Borough of Kensington and Chelsea,RBKC,"Envrmt,Leisure & Residents Svc",ELR,"Cleaner,Greener & Cultural Ser",YCG,ELR Recycling & Waste Disposal (OSY),Supplies and Services,400,Purchase Of Plastic Sacks     ,Y2160.40100,40100, 28/07/2014,P2 921927,"4,048.38",Revenue,BPI Recycled Products,601529,
The Royal Borough of Kensington and Chelsea,RBKC,Corporate Services,COS,Revenues,CFR,COS Cashiers (OSC),Supplies and Services,400,Cash Conveyance               ,P4613.45900,45900, 25/07/2014,P2 921929,"4,692.25",Revenue,Contract Security Services Ltd,1279491,
The Royal Borough of Kensington and Chelsea,RBKC,Public Health,PHL,Provided Services/ MH Partners,AS5,ASC Substance Use SWT (OSS),Third Party Payments          ,500,P&V Residential               ,S5395.54060,54060, 02/07/2014,P2 921933,"2,248.04",Revenue,Streetscene,603256,
The Royal Borough of Kensington and Chelsea,RBKC,Public Health,PHL,Public Health,JPH,Sexual Health (),Third Party Payments          ,500,Contract Costs                ,J4100.55000,55000, 03/07/2014,P2 921990,"14,218.89",Revenue,Barts Health NHS Trust,1318466,
The Royal Borough of Kensington and Chelsea,RBKC,Public Health,PHL,Public Health,JPH,Sexual Health (),Third Party Payments          ,500,Contract Costs                ,J4100.55000,55000, 03/07/2014,P2 921991,"6,983.31",Revenue,Barts Health NHS Trust,1318466,
The Royal Borough of Kensington and Chelsea,RBKC,Adult Social Care,ASC,Procurement & Bus Intelligence,AS3,ASC L&D (OSS),Employees,100,Training Expenses             ,S0021.19090,19090, 03/07/2014,P2 921994,"2,000.00",Revenue,Goldsmiths College,601155,
The Royal Borough of Kensington and Chelsea,RBKC,Adult Social Care,ASC,Operations,AS6,ASC E Monitoring Team (OSS),Third Party Payments          ,500,Home Care-Ext Providers-Health,S3800.55355,55355, 03/07/2014,P2 921997,"2,280.54",Revenue,Bluebird Care (Kensington & Chelsea),1265729,
The Royal Borough of Kensington and Chelsea,RBKC,Adult Social Care,ASC,Operations,AS6,ASC E Monitoring Team (OSS),Third Party Payments          ,500,Home Care over 65             ,S3800.54453,54453, 11/07/2014,P2 922012,"1,381.10",Revenue,Carewatch (Kensington & Chelsea),821083,
The Royal Borough of Kensington and Chelsea,RBKC,Adult Social Care,ASC,Operations,AS6,ASC E Monitoring Team (OSS),Third Party Payments          ,500,Home Care                     ,S6520.54452,54452, 11/07/2014,P2 922016,"1,203.63",Revenue,Carewatch (Kensington & Chelsea),821083,
The Royal Borough of Kensington and Chelsea,RBKC,Adult Social Care,ASC,Operations,AS6,ASC E Monitoring Team (OSS),Third Party Payments          ,500,Home Care over 65             ,S3800.54453,54453, 11/07/2014,P2 922018,790.16,Revenue,Carewatch (Kensington & Chelsea),821083,
The Royal Borough of Kensington and Chelsea,RBKC,Corporate Services,COS,Corporate Property,CBV,COS AssetMngt & Capital Prjcts (OSC),Third Party Payments          ,500,Consultants                   ,P4049.54530,54530, 03/07/2014,P2 922019,"3,500.00",Revenue,Sweett (UK) Ltd,1332214,
The Royal Borough of Kensington and Chelsea,RBKC,Children's Services,CHS,Family Services - RBKC,SKC,FCS South Area Office (OSF),Third Party Payments          ,500,S17 Assistance                ,S1831.54390,54390, 25/07/2014,P2 922026,560.00,Revenue,Solidarity Sports,1175433,
The Royal Borough of Kensington and Chelsea,RBKC,"Envrmt,Leisure & Residents Svc",ELR,Non Revenue,001,ELR Leisure Capital Projs (OSY),Capital,003,Construction-Main Ctrctrs A/C ,X6312.00090,00090, 23/07/2014,P2 922028,"174,613.29",Capital,Greenwich Leisure Ltd (GLL),1085999,
The Royal Borough of Kensington and Chelsea,RBKC,Children's Services,CHS,Non Revenue,001,FCS Central London Connexions (OSF),Third Party Payments          ,500,Other Local Authorities       ,Z0036.51010.LAM,51010, 18/07/2014,P2 922031,"22,445.00",Holding Control Account,London Borough Of Lambeth,788204,
The Royal Borough of Kensington and Chelsea,RBKC,"Envrmt,Leisure & Residents Svc",ELR,Non Revenue,001,ELR Leisure Capital Projs (OSY),Capital,003,Construction-Main Ctrctrs A/C ,X6312.00090,00090, 24/07/2014,P2 922034,"61,835.00",Capital,Greenwich Leisure Ltd (GLL),1085999,
The Royal Borough of Kensington and Chelsea,RBKC,Children's Services,CHS,Family Services - RBKC,SKC,FCS Healthlink SWT (OSF),Third Party Payments          ,500,Supportive Care               ,S1861.54293,54293, 14/07/2014,P2 922037,"1,500.00",Revenue,Hilltop Hotel,600342,
The Royal Borough of Kensington and Chelsea,RBKC,Corporate Services,COS,Strategy & Local Services,CPU,COS Registrars (OSC),Supplies and Services,400,Advertising                   ,P2001.45445,45445, 30/07/2014,P2 922038,720.00,Revenue,Payment to an individual or sole trader,604047,
The Royal Borough of Kensington and Chelsea,RBKC,Housing Services,HOS,Hsg Needs and Homelessness,HNH,HOS Temp Accommodation (OSS),Third Party Payments          ,500,PLA Accommod - Stat Homeless  ,H6400.54714,54714, 08/07/2014,P2 922046,"43,409.40",Revenue,Apex Housing Solutions,1277902,
The Royal Borough of Kensington and Chelsea,RBKC,Children's Services,CHS,Children's Commissioning,SCC,FCS Children with Disabilities (OSF),Third Party Payments          ,500,Payments To Vol Orgs          ,S1910.53000,53000, 03/07/2014,P2 922047,"5,964.00",Revenue,Play Association Hammersmith & Fulham,1169262,
The Royal Borough of Kensington and Chelsea,RBKC,Public Health,PHL,Public Health,JPH,Public health non SMS (),Third Party Payments          ,500,Contract Costs                ,J4214.55000,55000, 30/07/2014,P2 922051,"15,418.00",Revenue,Opportunity For All,1306889,
The Royal Borough of Kensington and Chelsea,RBKC,Children's Services,CHS,Tri-Borough Education Service,SED,FCS Continual Profession Devel (OSF),Supplies and Services,400,EDP/CPD                       ,E3500.46975,46975, 25/07/2014,P2 922053,"18,625.00",Revenue,Fox Primary School,600721,
The Royal Borough of Kensington and Chelsea,RBKC,Housing Services,HOS,Hsg Needs and Homelessness,HNH,HOS Temp Accommodation (OSS),Third Party Payments          ,500,PLA Accommod - Stat Homeless  ,H6400.54714,54714, 07/07/2014,P2 922054,"21,853.50",Revenue,Westway Housing Association Ltd,600278,
The Royal Borough of Kensington and Chelsea,RBKC,Housing Services,HOS,Hsg Needs and Homelessness,HNH,HOS Temp Accommodation (OSS),Third Party Payments          ,500,PLA Accommod - Stat Homeless  ,H6400.54714,54714, 07/07/2014,P2 922055,"6,618.81",Revenue,Westway Housing Association Ltd,600278,
The Royal Borough of Kensington and Chelsea,RBKC,Children's Services,CHS,Family Services - RBKC,SKC,FCS Connected Persons (OSF),Third Party Payments          ,500,Commissioned Services         ,S1465.52560,52560, 25/07/2014,P2 922056,"2,000.00",Revenue,Payment to an individual or sole trader,1330718,
The Royal Borough of Kensington and Chelsea,RBKC,Corporate Services,COS,Non Revenue,001,COS Group Finance (OSC),Balance Sheet,002,Payments                      ,C1702.00306,00306, 18/07/2014,P2 922057,"111,282.05",Holding Control Account,Comensura Ltd,1003827,
The Royal Borough of Kensington and Chelsea,RBKC,Corporate Services,COS,Strategy & Local Services,CPU,COS Community Safety (OSC),Third Party Payments          ,500,Payments To Vol Orgs          ,P5748.53000,53000, 25/07/2014,P2 922058,"9,562.50",Revenue,Victim Support Kensington & Chelsea,600281,
The Royal Borough of Kensington and Chelsea,RBKC,Children's Services,CHS,Family Services - RBKC,SKC,FCS Childrens Social Work (OSF),Third Party Payments          ,500,Parenting Assessments         ,S1603.54185,54185, 30/07/2014,P2 922059,772.00,Revenue,Jamma Umoja (Community Services) Ltd,604497,
The Royal Borough of Kensington and Chelsea,RBKC,Housing Services,HOS,Hsg Needs and Homelessness,HNH,HOS Temp Accommodation (OSS),Third Party Payments          ,500,PLA Accommod - Stat Homeless  ,H6400.54714,54714, 07/07/2014,P2 922062,"25,833.86",Revenue,AMS Housing Ltd,1229637,
The Royal Borough of Kensington and Chelsea,RBKC,Housing Services,HOS,Hsg Needs and Homelessness,HNH,HOS Temp Accommodation (OSS),Third Party Payments          ,500,PLA Accommod - Stat Homeless  ,H6400.54714,54714, 08/07/2014,P2 922063,"2,142.90",Revenue,R@W Logistics Ltd,1211426,
The Royal Borough of Kensington and Chelsea,RBKC,Housing Services,HOS,Hsg Needs and Homelessness,HNH,HOS Temp Accommodation (OSS),Third Party Payments          ,500,PLA Accommod - Stat Homeless  ,H6400.54714,54714, 08/07/2014,P2 922064,"2,114.10",Revenue,R@W Logistics Ltd,1211426,
The Royal Borough of Kensington and Chelsea,RBKC,Housing Services,HOS,Hsg Needs and Homelessness,HNH,HOS Temp Accommodation (OSS),Third Party Payments          ,500,PLA Accommod - Stat Homeless  ,H6400.54714,54714, 03/07/2014,P2 922066,"3,200.00",Revenue,Capital Housing Associates Ltd,1297084,
The Royal Borough of Kensington and Chelsea,RBKC,Housing Services,HOS,Non Revenue,001,HOS West London Sub Region (OSS),Balance Sheet,002,Payments                      ,B0549.04609,04609, 03/07/2014,P2 922067,"6,750.00",Control Account Balance Sheet,Capital Housing Associates Ltd,1297084,
The Royal Borough of Kensington and Chelsea,RBKC,Housing Services,HOS,Hsg Needs and Homelessness,HNH,HOS Temp Accommodation (OSS),Third Party Payments          ,500,PLA Accommod - Stat Homeless  ,H6400.54714,54714, 07/07/2014,P2 922071,"5,800.80",Revenue,Stoneview Services Ltd,1307185,
The Royal Borough of Kensington and Chelsea,RBKC,"Envrmt,Leisure & Residents Svc",ELR,"Cleaner,Greener & Cultural Ser",YCG,ELR OHP Production (OSY),Supplies and Services,400,Principals                    ,L0379.45121,45121, 07/07/2014,P2 922320,"1,300.00",Revenue,Payment to an individual or sole trader,602277,
The Royal Borough of Kensington and Chelsea,RBKC,"Envrmt,Leisure & Residents Svc",ELR,"Cleaner,Greener & Cultural Ser",YCG,ELR OHP Production (OSY),Supplies and Services,400,Principals                    ,L0379.45121,45121, 03/07/2014,P2 922321,"1,300.00",Revenue,Hayes Walker Management Ltd,909397,
The Royal Borough of Kensington and Chelsea,RBKC,Children's Services,CHS,Family Services - RBKC,SKC,FCS Leaving Care (OSF),Third Party Payments          ,500,Supported Living              ,S1425.54135,54135, 03/07/2014,P2 922322,885.71,Revenue,The Caldecott Foundation,601790,
The Royal Borough of Kensington and Chelsea,RBKC,Adult Social Care,ASC,Operations,AS6,ASC E Monitoring Team (OSS),Third Party Payments          ,500,Home Care over 65             ,S3801.54453,54453, 11/07/2014,P2 922329,"1,121.40",Revenue,Carewatch (Kensington & Chelsea),821083,
The Royal Borough of Kensington and Chelsea,RBKC,Adult Social Care,ASC,Operations,AS6,ASC E Monitoring Team (OSS),Third Party Payments          ,500,Home Care over 65             ,S3801.54453,54453, 11/07/2014,P2 922330,"1,260.00",Revenue,Carewatch (Kensington & Chelsea),821083,
The Royal Borough of Kensington and Chelsea,RBKC,Adult Social Care,ASC,Operations,AS6,ASC E Monitoring Team (OSS),Third Party Payments          ,500,Home Care over 65             ,S3800.54453,54453, 11/07/2014,P2 922332,"1,507.52",Revenue,Carewatch (Kensington & Chelsea),821083,
The Royal Borough of Kensington and Chelsea,RBKC,Children's Services,CHS,Children's Commissioning,SCC,FCS Grant to Vol.Orgs (OSF),Third Party Payments          ,500,Payments To Vol Orgs          ,S1910.53000,53000, 03/07/2014,P2 922333,"2,700.00",Revenue,Play Association Hammersmith & Fulham,1169262,
The Royal Borough of Kensington and Chelsea,RBKC,Corporate Services,COS,Information Systems,CIS,COS ISD Training (OSC),Supplies and Services,400,Infrastructure-BT Lines       ,P4826.43150,43150, 18/07/2014,P2 922334,"3,843.75",Revenue,Geo Networks Ltd,1308162,
The Royal Borough of Kensington and Chelsea,RBKC,Corporate Services,COS,Legal Services,CLA,COS Legal Contracts (OSC),Premises Related,200,PM Improvement Works          ,P4337.20200,20200, 03/07/2014,P2 922335,"2,548.58",Revenue,EDM Workspace,1273669,
The Royal Borough of Kensington and Chelsea,RBKC,"Envrmt,Leisure & Residents Svc",ELR,"Cleaner,Greener & Cultural Ser",YCG,ELR OHP Production (OSY),Supplies and Services,400,Chorus                        ,L0391.45123,45123, 03/07/2014,P2 922337,800.00,Revenue,Payment to an individual or sole trader,1311156,
The Royal Borough of Kensington and Chelsea,RBKC,"Envrmt,Leisure & Residents Svc",ELR,Non Revenue,001,COS AssetMngt & Capital Prjcts (OSC),Capital,003,Fees-Consultants              ,X6208.00065,00065, 17/07/2014,P2 922340,600.00,Capital,Atkins Ltd,606571,
The Royal Borough of Kensington and Chelsea,RBKC,Corporate Services,COS,Information Systems,CIS,COS ISD Network and Telecomms (OSC),Supplies and Services,400,Mobile Phone Charges          ,P4826.43280,43280, 25/07/2014,P2 922341,"1,245.00",Revenue,Data Select Ltd,1251858,
The Royal Borough of Kensington and Chelsea,RBKC,Children's Services,CHS,Family Services - RBKC,SKC,FCS Leaving Care (OSF),Third Party Payments          ,500,Supported Living              ,S1425.54135,54135, 17/07/2014,P2 922347,"1,200.00",Revenue,Payment to an individual or sole trader,1339104,
The Royal Borough of Kensington and Chelsea,RBKC,Corporate Services,COS,Information Systems,CIS,COS ISD Network and Telecomms (OSC),Supplies and Services,400,Network Maintenance           ,P4826.43180,43180, 25/07/2014,P2 922348,850.00,Revenue,Network Utilities Systems Ltd,839441,
The Royal Borough of Kensington and Chelsea,RBKC,"Envrmt,Leisure & Residents Svc",ELR,"Cleaner,Greener & Cultural Ser",YCG,ELR OHP Production (OSY),Supplies and Services,400,Set                           ,L0393.45125,45125, 03/07/2014,P2 922349,"12,500.00",Revenue,Capital Scenery Ltd,954494,
The Royal Borough of Kensington and Chelsea,RBKC,Adult & Family Learning Srvcs,AFL,Adult Education,FAE,AFL Adult Learning (OSF),Third Party Payments          ,500,Adult Education               ,E7340.54790,54790, 03/07/2014,P2 922350,"126,666.66",Revenue,Kensington & Chelsea College,603609,
The Royal Borough of Kensington and Chelsea,RBKC,Children's Services,CHS,Children's Commissioning,SCC,CHS Workforce Development Team (OSF),Supplies and Services,400,Training Programme Delivery   ,E9752.42113,42113, 31/07/2014,P2 922353,750.00,Revenue,Centre for Strategy and Communication,893569,
The Royal Borough of Kensington and Chelsea,RBKC,Corporate Services,COS,Information Systems,CIS,COS ISD Network and Telecomms (OSC),Supplies and Services,400,Computer Hardware Maintenance ,P4826.43020,43020, 30/07/2014,P2 922354,"1,747.42",Revenue,Network Utilities Systems Ltd,839441,
The Royal Borough of Kensington and Chelsea,RBKC,"Envrmt,Leisure & Residents Svc",ELR,"Cleaner,Greener & Cultural Ser",YCG,ELR OHP Production (OSY),Supplies and Services,400,Wigs and Make Up              ,L0395.45138,45138, 03/07/2014,P2 922355,"12,600.00",Revenue,Payment to an individual or sole trader,794118,
The Royal Borough of Kensington and Chelsea,RBKC,Corporate Services,COS,Corporate Property,CBV,COS FM Energy (OSC),Third Party Payments          ,500,General Hired & Contracted Ser,P0513.54505.MECM0001,54505, 30/07/2014,P2 922356,"1,634.51",Revenue,TEAM (Energy Auditing Agency Ltd),937873,
The Royal Borough of Kensington and Chelsea,RBKC,Transport & Technical Srvcs,TTS,Transportation & Highways,YTH,TTS Alan Moore-Lighting (OSY),Third Party Payments          ,500,Traffic Signs � Contract Maint,Y7256.55751,55751, 31/07/2014,P2 922357,"26,931.30",Revenue,Eurovia Infrastructure Ltd,949196,
The Royal Borough of Kensington and Chelsea,RBKC,Public Health,PHL,Public Health,JPH,NHS Health Check Progrme & Oth (),Third Party Payments          ,500,Contract Costs                ,J4215.55000,55000, 31/07/2014,P2 922359,"25,000.00",Revenue,Turning Point Services Ltd,851536,
The Royal Borough of Kensington and Chelsea,RBKC,Children's Services,CHS,Children's Commissioning,SCC,CHS Workforce Development Team (OSF),Supplies and Services,400,Training Programme Delivery   ,E9752.42113,42113, 25/07/2014,P2 922360,650.00,Revenue,Payment to an individual or sole trader,1341965,
The Royal Borough of Kensington and Chelsea,RBKC,Corporate Services,COS,Information Systems,CIS,COS ISD Training (OSC),Supplies and Services,400,Infrastructure-BT Lines       ,P4826.43150,43150, 03/07/2014,P2 922364,"6,697.35",Revenue,Virgin Media Business,607764,
The Royal Borough of Kensington and Chelsea,RBKC,Corporate Services,COS,Financial Services,CFS,COS Financial Systems (OSC),Employees,100,Training Expenses             ,P4630.19090,19090, 03/07/2014,P2 922368,795.00,Revenue,Acuity Training Ltd,1341964,
The Royal Borough of Kensington and Chelsea,RBKC,Children's Services,CHS,Family Services - RBKC,SKC,FCS Healthlink SWT (OSF),Third Party Payments          ,500,Families Denied Ben-Accom Cost,S1861.54220,54220, 31/07/2014,P2 922371,"1,036.77",Revenue,Refuge,1341439,
The Royal Borough of Kensington and Chelsea,RBKC,Corporate Services,COS,Financial Services,CFS,COS Financial Systems (OSC),Employees,100,Training Expenses             ,P4630.19090,19090, 31/07/2014,P2 922376,599.00,Revenue,Knowledge Train Ltd,1243167,
The Royal Borough of Kensington and Chelsea,RBKC,Children's Services,CHS,Family Services - RBKC,SKC,FCS Leaving Care (OSF),Third Party Payments          ,500,S24 Assistance                ,S1425.54400,54400, 31/07/2014,P2 922378,"3,670.00",Revenue,Kensington & Chelsea Citizens Advice Bur,601760,
The Royal Borough of Kensington and Chelsea,RBKC,Corporate Services,COS,Information Systems,CIS,COS ISD Training (OSC),Supplies and Services,400,Infrastructure-BT Lines       ,P4826.43150,43150, 08/07/2014,P2 922381,"2,880.00",Revenue,Virgin Media Business,607764,
The Royal Borough of Kensington and Chelsea,RBKC,Housing Services,HOS,Hsg Needs and Homelessness,HNH,HOS Temp Accommodation (OSS),Third Party Payments          ,500,PLA Accommod - Stat Homeless  ,H6400.54714,54714, 03/07/2014,P2 922382,"15,082.27",Revenue,Cromwood Ltd,1278193,
The Royal Borough of Kensington and Chelsea,RBKC,Corporate Services,COS,Non Revenue,001,COS ISD Training (OSC),Balance Sheet,002,Telephone Charges             ,C1068.00660,00660, 31/07/2014,P2 922383,"15,725.73",Holding Control Account,Easynet Managed Services Ltd,1070857,
The Royal Borough of Kensington and Chelsea,RBKC,Housing Services,HOS,Hsg Needs and Homelessness,HNH,HOS Temp Accommodation (OSS),Third Party Payments          ,500,B&B Accomm-Statutory Homeless ,H6400.54711,54711, 16/07/2014,P2 922385,"7,203.00",Revenue,Nablodge Ltd,602692,
The Royal Borough of Kensington and Chelsea,RBKC,Children's Services,CHS,Children's Commissioning,SCC,CHS Workforce Development Team (OSF),Supplies and Services,400,Training Programme Delivery   ,E9752.42113,42113, 03/07/2014,P2 922386,513.00,Revenue,Abbey Community Services Ltd,608477,
The Royal Borough of Kensington and Chelsea,RBKC,Children's Services,CHS,Children's Commissioning,SCC,CHS Workforce Development Team (OSF),Supplies and Services,400,Training Programme Delivery   ,E9752.42113,42113, 03/07/2014,P2 922387,513.00,Revenue,Abbey Community Services Ltd,608477,
The Royal Borough of Kensington and Chelsea,RBKC,Corporate Services,COS,Legal Services,CLA,COS Legal Property (OSC),Supplies and Services,400,External Solicitors Fees      ,P4341.44070.LETMO/02,44070, 04/07/2014,P2 922756,"1,400.00",Revenue,Sharpe Pritchard,611200,
The Royal Borough of Kensington and Chelsea,RBKC,Corporate Services,COS,Legal Services,CLA,COS Legal Property (OSC),Supplies and Services,400,External Solicitors Fees      ,P4341.44070.LEHSHS,44070, 04/07/2014,P2 922757,"1,550.00",Revenue,Sharpe Pritchard,611200,
The Royal Borough of Kensington and Chelsea,RBKC,Children's Services,CHS,Tri-Borough Education Service,SED,FCS Schools Finance Central (OSF),Third Party Payments          ,500,Payments to LBHF              ,E3010.51080,51080, 09/07/2014,P2 922759,"29,150.96",Revenue,London Borough Of Hammersmith & Fulham,600048,
The Royal Borough of Kensington and Chelsea,RBKC,Children's Services,CHS,Finance & Resources,SFR,FCS Schools Finance Central (OSF),Third Party Payments          ,500,Consultants                   ,E9105.54530,54530, 23/07/2014,P2 922760,937.50,Revenue,Payment to an individual or sole trader,600642,
The Royal Borough of Kensington and Chelsea,RBKC,Corporate Services,COS,Legal Services,CLA,COS Legal Property (OSC),Supplies and Services,400,External Solicitors Fees      ,P4341.44070.LECMCP,44070, 04/07/2014,P2 922761,"5,522.50",Revenue,Bevan Brittan LLP,1003320,
The Royal Borough of Kensington and Chelsea,RBKC,Children's Services,CHS,Non Revenue,001,COS AssetMngt & Capital Prjcts (OSC),Capital,003,Fees-Consultants              ,F6034.00065,00065, 18/07/2014,P2 922762,"2,250.00",Capital,Turner & Townsend Project Management Ltd,996407,
The Royal Borough of Kensington and Chelsea,RBKC,Transport & Technical Srvcs,TTS,Transportation & Highways,YTH,TTS Streetworks (OSY),Third Party Payments          ,500,Consultants                   ,Y7231.54530,54530, 04/07/2014,P2 922764,"2,897.97",Revenue,Project Centre,601607,
The Royal Borough of Kensington and Chelsea,RBKC,Adult Social Care,ASC,Operations,AS6,ASC Learning Dis Local SWT (OSS),Third Party Payments          ,500,Supported Living              ,S6125.54135,54135, 04/07/2014,P2 922765,"1,715.50",Revenue,CTRC Community Care Company,1278515,
The Royal Borough of Kensington and Chelsea,RBKC,Children's Services,CHS,School Funding,SSF,FCS Finance (Schools other) (OSF),Premises Related,200,Carbon Reduction Allowance    ,E2502.22005,22005, 30/07/2014,P2 922768,"1,086.50",Revenue,Sustain Ltd,1238201,
The Royal Borough of Kensington and Chelsea,RBKC,"Envrmt,Leisure & Residents Svc",ELR,Safer Neighbourhoods,YSN,ELR Parks Police (OSY),Supplies and Services,400,Special Equip-Administrative  ,Y2780.40115,40115, 04/07/2014,P2 922770,573.34,Revenue,The CCTV Advisory Service,980395,
The Royal Borough of Kensington and Chelsea,RBKC,Corporate Services,COS,Revenues,CFR,COS Benefits (OSC),Supplies and Services,400,External Printing             ,P5915.41600,41600, 04/07/2014,P2 922771,"12,716.50",Revenue,Financial Data Management Ltd,601031,
The Royal Borough of Kensington and Chelsea,RBKC,Adult Social Care,ASC,Operations,AS6,ASC Learning Dis Local SWT (OSS),Third Party Payments          ,500,P&V Day Care                  ,S6123.54070,54070, 30/07/2014,P2 922772,710.92,Revenue,Gary Richard Homes Ltd,600101,
The Royal Borough of Kensington and Chelsea,RBKC,Corporate Services,COS,Revenues,CFR,COS Council Tax & Revenues IT (OSC),Supplies and Services,400,External Printing             ,P5810.41600,41600, 04/07/2014,P2 922782,"22,248.90",Revenue,Financial Data Management Ltd,601031,
The Royal Borough of Kensington and Chelsea,RBKC,Corporate Services,COS,Corporate Property,CBV,COS Commercial Properties (OSC),Third Party Payments          ,500,Consultants                   ,P5720.54530,54530, 04/07/2014,P2 922805,"1,550.00",Revenue,Oakleaf Surveying Ltd,1270300,
The Royal Borough of Kensington and Chelsea,RBKC,Children's Services,CHS,Children's Commissioning,SCC,FCS Schools Finance Central (OSF),Employees,100,Salaries Agency               ,E9751.12000,12000, 04/07/2014,P2 922806,"14,280.00",Revenue,GatenbySanderson,926253,
The Royal Borough of Kensington and Chelsea,RBKC,Children's Services,CHS,Family Services - RBKC,SKC,FCS Play Centres (OSF),Supplies and Services,400,Equipment Purchase            ,E6033.40080,40080, 16/07/2014,P2 922808,532.48,Revenue,Kent County Council,606234,
The Royal Borough of Kensington and Chelsea,RBKC,Children's Services,CHS,Non Revenue,001,COS AssetMngt & Capital Prjcts (OSC),Capital,003,Fees-Consultants              ,F5224.00065,00065, 30/07/2014,P2 922813,"18,517.87",Capital,Lend Lease Consulting (EMEA) Ltd,1303241,
The Royal Borough of Kensington and Chelsea,RBKC,Adult Social Care,ASC,Operations,AS6,ASC Finance (OSS),Supplies and Services,400,Funeral Expenses              ,S0207.42240,42240, 24/07/2014,P2 922816,773.00,Revenue,Sherry Funeral Services Ltd,1334219,
The Royal Borough of Kensington and Chelsea,RBKC,"Envrmt,Leisure & Residents Svc",ELR,Safer Neighbourhoods,YSN,ELR Sports & Physical Activty (OSY),Supplies and Services,400,Instructors Fees              ,Y2860.42360,42360, 31/07/2014,P2 922818,720.00,Revenue,Payment to an individual or sole trader,1035110,
The Royal Borough of Kensington and Chelsea,RBKC,"Envrmt,Leisure & Residents Svc",ELR,Safer Neighbourhoods,YSN,ELR Sports & Physical Activty (OSY),Third Party Payments          ,500,Consultants                   ,Y2860.54530,54530, 04/07/2014,P2 922822,515.00,Revenue,Healthier Life 4 You,1226840,
The Royal Borough of Kensington and Chelsea,RBKC,"Envrmt,Leisure & Residents Svc",ELR,"Cleaner,Greener & Cultural Ser",YCG,ELR Refuse & Cleansing (OSY),Third Party Payments          ,500,Carnival-Temp Loos Hire       ,Y2390.55200,55200, 04/07/2014,P2 922836,"9,899.40",Revenue,Midland Toilet Hire Ltd,1341934,
The Royal Borough of Kensington and Chelsea,RBKC,Children's Services,CHS,Family Services - RBKC,SKC,FCS World's End SWT (OSF),Third Party Payments          ,500,P&V Homes & Hostels           ,S1816.54120,54120, 07/07/2014,P2 922957,751.25,Revenue,Earls Court YMCA,601331,
The Royal Borough of Kensington and Chelsea,RBKC,Children's Services,CHS,Children's Commissioning,SCC,FCS School Meals Contracts (OSF),Supplies and Services,400,Catering Expenditure          ,E5531.41000,41000, 25/07/2014,P2 922966,808.19,Revenue,Cater Cover Service Ltd,1127283,
The Royal Borough of Kensington and Chelsea,RBKC,Corporate Services,COS,Corporate Property,CBV,COS TFM LINK Team (OSC),Third Party Payments          ,500,Consultants                   ,P4044.54530,54530, 07/07/2014,P2 922969,"6,109.17",Revenue,Amey Community Ltd,1315008,
The Royal Borough of Kensington and Chelsea,RBKC,Corporate Services,COS,Corporate Property,CBV,COS TFM LINK Team (OSC),Third Party Payments          ,500,Consultants                   ,P4044.54530,54530, 07/07/2014,P2 922970,"7,131.42",Revenue,Amey Community Ltd,1315008,
The Royal Borough of Kensington and Chelsea,RBKC,Children's Services,CHS,Family Services - RBKC,SKC,FCS Connected Persons (OSF),Third Party Payments          ,500,Commissioned Services         ,S1463.52560,52560, 07/07/2014,P2 922971,710.00,Revenue,Payment to an individual or sole trader,1330718,
The Royal Borough of Kensington and Chelsea,RBKC,Corporate Services,COS,Financial Services,CFS,COS Financial Systems (OSC),Supplies and Services,400,Internet Charges              ,P5601.43362,43362, 30/07/2014,P2 922981,"1,442.04",Revenue,Bucks.Net,621078,
The Royal Borough of Kensington and Chelsea,RBKC,"Envrmt,Leisure & Residents Svc",ELR,Safer Neighbourhoods,YSN,ELR Sports & Physical Activty (OSY),Supplies and Services,400,Instructors Fees              ,Y2860.42360,42360, 07/07/2014,P2 922984,630.00,Revenue,Payment to an individual or sole trader,1139511,
The Royal Borough of Kensington and Chelsea,RBKC,Children's Services,CHS,Family Services - RBKC,SKC,FCS Care Resources (OSF),Third Party Payments          ,500,Commissioned Services         ,S1402.52560,52560, 23/07/2014,P2 922988,"17,500.00",Revenue,CNWL NHS Foundation Trust,604430,
The Royal Borough of Kensington and Chelsea,RBKC,Children's Services,CHS,Family Services - RBKC,SKC,FCS Care Resources (OSF),Third Party Payments          ,500,Commissioned Services         ,S1402.52560,52560, 23/07/2014,P2 922989,"12,200.00",Revenue,CNWL NHS Foundation Trust,604430,
The Royal Borough of Kensington and Chelsea,RBKC,Public Health,PHL,Provided Services/ MH Partners,AS5,ASC Substance Use SWT (OSS),Third Party Payments          ,500,P&V Residential               ,S5395.54060,54060, 31/07/2014,P2 922998,"2,239.71",Revenue,Mount Carmel,602235,
The Royal Borough of Kensington and Chelsea,RBKC,Children's Services,CHS,Family Services - RBKC,SKC,FCS Ladbroke North SWT (OSF),Third Party Payments          ,500,P & V Fostering               ,S1735.54005,54005, 31/07/2014,P2 923000,"5,460.96",Revenue,Integrated Services Programme,604978,
The Royal Borough of Kensington and Chelsea,RBKC,Public Health,PHL,Provided Services/ MH Partners,AS5,ASC Substance Use SWT (OSS),Third Party Payments          ,500,P&V Residential               ,S5395.54060,54060, 07/07/2014,P2 923001,"2,248.80",Revenue,Streetscene,603256,
The Royal Borough of Kensington and Chelsea,RBKC,Housing Services,HOS,Hsg Needs and Homelessness,HNH,HOS Temp Accommodation (OSS),Third Party Payments          ,500,PLA Accommod - Stat Homeless  ,H6400.54714,54714, 09/07/2014,P2 923002,"26,061.92",Revenue,Barry Stewart & Partners,605086,
The Royal Borough of Kensington and Chelsea,RBKC,Housing Services,HOS,Hsg Needs and Homelessness,HNH,HOS Temp Accommodation (OSS),Third Party Payments          ,500,PLA Accommod - Stat Homeless  ,H6400.54714,54714, 09/07/2014,P2 923003,"22,032.87",Revenue,Housing Enterprise Solutions Ltd,1305451,
The Royal Borough of Kensington and Chelsea,RBKC,"Envrmt,Leisure & Residents Svc",ELR,"Cleaner,Greener & Cultural Ser",YCG,ELR OHP General (OSY),Employees,100,Salaries-Technical Staff      ,L0311.11034,11034, 31/07/2014,P2 923030,"2,250.00",Revenue,Payment to an individual or sole trader,1267699,
The Royal Borough of Kensington and Chelsea,RBKC,"Envrmt,Leisure & Residents Svc",ELR,"Cleaner,Greener & Cultural Ser",YCG,ELR OHP General (OSY),Supplies and Services,400,HPT-Sponsorship               ,L0309.45490,45490, 07/07/2014,P2 923031,712.50,Revenue,Haynes Hanson & Clark,1027044,
The Royal Borough of Kensington and Chelsea,RBKC,"Envrmt,Leisure & Residents Svc",ELR,"Cleaner,Greener & Cultural Ser",YCG,ELR OHP General (OSY),Supplies and Services,400,Hospitality                   ,L0309.41100,41100, 07/07/2014,P2 923033,"1,900.00",Revenue,DeWintons,1313642,
The Royal Borough of Kensington and Chelsea,RBKC,"Envrmt,Leisure & Residents Svc",ELR,"Cleaner,Greener & Cultural Ser",YCG,ELR OHP General (OSY),Supplies and Services,400,HPT-Sponsorship               ,L0309.45490,45490, 11/07/2014,P2 923035,765.60,Revenue,DeWintons,1313642,
The Royal Borough of Kensington and Chelsea,RBKC,"Envrmt,Leisure & Residents Svc",ELR,"Cleaner,Greener & Cultural Ser",YCG,ELR OHP General (OSY),Supplies and Services,400,HPT-Sponsorship               ,L0309.45490,45490, 11/07/2014,P2 923036,"2,633.55",Revenue,DeWintons,1313642,
The Royal Borough of Kensington and Chelsea,RBKC,"Envrmt,Leisure & Residents Svc",ELR,"Cleaner,Greener & Cultural Ser",YCG,ELR OHP General (OSY),Supplies and Services,400,HPT-Sponsorship               ,L0309.45490,45490, 11/07/2014,P2 923037,982.50,Revenue,DeWintons,1313642,
The Royal Borough of Kensington and Chelsea,RBKC,"Envrmt,Leisure & Residents Svc",ELR,"Cleaner,Greener & Cultural Ser",YCG,ELR OHP General (OSY),Supplies and Services,400,Hospitality                   ,L0309.41100,41100, 07/07/2014,P2 923038,560.00,Revenue,Payment to an individual or sole trader,1341249,
The Royal Borough of Kensington and Chelsea,RBKC,"Envrmt,Leisure & Residents Svc",ELR,"Cleaner,Greener & Cultural Ser",YCG,ELR OHP General (OSY),Supplies and Services,400,HPT-Sponsorship               ,L0309.45490,45490, 17/07/2014,P2 923039,971.50,Revenue,DeWintons,1313642,
The Royal Borough of Kensington and Chelsea,RBKC,"Envrmt,Leisure & Residents Svc",ELR,"Cleaner,Greener & Cultural Ser",YCG,ELR OHP General (OSY),Supplies and Services,400,HPT-Sponsorship               ,L0309.45490,45490, 11/07/2014,P2 923040,"6,750.00",Revenue,A Bubble Co Ltd,1341444,
The Royal Borough of Kensington and Chelsea,RBKC,"Envrmt,Leisure & Residents Svc",ELR,Non Revenue,001,ELR OHP General (OSY),Balance Sheet,002,Expenditure                   ,B8147.02626,02626, 23/07/2014,P2 923041,"22,500.00",Control Account Balance Sheet,Undercover Events Ltd,1334742,
The Royal Borough of Kensington and Chelsea,RBKC,"Envrmt,Leisure & Residents Svc",ELR,"Cleaner,Greener & Cultural Ser",YCG,ELR OHP General (OSY),Income,900,Sales-Meals                   ,L0309.92140,92140, 17/07/2014,P2 923043,"1,123.87",Revenue,Forman & Field Ltd,1285250,
The Royal Borough of Kensington and Chelsea,RBKC,"Envrmt,Leisure & Residents Svc",ELR,"Cleaner,Greener & Cultural Ser",YCG,ELR OHP General (OSY),Supplies and Services,400,HPT-Sponsorship               ,L0309.45490,45490, 07/07/2014,P2 923044,541.90,Revenue,DeWintons,1313642,
The Royal Borough of Kensington and Chelsea,RBKC,"Envrmt,Leisure & Residents Svc",ELR,"Cleaner,Greener & Cultural Ser",YCG,ELR OHP General (OSY),Income,900,Sales-Meals                   ,L0309.92140,92140, 17/07/2014,P2 923047,"4,118.71",Revenue,Forman & Field Ltd,1285250,
The Royal Borough of Kensington and Chelsea,RBKC,"Envrmt,Leisure & Residents Svc",ELR,"Cleaner,Greener & Cultural Ser",YCG,ELR OHP General (OSY),Income,900,Sales-Meals                   ,L0309.92140,92140, 24/07/2014,P2 923048,"2,651.58",Revenue,Forman & Field Ltd,1285250,
The Royal Borough of Kensington and Chelsea,RBKC,"Envrmt,Leisure & Residents Svc",ELR,"Cleaner,Greener & Cultural Ser",YCG,ELR OHP General (OSY),Income,900,Sales-Meals                   ,L0309.92140,92140, 10/07/2014,P2 923049,"1,146.48",Revenue,Forman & Field Ltd,1285250,
The Royal Borough of Kensington and Chelsea,RBKC,"Envrmt,Leisure & Residents Svc",ELR,"Cleaner,Greener & Cultural Ser",YCG,ELR OHP General (OSY),Supplies and Services,400,Materials Purchase            ,L0311.40140,40140, 25/07/2014,P2 923050,"1,051.70",Revenue,Key Industrial Equipment Ltd,611741,
The Royal Borough of Kensington and Chelsea,RBKC,"Envrmt,Leisure & Residents Svc",ELR,"Cleaner,Greener & Cultural Ser",YCG,ELR OHP General (OSY),Supplies and Services,400,HPT-Sponsorship               ,L0309.45490,45490, 25/07/2014,P2 923051,771.90,Revenue,DeWintons,1313642,
The Royal Borough of Kensington and Chelsea,RBKC,"Envrmt,Leisure & Residents Svc",ELR,"Cleaner,Greener & Cultural Ser",YCG,ELR OHP General (OSY),Supplies and Services,400,HPT-Sponsorship               ,L0309.45490,45490, 25/07/2014,P2 923052,"5,870.65",Revenue,DeWintons,1313642,
The Royal Borough of Kensington and Chelsea,RBKC,"Envrmt,Leisure & Residents Svc",ELR,"Cleaner,Greener & Cultural Ser",YCG,ELR OHP General (OSY),Income,900,Sales-Meals                   ,L0309.92140,92140, 31/07/2014,P2 923053,"1,576.88",Revenue,Forman & Field Ltd,1285250,
The Royal Borough of Kensington and Chelsea,RBKC,"Envrmt,Leisure & Residents Svc",ELR,"Cleaner,Greener & Cultural Ser",YCG,ELR OHP General (OSY),Third Party Payments          ,500,Security Guards               ,L0311.54620,54620, 11/07/2014,P2 923055,792.00,Revenue,Payment to an individual or sole trader,1309151,
The Royal Borough of Kensington and Chelsea,RBKC,"Envrmt,Leisure & Residents Svc",ELR,"Cleaner,Greener & Cultural Ser",YCG,ELR OHP General (OSY),Third Party Payments          ,500,Security Guards               ,L0311.54620,54620, 11/07/2014,P2 923056,621.00,Revenue,Payment to an individual or sole trader,1309150,
The Royal Borough of Kensington and Chelsea,RBKC,"Envrmt,Leisure & Residents Svc",ELR,"Cleaner,Greener & Cultural Ser",YCG,ELR OHP General (OSY),Third Party Payments          ,500,HPT Hire Of Toilet Facilities ,L0311.55953,55953, 30/07/2014,P2 923058,"10,150.00",Revenue,John Anderson Hire,602587,
The Royal Borough of Kensington and Chelsea,RBKC,Adult Social Care,ASC,Operations,AS6,ASC Learning Dis Local SWT (OSS),Third Party Payments          ,500,P&V Day Care                  ,S6123.54070,54070, 31/07/2014,P2 923064,"1,274.56",Revenue,Pursuing Indepentent Paths,639552,
The Royal Borough of Kensington and Chelsea,RBKC,Housing Revenue Account,HRA,Housing Revenue Account,HRA,HHASC Strategy & Regen (OSS),Supplies and Services,400,Resource Accounting Costs     ,H0200.45300,45300, 07/07/2014,P2 923161,"5,000.00",Revenue,Deloitte Llp,602470,
The Royal Borough of Kensington and Chelsea,RBKC,Transport & Technical Srvcs,TTS,Non Revenue,001,TTS TAPs and LSSs (OSY),Capital,003,Construction-Main Ctrctrs A/C ,X5006.00090.12LISCAR,00090, 18/07/2014,P2 923166,"4,000.00",Capital,Project Centre,601607,
The Royal Borough of Kensington and Chelsea,RBKC,"Envrmt,Leisure & Residents Svc",ELR,"Cleaner,Greener & Cultural Ser",YCG,ELR OHP Production (OSY),Supplies and Services,400,Stage Staff                   ,L0394.45136,45136, 09/07/2014,P2 923169,"1,100.00",Revenue,Payment to an individual or sole trader,1268689,
The Royal Borough of Kensington and Chelsea,RBKC,"Envrmt,Leisure & Residents Svc",ELR,"Cleaner,Greener & Cultural Ser",YCG,ELR OHP Production (OSY),Supplies and Services,400,Stage Staff                   ,L0393.45136,45136, 09/07/2014,P2 923170,860.00,Revenue,Payment to an individual or sole trader,1312413,
The Royal Borough of Kensington and Chelsea,RBKC,"Envrmt,Leisure & Residents Svc",ELR,"Cleaner,Greener & Cultural Ser",YCG,ELR OHP Production (OSY),Supplies and Services,400,Stage Staff                   ,L0393.45136,45136, 09/07/2014,P2 923171,"1,000.00",Revenue,Payment to an individual or sole trader,1312410,
The Royal Borough of Kensington and Chelsea,RBKC,"Envrmt,Leisure & Residents Svc",ELR,"Cleaner,Greener & Cultural Ser",YCG,ELR OHP Production (OSY),Supplies and Services,400,Stage Staff                   ,L0393.45136,45136, 09/07/2014,P2 923172,"1,000.00",Revenue,Payment to an individual or sole trader,1245820,
The Royal Borough of Kensington and Chelsea,RBKC,"Envrmt,Leisure & Residents Svc",ELR,"Cleaner,Greener & Cultural Ser",YCG,ELR OHP Production (OSY),Supplies and Services,400,Stage Staff                   ,L0393.45136,45136, 09/07/2014,P2 923173,860.00,Revenue,Payment to an individual or sole trader,1335280,
The Royal Borough of Kensington and Chelsea,RBKC,"Envrmt,Leisure & Residents Svc",ELR,"Cleaner,Greener & Cultural Ser",YCG,ELR OHP Production (OSY),Supplies and Services,400,Stage Staff                   ,L0393.45136,45136, 09/07/2014,P2 923174,"1,000.00",Revenue,Payment to an individual or sole trader,1316185,
The Royal Borough of Kensington and Chelsea,RBKC,"Envrmt,Leisure & Residents Svc",ELR,"Cleaner,Greener & Cultural Ser",YCG,ELR OHP Production (OSY),Supplies and Services,400,Stage Staff                   ,L0393.45136,45136, 09/07/2014,P2 923175,860.00,Revenue,Payment to an individual or sole trader,1313313,
The Royal Borough of Kensington and Chelsea,RBKC,"Envrmt,Leisure & Residents Svc",ELR,"Cleaner,Greener & Cultural Ser",YCG,ELR OHP Production (OSY),Supplies and Services,400,LX Technical Staff            ,L0393.45135,45135, 09/07/2014,P2 923176,857.00,Revenue,Payment to an individual or sole trader,854667,
The Royal Borough of Kensington and Chelsea,RBKC,Children's Services,CHS,Non Revenue,001,COS AssetMngt & Capital Prjcts (OSC),Capital,003,Fees-Consultants              ,F6048.00065,00065, 07/07/2014,P2 923183,"1,628.70",Capital,Rodney Aldridge Charitable Trust,1335116,
The Royal Borough of Kensington and Chelsea,RBKC,"Envrmt,Leisure & Residents Svc",ELR,"Cleaner,Greener & Cultural Ser",YCG,ELR Museums Service (OSY),Third Party Payments          ,500,Consultants                   ,L0303.54530,54530, 30/07/2014,P2 923184,"1,000.00",Revenue,Building Design Partnership Ltd,986105,
The Royal Borough of Kensington and Chelsea,RBKC,Corporate Services,COS,Non Revenue,001,COS Corporate Finance (OSC),Balance Sheet,002,Other Sale Expenses           ,B4402.08456,08456, 31/07/2014,P2 923185,750.00,Control Account Balance Sheet,Cluttons LLP,603514,
The Royal Borough of Kensington and Chelsea,RBKC,Corporate Services,COS,Non Revenue,001,COS Corporate Finance (OSC),Balance Sheet,002,Other Sale Expenses           ,B4402.08456,08456, 31/07/2014,P2 923186,750.00,Control Account Balance Sheet,Cluttons LLP,603514,
The Royal Borough of Kensington and Chelsea,RBKC,Corporate Services,COS,Non Revenue,001,COS Corporate Finance (OSC),Balance Sheet,002,Other Sale Expenses           ,B4402.08456,08456, 31/07/2014,P2 923188,750.00,Control Account Balance Sheet,Cluttons LLP,603514,
The Royal Borough of Kensington and Chelsea,RBKC,"Envrmt,Leisure & Residents Svc",ELR,"Cleaner,Greener & Cultural Ser",YCG,ELR Museums Service (OSY),Supplies and Services,400,Events                        ,L0303.45340,45340, 25/07/2014,P2 923189,"3,104.00",Revenue,Bovingdons Catering Ltd,601368,
The Royal Borough of Kensington and Chelsea,RBKC,"Envrmt,Leisure & Residents Svc",ELR,"Cleaner,Greener & Cultural Ser",YCG,ELR Museums Service (OSY),Supplies and Services,400,Guided tours staff fees       ,L0306.42561,42561, 07/07/2014,P2 923190,595.00,Revenue,Payment to an individual or sole trader,812604,
The Royal Borough of Kensington and Chelsea,RBKC,Public Health,PHL,Public Health,JPH,Sexual Health (),Third Party Payments          ,500,Contract Costs                ,J4200.55000,55000, 25/07/2014,P2 923191,772.50,Revenue,Organisation of Positive African Men,1307494,
